date,department/service,beneficiary,amount,summary of purpose,category,transaction number,SAP vendor number
01.02.2019,CHILDREN'S SERVICES,REDACTED PERSONAL DATA,"3,812.77",CLA TEAM SAFEGUARDING,PROFESSIONAL FEES,REDACTED,REDACTED
01.02.2019,CHILDREN'S SERVICES,INTERSERVE (FACILITIES MANAGEMENT),"1,017.62",MGMT & PARENTING PROG TEAM,GAS,5902341771,1000070792
01.02.2019,CUSTOMER EXPERIENCE HGF,IMPERIAL COLLEGE PROJECTS LTD,368,CORONER'S,PROFESSIONAL FEES,5902341668,1000080106
01.02.2019,CUSTOMER EXPERIENCE HGF,IMPERIAL COLLEGE PROJECTS LTD,408,CORONER'S,PROFESSIONAL FEES,5902341680,1000080106
01.02.2019,CUSTOMER EXPERIENCE HGF,IMPERIAL COLLEGE PROJECTS LTD,424,CORONER'S,PROFESSIONAL FEES,5902341663,1000080106
01.02.2019,CUSTOMER EXPERIENCE HGF,IMPERIAL COLLEGE PROJECTS LTD,504,CORONER'S,PROFESSIONAL FEES,5902341669,1000080106
01.02.2019,CUSTOMER EXPERIENCE HGF,IMPERIAL COLLEGE PROJECTS LTD,552,CORONER'S,PROFESSIONAL FEES,5902341670,1000080106
01.02.2019,ENVIRONMENT DIRECTORATE,GREENHAM TRADING LTD,"3,303.40",ESTATE CLEANING-GENERAL,MATERIALS,5902341547,1000006610
01.02.2019,ENVIRONMENT DIRECTORATE,PERFORMANCE CHEMICALS LTD,480,ESTATE CLEANING-GENERAL,MATERIALS,5902340720,1000037129
01.02.2019,LEISURE DIRECTORATE,NPOWER,894.48,BLUE ANCHOR LIBRARY,ELECTRICITY,5902341276,1000055441
01.02.2019,LEISURE DIRECTORATE,GROUNDWORK LONDON,"6,152.00",GRANTS COMMISSIONING,GRANTS,5902340650,1897585
01.02.2019,PECKHAM AND NUNHEAD COMMUNITY COUNCIL,PECKHAM VISION,"2,000.00",GRANT,GRANT,CHEQUE PAYMENT,CHEQUE PAYMENT
01.02.2019,PUBLIC HEALTH,FIELD FISHER WATERHOUSE,"17,260.00",14-20 SHAND STREET,PROFESSIONAL FEES,5902341592,1000047449
01.02.2019,REVENUES AND BENEFITS,CAPITA SECURE INFORMATION,960,GM SAP,SOFTWARE,5902340694,1000070739
01.02.2019,SOUTHWARK BUILDING SERVICES,GC CONSTRUCT LTD,"2,046.00",COMMERCIAL,OTHER CONTRACTORS,5902341688,1000082102
01.02.2019,SOUTHWARK BUILDING SERVICES,EE LTD (AIRTIME ACCOUNT),"3,361.95",ICT & COMMUNICATIONS,TELEPHONES (MOBILES),5902341594,1000079805
02.02.2019,ADULT SOCIAL CARE,REDACTED PERSONAL DATA,266.65,APPOINTEESHIPS,OTHER PAYMENTS FOR CLIENTS,REDACTED,REDACTED
02.02.2019,ADULT SOCIAL CARE,CHOICE SUPPORT,534.36,LD LTS 18-64,DAYCARE,2102916665,1104183
02.02.2019,ADULT SOCIAL CARE,CHOICE SUPPORT,"3,010.82",LD LTS 18-64,SUPPORTED LIVING,2102916663,1104183
02.02.2019,ADULT SOCIAL CARE,CHOICE SUPPORT,"6,204.07",LD LTS 18-64,SUPPORTED LIVING,2102916653,1104183
02.02.2019,ADULT SOCIAL CARE,CHOICE SUPPORT,"6,204.07",LD LTS 18-64,SUPPORTED LIVING,2102916655,1104183
02.02.2019,ADULT SOCIAL CARE,CHOICE SUPPORT,"6,204.07",LD LTS 18-64,SUPPORTED LIVING,2102916657,1104183
02.02.2019,ADULT SOCIAL CARE,CHOICE SUPPORT,"6,204.07",LD LTS 18-64,SUPPORTED LIVING,2102916659,1104183
02.02.2019,ADULT SOCIAL CARE,CHOICE SUPPORT,"6,204.07",LD LTS 18-64,SUPPORTED LIVING,2102916661,1104183
02.02.2019,ADULT SOCIAL CARE,CHOICE SUPPORT,"6,204.07",LD LTS 18-64,SUPPORTED LIVING,2102916667,1104183
02.02.2019,ADULT SOCIAL CARE,CHOICE SUPPORT,"6,204.07",LD LTS 18-64,SUPPORTED LIVING,2102916669,1104183
02.02.2019,ADULT SOCIAL CARE,CHOICE SUPPORT,"6,204.07",LD LTS 18-64,SUPPORTED LIVING,2102916671,1104183
02.02.2019,ADULT SOCIAL CARE,CHOICE SUPPORT,"6,204.07",LD LTS 18-64,SUPPORTED LIVING,2102916673,1104183
02.02.2019,ADULT SOCIAL CARE,CHOICE SUPPORT,"6,204.07",LD LTS 18-64,SUPPORTED LIVING,2102916675,1104183
02.02.2019,ADULT SOCIAL CARE,CHOICE SUPPORT,"6,204.07",LD LTS 18-64,SUPPORTED LIVING,2102916676,1104183
02.02.2019,ADULT SOCIAL CARE,CHOICE SUPPORT,526.72,LD LTS 65+,SUPPORTED LIVING,2102916679,1104183
02.02.2019,ADULT SOCIAL CARE,CHOICE SUPPORT,526.72,LD LTS 65+,SUPPORTED LIVING,2102916680,1104183
02.02.2019,ADULT SOCIAL CARE,CHOICE SUPPORT,526.72,LD LTS 65+,SUPPORTED LIVING,2102916681,1104183
02.02.2019,ADULT SOCIAL CARE,CHOICE SUPPORT,526.72,LD LTS 65+,SUPPORTED LIVING,2102916682,1104183
02.02.2019,ADULT SOCIAL CARE,CHOICE SUPPORT,526.72,LD LTS 65+,SUPPORTED LIVING,2102916683,1104183
02.02.2019,ADULT SOCIAL CARE,CHOICE SUPPORT,526.72,LD LTS 65+,SUPPORTED LIVING,2102916684,1104183
02.02.2019,ADULT SOCIAL CARE,CHOICE SUPPORT,526.72,LD LTS 65+,SUPPORTED LIVING,2102916685,1104183
02.02.2019,ADULT SOCIAL CARE,CHOICE SUPPORT,526.72,LD LTS 65+,SUPPORTED LIVING,2102916686,1104183
02.02.2019,ADULT SOCIAL CARE,CHOICE SUPPORT,526.72,LD LTS 65+,SUPPORTED LIVING,2102916687,1104183
02.02.2019,ADULT SOCIAL CARE,CHOICE SUPPORT,526.72,LD LTS 65+,SUPPORTED LIVING,2102916688,1104183
02.02.2019,ADULT SOCIAL CARE,CHOICE SUPPORT,526.72,LD LTS 65+,SUPPORTED LIVING,2102916689,1104183
02.02.2019,ADULT SOCIAL CARE,CHOICE SUPPORT,526.72,LD LTS 65+,SUPPORTED LIVING,2102916690,1104183
02.02.2019,ADULT SOCIAL CARE,CHOICE SUPPORT,526.72,LD LTS 65+,SUPPORTED LIVING,2102916691,1104183
02.02.2019,ADULT SOCIAL CARE,CHOICE SUPPORT,526.72,LD LTS 65+,SUPPORTED LIVING,2102916692,1104183
02.02.2019,ADULT SOCIAL CARE,COLLINGWOOD COURT (BUPA CARE HOMES),878.86,MEM LTS 65+,PLACEMENTS - RESPITE,2102916819,11042563
02.02.2019,ADULT SOCIAL CARE,CLOUDS END SERVICES LTD,400,MH LTS 65+,EXTERNAL AGENCIES AND BODIES,2102916820,1000079240
02.02.2019,ADULT SOCIAL CARE,STEPHEN DOWN,"1,125.00",SAFEGUARDING TEAM,EXTERNAL AGENCIES AND BODIES,5902341931,1000075102
02.02.2019,ADULT SOCIAL CARE,ACTION ON HEARING LOSS,993.49,SOCIAL ISOLATION,PLACEMENTS - RESPITE,2102916817,1000014488
02.02.2019,ASSET MANAGEMENT,FRANKHAM CONSULTANCY GROUP LTD,672.88,ADAPTATIONS,BUILDING R&M,5902341919,1000043952
02.02.2019,ASSET MANAGEMENT,PLANET TRAINING LIMITED,650,DEVELOPMENT DELIVERY,TRAINING,5902342091,1000064733
02.02.2019,ASSET MANAGEMENT,CHESHIRE ESTATE AND LEGAL LTD,"8,239.04",DISREPAIR,LEGAL FEES & COURT COSTS,5902341958,1000081908
02.02.2019,ASSET MANAGEMENT,GAS ADVISORY SERVICES LIMITED,"1,041.40",ENG CONTRACTS (NORTH),HEATING -DISTRICT SERVICE (CONTRACT SUM),5902342106,1000064649
02.02.2019,ASSET MANAGEMENT,CALFORD SEADEN LLP,"1,950.77",HIP MAJOR WORKS,PROFESSIONAL FEES,5902341893,1061592
02.02.2019,ASSET MANAGEMENT,CALFORD SEADEN LLP,"5,345.30",HIP MAJOR WORKS,PROFESSIONAL FEES,5902341895,1061592
02.02.2019,ASSET MANAGEMENT,PRB ESTATES LTD,"6,755.00",R&M CONTRACTS (NORTH),BUILDING R&M,2102916776,3000001691
02.02.2019,CHIEF EXECUTIVE,MHC TRAFFIC LTD,"2,280.00",CAPITAL PS (REGEN),CONSTR'N SUB CONTRACT - NON CERTIFICATED,5902341892,1000081233
02.02.2019,CHILDREN AND ADULT,CHERRY GARDEN SCHOOL,455.65,CAPITAL PS (EDUCATION),ICT ACQUISITION FEES,5902341962,5001000020
02.02.2019,CHILDREN AND ADULT,CHERRY GARDEN SCHOOL,"4,960.87",CAPITAL PS (EDUCATION),ICT ACQUISITION FEES,5902341972,5001000020
02.02.2019,CHILDREN AND ADULT,CHERRY GARDEN SCHOOL,"9,916.26",CAPITAL PS (EDUCATION),ICT ACQUISITION FEES,5902341967,5001000020
02.02.2019,CHILDREN AND ADULT,CHERRY GARDEN SCHOOL,"14,300.67",CAPITAL PS (EDUCATION),ICT ACQUISITION FEES,5902341957,5001000020
02.02.2019,CHILDREN'S SERVICES,REDACTED PERSONAL DATA,"1,134.53",FRIENDS & FAMILY FOSTERING,PAYMENTS TO CARERS,REDACTED,REDACTED
02.02.2019,CHILDREN'S SERVICES,REDACTED PERSONAL DATA,"1,134.53",FRIENDS & FAMILY FOSTERING,PAYMENTS TO CARERS,REDACTED,REDACTED
02.02.2019,CHILDREN'S SERVICES,REDACTED PERSONAL DATA,"1,218.40",FRIENDS & FAMILY FOSTERING,PAYMENTS TO CARERS,REDACTED,REDACTED
02.02.2019,CHILDREN'S SERVICES,CHARLOTTE  SHARMAN PRIMARY SCHOOL,300,INTERVENTION FUND,MISCELLANEOUS RECHARGES,2102916794,5001000016
02.02.2019,CHILDREN'S SERVICES,ST JOSEPHS RC JUNIOR  SCHOOL,600,INTERVENTION FUND,MISCELLANEOUS RECHARGES,2102916797,5001000017
02.02.2019,CHILDREN'S SERVICES,ST JUDES CHURCH OF ENGLAND PRIMARY,"4,000.00",INTERVENTION FUND,MISCELLANEOUS RECHARGES,2102916786,5001000019
02.02.2019,CHILDREN'S SERVICES,CRAMPTON PRIMARY SCHOOL,"1,000.00",INTERVENTION FUND,MISCELLANEOUS RECHARGES,2102916799,5001000023
02.02.2019,CHILDREN'S SERVICES,FRIARS PRIMARY SCHOOL,"1,000.00",INTERVENTION FUND,MISCELLANEOUS RECHARGES,2102916800,5001000033
02.02.2019,CHILDREN'S SERVICES,HEBER PRIMARY SCHOOL,"3,000.00",INTERVENTION FUND,MISCELLANEOUS RECHARGES,2102916780,5001000035
02.02.2019,CHILDREN'S SERVICES,MICHAEL FARADAY PRIMARY SCHOOL,"1,000.00",INTERVENTION FUND,MISCELLANEOUS RECHARGES,2102916802,5001000048
02.02.2019,CHILDREN'S SERVICES,OLIVER GOLDSMITH PRIMARY SCHOOL,"2,280.00",INTERVENTION FUND,MISCELLANEOUS RECHARGES,2102916787,5001000051
02.02.2019,CHILDREN'S SERVICES,OLIVER GOLDSMITH PRIMARY SCHOOL,"3,000.00",INTERVENTION FUND,MISCELLANEOUS RECHARGES,2102916783,5001000051
02.02.2019,CHILDREN'S SERVICES,PETER HILLS CE SCHOOL,"1,000.00",INTERVENTION FUND,MISCELLANEOUS RECHARGES,2102916804,5001000053
02.02.2019,CHILDREN'S SERVICES,ROBERT BROWNING PRIMARY SCHOOL,650,INTERVENTION FUND,MISCELLANEOUS RECHARGES,2102916795,5001000057
02.02.2019,CHILDREN'S SERVICES,ROBERT BROWNING PRIMARY SCHOOL,"4,000.00",INTERVENTION FUND,MISCELLANEOUS RECHARGES,2102916788,5001000057
02.02.2019,CHILDREN'S SERVICES,SNOWSFIELDS PRIMARY SCHOOL,"1,000.00",INTERVENTION FUND,MISCELLANEOUS RECHARGES,2102916801,5001000061
02.02.2019,CHILDREN'S SERVICES,ST FRANCIS'S RC PRIMARY SCHOOL,"3,000.00",INTERVENTION FUND,MISCELLANEOUS RECHARGES,2102916785,5001000067
02.02.2019,CHILDREN'S SERVICES,ST GEORGES RC SCHOOL,"1,000.00",INTERVENTION FUND,MISCELLANEOUS RECHARGES,2102916803,5001000068
02.02.2019,CHILDREN'S SERVICES,ST GEORGES RC SCHOOL,"3,000.00",INTERVENTION FUND,MISCELLANEOUS RECHARGES,2102916782,5001000068
02.02.2019,CHILDREN'S SERVICES,ST GEORGES CE SCHOOL,"3,000.00",INTERVENTION FUND,MISCELLANEOUS RECHARGES,2102916781,5001000069
02.02.2019,CHILDREN'S SERVICES,ST JOHNS WALWORTH CE SCHOOL,300,INTERVENTION FUND,MISCELLANEOUS RECHARGES,2102916796,5001000072
02.02.2019,CHILDREN'S SERVICES,ST JOHNS WALWORTH CE SCHOOL,"3,000.00",INTERVENTION FUND,MISCELLANEOUS RECHARGES,2102916784,5001000072
02.02.2019,CHILDREN'S SERVICES,ST JOHNS WALWORTH CE SCHOOL,"6,838.99",INTERVENTION FUND,MISCELLANEOUS RECHARGES,2102916792,5001000072
02.02.2019,CHILDREN'S SERVICES,ST MARY MAGDALENE CE SCHOOL,"2,000.00",INTERVENTION FUND,MISCELLANEOUS RECHARGES,2102916789,5001000080
02.02.2019,CHILDREN'S SERVICES,ST MARY MAGDALENE CE SCHOOL,"3,000.00",INTERVENTION FUND,MISCELLANEOUS RECHARGES,2102916791,5001000080
02.02.2019,CHILDREN'S SERVICES,ST PETERS CE SCHOOL,350,INTERVENTION FUND,MISCELLANEOUS RECHARGES,2102916798,5001000083
02.02.2019,CHILDREN'S SERVICES,TOWNSEND PRIMARY SCHOOL,"3,000.00",INTERVENTION FUND,MISCELLANEOUS RECHARGES,2102916779,5001000096
02.02.2019,CHILDREN'S SERVICES,REDACTED PERSONAL DATA,500,S & FAM SUPP - PRAC GRP F SET 29-31,OTHER PAYMENTS FOR CLIENTS,REDACTED,REDACTED
02.02.2019,CHILDREN'S SERVICES,CYBERSTYLE LETTINGS LTD,"1,551.50",TEMPORARY ACCOMMODATION,EXTERNAL AGENCIES AND BODIES,5902341858,1000079319
02.02.2019,COLLECTION FUNDS,GREATER LONDON AUTHORITY,"3,130,664.63",GLA PRECEPT,LEVIES,5902341976,1000015827
02.02.2019,COMMISSIONING & CENTRAL,HOLLY BRYAN ASSOCIATES LTD,"7,200.00",C&AS SYSTEMS TEAM,PROFESSIONAL FEES,5902341903,1000077962
02.02.2019,COMMUNITIES,FALCON POINT MANAGEMENT GROUP LTD,"2,224.23",FALCON POINT TMO,M&M ALLOWANCE CO-OPS,5902341175,11117573
02.02.2019,COMMUNITIES,FALCON POINT MANAGEMENT GROUP LTD,"49,870.00",FALCON POINT TMO,M&M ALLOWANCE CO-OPS,5902341167,11117573
02.02.2019,COMMUNITIES,FALCON POINT MANAGEMENT GROUP LTD,"49,872.00",FALCON POINT TMO,M&M ALLOWANCE CO-OPS,5902341171,11117573
02.02.2019,COMMUNITIES,STYLES HOUSE TMO,"26,358.60",STYLES HOUSE TMO,M&M ALLOWANCE CO-OPS,5902341890,1000072012
02.02.2019,COMMUNITIES,SOUTHWARK PARK  T&RA,"1,300.00",TENANTS FUND,GRANTS,5902341927,1362788
02.02.2019,CUSTOMER EXPERIENCE,KENT COUNTY COUNCIL - LASER,327.77,MSHO,ELECTRICITY,5902341897,1000012926
02.02.2019,ENVIRONMENT AND LEISURE,INFINITY NETWORKS LTD,398,CAPITAL PS (LEISURE),CONSTRUCTION FEES  - EXTERNAL,5902341524,1000035571
02.02.2019,ENVIRONMENT AND LEISURE,STANBURY BUILDING SERVICES LTD,"90,518.00",CAPITAL PS (LEISURE),CONSTRUCTION FEES  - EXTERNAL,2102916778,3000001967
02.02.2019,ENVIRONMENT DIRECTORATE,LONDON COUNCILS,"21,021.05",ALG ACCOUNT,PROFESSIONAL FEES,5902341275,11237079
02.02.2019,ENVIRONMENT DIRECTORATE,F H BRUNDLE,399,ENGINEERING CRAFTS,MATERIALS,5902341870,1082714
02.02.2019,ENVIRONMENT DIRECTORATE,F H BRUNDLE,978,ENGINEERING CRAFTS,MATERIALS,5902341884,1082714
02.02.2019,ENVIRONMENT DIRECTORATE,F H BRUNDLE,"1,146.50",ENGINEERING CRAFTS,MATERIALS,5902341882,1082714
02.02.2019,ENVIRONMENT DIRECTORATE,F H BRUNDLE,"1,840.10",ENGINEERING CRAFTS,MATERIALS,5902341879,1082714
02.02.2019,ENVIRONMENT DIRECTORATE,LONDON TOOLS LIMITED,280,ENGINEERING CRAFTS,MATERIALS,5902342074,1000003017
02.02.2019,ENVIRONMENT DIRECTORATE,LONDON TOOLS LIMITED,694.5,PUBLIC LIGHTING,MATERIALS,5902342075,1000003017
02.02.2019,ENVIRONMENT DIRECTORATE,HIGHWAY QUALITY SOLUTIONS LTD,"1,867.87",STREET WORKS OVERHEADS,BOOKS & PUBLICATIONS,5902341906,1000078521
02.02.2019,F & C S EXCLUDING CORPORATE BUDGETS,L W B TRAINING LTD,500,ADMINISTRATIVE SUPPORT,TRAINING,5902340727,1000073722
02.02.2019,F & C S EXCLUDING CORPORATE BUDGETS,ALARM,944,RISK ADMIN,SUBSCRIPTIONS,5902342095,11160119
02.02.2019,HOUSING HRA,CALFORD SEADEN LLP,516.1,CAPITAL PS (HRA),CONSTRUCTION FEES  - EXTERNAL,5902341945,1061592
02.02.2019,HOUSING HRA,CALFORD SEADEN LLP,946.51,CAPITAL PS (HRA),CONSTRUCTION FEES  - EXTERNAL,5902341471,1061592
02.02.2019,HOUSING HRA,CALFORD SEADEN LLP,"1,922.76",CAPITAL PS (HRA),CONSTRUCTION FEES  - EXTERNAL,5902341565,1061592
02.02.2019,HOUSING HRA,DOWNTOWN LEISURE LIMITED,"239,308.79",CAPITAL PS (HRA),CONSTRUCTION MAIN CONTRACT -CERTIFICATED,2102916777,3000002059
02.02.2019,HOUSING HRA,GUIDELINE LIFT SERVICES LTD,"45,519.79",GUIDELINE,MANUAL CREDITORS,5902342021,1000064176
02.02.2019,HOUSING HRA,GUIDELINE LIFT SERVICES LTD,"61,322.19",GUIDELINE,MANUAL CREDITORS,5902341910,1000064176
02.02.2019,HOUSING HRA,GUIDELINE LIFT SERVICES LTD,"138,259.36",GUIDELINE,MANUAL CREDITORS,5902342024,1000064176
02.02.2019,HOUSING HRA,GAS ADVISORY SERVICES LIMITED,"5,631.58",PHOENIX,MANUAL CREDITORS,5902342105,1000064649
02.02.2019,HOUSING STRATEGY AND OPTIONS,TFL TELESALES / OYSTER FULFILMENT,560,HOMELESS & HOUSING OPTIONS MGT,PUBLIC TRANSPORT,5902341898,1000059727
02.02.2019,HOUSING STRATEGY AND OPTIONS,STONEWALL EQUALITY LTD,"2,500.00",HOMELESS & HOUSING OPTIONS MGT,TRAINING,5902340947,1000055279
02.02.2019,HOUSING STRATEGY AND OPTIONS,CARIDON LANDLORD SOLUTIONS LTD,"1,240.62",HOMELESS PROJECTS,GRANTS,5902341846,1000080555
02.02.2019,HOUSING STRATEGY AND OPTIONS,TABRIS LTD,"10,800.00",HOMELESSNESS TRAINING ACADEMY,TRAINING,5902341904,1000080027
02.02.2019,LEISURE DIRECTORATE,DANFO UK LTD,300,BURGESS AREA TEAM,OTHER R&M,5902342011,1000078528
02.02.2019,LEISURE DIRECTORATE,TGMS LTD,"3,250.00",CEMETERIES,OTHER R&M,5902341218,1000066904
02.02.2019,LEISURE DIRECTORATE,CASTLE WATER LTD,"1,246.56",DULWICH AREA TEAM,WATER,5902341929,1000078867
02.02.2019,LEISURE DIRECTORATE,MENTIVITY,"2,400.00",HOLIDAY PROGRAMME,FREELANCE SPECIALISTS,5902341176,1000081738
02.02.2019,LEISURE DIRECTORATE,INFINITY NETWORKS LTD,287,IT DEVELOPMENT,COMMS & COMPUTING CONTRACT CHARGES,5902341525,1000035571
02.02.2019,LEISURE DIRECTORATE,INFINITY NETWORKS LTD,356,IT DEVELOPMENT,COMMS & COMPUTING CONTRACT CHARGES,5902341525,1000035571
02.02.2019,LEISURE DIRECTORATE,ISUBSCRIBE LIMITED,985.29,LIBARIES DEVELOPMENT,BOOKS & PUBLICATIONS,5902340766,1000066066
02.02.2019,LEISURE DIRECTORATE,DARCY SPILLCARE,252.9,SDM BUDGET,EQUIPMENT PURCHASE & REPAIR,5902341719,1000058102
02.02.2019,LEISURE DIRECTORATE,ALPHA BUILDING SERVICES ENGINEERING,333.33,SDM BUDGET,TRAINING,5902341714,1000065649
02.02.2019,LEISURE DIRECTORATE,THAMES WATER UTILITIES LTD,-564.11,SDM BUDGET,WATER,5902342098,1630755
02.02.2019,LEISURE DIRECTORATE,THAMES WATER UTILITIES LTD,"1,090.32",SDM BUDGET,WATER,5902342100,1630755
02.02.2019,LEISURE DIRECTORATE,INFINITY NETWORKS LTD,894,TEMPORARY NEWINGTON,COMMS & COMPUTING CONTRACT CHARGES,5902341521,1000035571
02.02.2019,PLANNING AND TRANSPORT,BUTLER HEGARTY ARCHITECTS LTD,700,PECKHAM TOWNSCAPE HERITAGE INITIATIVE,MISCELLANEOUS EXPENSES,5902342071,1000077437
02.02.2019,PROPERTY SERVICES,STANBURY BUILDING SERVICES LTD,950,CPHA  MANAGED PROPERTIES,BUILDING R&M,5902342014,1000078207
02.02.2019,PUBLIC HEALTH,BEORMUND PRIMARY SCHOOL,"2,000.00",HEALTHY SCHOOLS (PHSE),MISCELLANEOUS RECHARGES,2102916790,5001000008
02.02.2019,PUBLIC HEALTH,DELOITTE LLP,"4,600.00",MASTER PLAN-H/WAY & TRANS INTERCHANGE,PROFESSIONAL FEES,5902341917,1000050842
02.02.2019,PUBLIC HEALTH,LONDON BOROUGH OF LAMBETH,"-3,658.00",SEXUAL HEALTH - ADVICE,EXTERNAL AGENCIES AND BODIES,5902341936,1000044545
02.02.2019,PUBLIC HEALTH,LONDON BOROUGH OF LAMBETH,"127,207.00",SEXUAL HEALTH - ADVICE,EXTERNAL AGENCIES AND BODIES,5902341934,1000044545
02.02.2019,PUBLIC HEALTH,LONDON BOROUGH OF LAMBETH,"1,440,695.00",SEXUAL HEALTH - CONTRACEPTION,EXTERNAL AGENCIES AND BODIES,5902341934,1000044545
02.02.2019,PUBLIC HEALTH,BARTS HEALTH NHS TRUST,"14,380.53",SEXUAL HEALTH - STI,EXTERNAL AGENCIES AND BODIES,5902341918,1000055762
02.02.2019,PUBLIC HEALTH,LEWISHAM AND GREENWICH NHS TRUST,"16,087.85",SEXUAL HEALTH - STI,EXTERNAL AGENCIES AND BODIES,5902341909,1000076183
02.02.2019,PUBLIC HEALTH,ROYAL FREE LONDON NHS FOUNDATION TRUST,"16,544.78",SEXUAL HEALTH - STI,EXTERNAL AGENCIES AND BODIES,5902341905,1000076322
02.02.2019,PUBLIC HEALTH,LONDON BOROUGH OF LAMBETH,"-75,000.00",SEXUAL HEALTH - STI,EXTERNAL AGENCIES AND BODIES,5902341951,1000044545
02.02.2019,PUBLIC HEALTH,LONDON BOROUGH OF LAMBETH,"-56,548.54",SEXUAL HEALTH - STI,EXTERNAL AGENCIES AND BODIES,5902341942,1000044545
02.02.2019,PUBLIC HEALTH,LONDON BOROUGH OF LAMBETH,"-23,344.00",SEXUAL HEALTH - STI,EXTERNAL AGENCIES AND BODIES,5902341948,1000044545
02.02.2019,PUBLIC HEALTH,LONDON BOROUGH OF LAMBETH,"5,938.00",SEXUAL HEALTH - STI,EXTERNAL AGENCIES AND BODIES,5902341959,1000044545
02.02.2019,PUBLIC HEALTH,LONDON BOROUGH OF LAMBETH,"74,298.00",SEXUAL HEALTH - STI,EXTERNAL AGENCIES AND BODIES,5902341955,1000044545
02.02.2019,PUBLIC HEALTH,LONDON BOROUGH OF LAMBETH,"3,221,402.00",SEXUAL HEALTH - STI,EXTERNAL AGENCIES AND BODIES,5902341934,1000044545
02.02.2019,RESIDENT SERVICES,CRIME CONCERN UK LTD,"1,860.00",OPERATIONS/OFFICES ACCOMMODATION,OTHER CONTRACTORS,5902342101,1000067928
02.02.2019,RESIDENT SERVICES,CHARTWELLS,"4,931.00",SUPPORTED HOSTELS,CATERING MATERIALS & SUPPLIES,5902342033,1000010625
02.02.2019,RESIDENT SERVICES,LONDON TOOLS LIMITED,310,TA HOSTELS,MATERIALS,5902342046,1000003017
02.02.2019,RESIDENT SERVICES,NORBURY PROPERTY SERVICES (LONDON) LTD,400,TA PLACEMENTS,EXTERNAL AGENCIES AND BODIES,5902341859,1000075566
02.02.2019,SOUTHWARK BUILDING SERVICES,LONDON TOOLS LIMITED,"1,080.00",R & M OVERHEADS,EQUIPMENT PURCHASE & REPAIR,5902342066,1000003017
02.02.2019,SOUTHWARK BUILDING SERVICES,LONDON TOOLS LIMITED,"1,725.00",R & M OVERHEADS,EQUIPMENT PURCHASE & REPAIR,5902342064,1000003017
02.02.2019,SOUTHWARK BUILDING SERVICES,TRAVIS PERKINS,380,R & M OVERHEADS,MATERIALS,5902341999,1514319
02.02.2019,SOUTHWARK BUILDING SERVICES,KENT COUNTY COUNCIL - LASER,256.62,R & M OVERHEADS,VEHICLE FUEL,5902342088,1000012926
02.02.2019,SOUTHWARK BUILDING SERVICES,KENT COUNTY COUNCIL - LASER,310.02,R & M OVERHEADS,VEHICLE FUEL,5902342044,1000012926
02.02.2019,SOUTHWARK BUILDING SERVICES,KENT COUNTY COUNCIL - LASER,320.14,R & M OVERHEADS,VEHICLE FUEL,5902342081,1000012926
02.02.2019,SOUTHWARK BUILDING SERVICES,KENT COUNTY COUNCIL - LASER,417.07,R & M OVERHEADS,VEHICLE FUEL,5902342045,1000012926
02.02.2019,SOUTHWARK BUILDING SERVICES,KENT COUNTY COUNCIL - LASER,452.24,R & M OVERHEADS,VEHICLE FUEL,5902342076,1000012926
02.02.2019,SOUTHWARK BUILDING SERVICES,KENT COUNTY COUNCIL - LASER,480.82,R & M OVERHEADS,VEHICLE FUEL,5902342057,1000012926
02.02.2019,SOUTHWARK BUILDING SERVICES,KENT COUNTY COUNCIL - LASER,510.67,R & M OVERHEADS,VEHICLE FUEL,5902342037,1000012926
02.02.2019,SOUTHWARK BUILDING SERVICES,KENT COUNTY COUNCIL - LASER,563.6,R & M OVERHEADS,VEHICLE FUEL,5902342097,1000012926
02.02.2019,SOUTHWARK BUILDING SERVICES,KENT COUNTY COUNCIL - LASER,618.73,R & M OVERHEADS,VEHICLE FUEL,5902342048,1000012926
02.02.2019,SOUTHWARK BUILDING SERVICES,KENT COUNTY COUNCIL - LASER,920.42,R & M OVERHEADS,VEHICLE FUEL,5902342056,1000012926
02.02.2019,SOUTHWARK BUILDING SERVICES,KENT COUNTY COUNCIL - LASER,"1,842.06",R & M OVERHEADS,VEHICLE FUEL,5902342094,1000012926
02.02.2019,SOUTHWARK BUILDING SERVICES,LONDON TOOLS LIMITED,800,STORES/LOGISTICS,CREDITORS -GR/IR CLEARING ACCOUNT,5902342008,1000003017
02.02.2019,SOUTHWARK BUILDING SERVICES,LONDON TOOLS LIMITED,930,STORES/LOGISTICS,CREDITORS -GR/IR CLEARING ACCOUNT,5902342078,1000003017
02.02.2019,SOUTHWARK BUILDING SERVICES,KENT COUNTY COUNCIL - LASER,"2,951.35",STORES/LOGISTICS,VEHICLE FUEL,5902342065,1000012926
02.02.2019,STRATEGIC FINANCING BUDGETS,JOHNSON AUSTIN LTD,500,PROPERTY RELATED INSURANCE,PROFESSIONAL FEES,5902341912,1000040202
03.02.2019,CHIEF EXECUTIVE'S OFFICE,CONTEMPORARY ART SOCIETY,"2,250.00",HERNE HILL,GRANTS,5902341062,1000076023
03.02.2019,CHILDREN AND ADULT,EAGLE SOLUTIONS SERVICES LTD,"2,760.00",CAPITAL PS (EDUCATION),CONSTRUCTION FEES - QUANTITY SURVEYOR,5902341394,1000043028
03.02.2019,CHILDREN'S SERVICES,JOHN GUEST SAFEGUARDING LIMITED,400,PRIMARY ACHIEVEMENT,CONSULTANTS SERVICES,5902341249,1000065465
03.02.2019,ENVIRONMENT AND LEISURE,INTO SERVICES LONDON LTD,350,CAPITAL PS (LEISURE),CONST'N MAIN CONTRACT - NON CERTIFICATED,5902341083,1000059328
03.02.2019,ENVIRONMENT AND LEISURE,LAND USE CONSULTANTS LTD,"2,500.00",CAPITAL PS (LEISURE),CONSTRUCTION FEES  - EXTERNAL,5902340979,11132526
03.02.2019,ENVIRONMENT AND LEISURE,LAND USE CONSULTANTS LTD,"5,911.25",CAPITAL PS (LEISURE),CONSTRUCTION FEES  - EXTERNAL,5902340982,11132526
03.02.2019,ENVIRONMENT DIRECTORATE,ONSITE SUPPORT LTD,275.8,ESTATES  (NORTH WEST),FURNITURE PURCHASE & REPAIR,5902341953,1000043198
03.02.2019,F & C S EXCLUDING CORPORATE BUDGETS,DSI BILLING SERVICES LTD,"1,698.33",ADMINISTRATIVE SUPPORT,POSTAGES,5902341323,1000058640
03.02.2019,HOUSING HRA,CALFORD SEADEN LLP,"1,075.00",CAPITAL PS (HRA),CONSTRUCTION FEES  - EXTERNAL,5902341531,1061592
03.02.2019,HOUSING HRA,CALFORD SEADEN LLP,"2,314.28",CAPITAL PS (HRA),CONSTRUCTION FEES  - EXTERNAL,5902341493,1061592
03.02.2019,HOUSING HRA,CALFORD SEADEN LLP,"2,343.63",CAPITAL PS (HRA),CONSTRUCTION FEES  - EXTERNAL,5902341101,1061592
03.02.2019,HOUSING HRA,CALFORD SEADEN LLP,"2,352.00",CAPITAL PS (HRA),CONSTRUCTION FEES  - EXTERNAL,5902341098,1061592
03.02.2019,HOUSING HRA,CALFORD SEADEN LLP,"2,427.27",CAPITAL PS (HRA),CONSTRUCTION FEES  - EXTERNAL,5902341086,1061592
03.02.2019,LEISURE DIRECTORATE,PHS GROUP PLC,381.47,CEMETERIES,OTHER CLEANING,5902341347,1851993
03.02.2019,MODERNISATION HGF,INTERSERVE (FACILITIES MANAGEMENT),"7,804.14",FM SERVICES BY INTERSERVE,BUILDING R&M,5902341788,1000070792
03.02.2019,PLANNING AND TRANSPORT,SOUTHWARK NEWSPAPER LTD,504,DEVELOPMENT CONTROL ADMINSTRATION,MARKETING & PUBLICITY SERVICES,5902341123,1556957
04.02.2019,ADULT SOCIAL CARE,JUST CHECKING LTD,"-4,461.00",SOUTHWARK RESOURCE CENTRE,EQUIPMENT PURCHASE & REPAIR,5902342490,1000052776
04.02.2019,ADULT SOCIAL CARE,JUST CHECKING LTD,"4,461.00",SOUTHWARK RESOURCE CENTRE,EQUIPMENT PURCHASE & REPAIR,5902342233,1000052776
04.02.2019,CHIEF EXECUTIVE'S OFFICE,A K FOOD AND WINE LTD,"3,016.64",HERNE HILL,GRANTS,5902341169,1000079996
04.02.2019,CHILDREN'S SERVICES,RPMUSIC,"5,000.00",LEA MUSIC SERVICE(310) - 5018566,CONSULTANTS SERVICES,5902341159,1000073207
04.02.2019,CHILDREN'S SERVICES,REDACTED PERSONAL DATA,"-1,750.00",S24 CLA,RESIDENTIAL CARE,REDACTED,REDACTED
04.02.2019,CHILDREN'S SERVICES,REDACTED PERSONAL DATA,"1,750.00",S24 CLA,RESIDENTIAL CARE,REDACTED,REDACTED
04.02.2019,CHILDREN'S SERVICES,BDO LLP,"2,135.00",SCHOOLS AUDIT,PAYMENTS FOR FINANCIAL SERVICES,5902341477,1000057898
04.02.2019,COMMUNITIES,DEBBIE WESTERN FLOWERS LTD,479.16,MAYORAL SUPPORT,MISCELLANEOUS EXPENSES,5902341212,1000081686
04.02.2019,CUSTOMER EXPERIENCE,QMATIC (UNITER KINGDOM) LTD,315,WALWORTH MSSP,SOFTWARE,5902341510,11278666
04.02.2019,ENVIRONMENT DIRECTORATE,LONDON HIRE LIMITED,"-26,284.00",COMMERCIAL VEH CTRL A/C,HIRED VEHICLES,5902342463,1383812
04.02.2019,ENVIRONMENT DIRECTORATE,LONDON HIRE LIMITED,"26,284.00",COMMERCIAL VEH CTRL A/C,HIRED VEHICLES,5902342458,1383812
04.02.2019,ENVIRONMENT DIRECTORATE,BELL BRUSH COMPANY,511.05,MANAGEMENT TEAM,MATERIALS,5902341105,1259776
04.02.2019,ENVIRONMENT DIRECTORATE,CIRRUS RESEARCH PLC,413,NOISE& AIR QUALITY,EQUIPMENT PURCHASE & REPAIR,5902341505,1000077731
04.02.2019,ENVIRONMENT DIRECTORATE,KENT COUNTY COUNCIL,"1,586.00",TRADING STANDARDS,PROFESSIONAL FEES,5902341417,1000028346
04.02.2019,F & C S EXCLUDING CORPORATE BUDGETS,BDO LLP,431.25,INTERNAL AUDIT CONTRACTS,PAYMENTS FOR FINANCIAL SERVICES,5902341477,1000057898
04.02.2019,F & C S EXCLUDING CORPORATE BUDGETS,BDO LLP,"19,471.00",INTERNAL AUDIT CONTRACTS,PAYMENTS FOR FINANCIAL SERVICES,5902341477,1000057898
04.02.2019,F & C S EXCLUDING CORPORATE BUDGETS,BDO LLP,"2,083.33",RISK ADMIN,PROFESSIONAL FEES,5902341299,1000057898
04.02.2019,HOUSING HRA,PRB ESTATES LTD,"-9,107.00",CAPITAL PS (HRA),CONST'N MAIN CONTRACT - NON CERTIFICATED,5902342316,3000001691
04.02.2019,HOUSING HRA,PRB ESTATES LTD,"9,107.00",CAPITAL PS (HRA),CONST'N MAIN CONTRACT - NON CERTIFICATED,5902342036,3000001691
04.02.2019,HOUSING HRA,CYCLEHOOP LTD,790,CAPITAL PS (HRA),CONSTRUCTION MAIN CONTRACT -CERTIFICATED,5902341700,1000057894
04.02.2019,LEISURE DIRECTORATE,RANDALL SHAW BILLINGHAM LTD,"3,612.00",CREMATORIUM,BUILDING R&M,5902341057,1000057014
04.02.2019,LEISURE DIRECTORATE,LYFTHAUS LTD,375,CREMATORIUM,OTHER R&M,5902341742,1000082129
04.02.2019,PUBLIC HEALTH,CARL TURNER ARCHITECTS LTD,"11,822.50",MASTER PLAN-H/WAY & TRANS INTERCHANGE,PROFESSIONAL FEES,5902341130,1000060355
04.02.2019,PUBLIC HEALTH,KALMARS COMMERCIAL LTD,"37,000.00",OKR MASTER PLANNING,PROFESSIONAL FEES,5902341228,1000081844
05.02.2019,ADULT SOCIAL CARE,WINDSOR WALK HOUSING ASSOCIATION,264.2,APPOINTEESHIPS,OTHER PAYMENTS FOR CLIENTS,2102917074,1012653
05.02.2019,ADULT SOCIAL CARE,CHOICE SUPPORT,400,APPOINTEESHIPS,OTHER PAYMENTS FOR CLIENTS,2102917075,1104183
05.02.2019,ADULT SOCIAL CARE,CHOICE SUPPORT,480,APPOINTEESHIPS,OTHER PAYMENTS FOR CLIENTS,2102917021,1104183
05.02.2019,ADULT SOCIAL CARE,EQUINOX CARE,"1,090.20",APPOINTEESHIPS,OTHER PAYMENTS FOR CLIENTS,2102917029,11325422
05.02.2019,ADULT SOCIAL CARE,EQUINOX CARE,"1,384.72",APPOINTEESHIPS,OTHER PAYMENTS FOR CLIENTS,2102917031,11325422
05.02.2019,ADULT SOCIAL CARE,HYDE HOUSING ASSOCIATION LTD,849.2,APPOINTEESHIPS,OTHER PAYMENTS FOR CLIENTS,2102917059,1000013980
05.02.2019,ADULT SOCIAL CARE,HYDE HOUSING ASSOCIATION LTD,"1,166.68",APPOINTEESHIPS,OTHER PAYMENTS FOR CLIENTS,2102917058,1000013980
05.02.2019,ADULT SOCIAL CARE,UPLANDS CARE HOME,300,APPOINTEESHIPS,OTHER PAYMENTS FOR CLIENTS,2102917019,1000014374
05.02.2019,ADULT SOCIAL CARE,AMBLESIDE LODGE,360,APPOINTEESHIPS,OTHER PAYMENTS FOR CLIENTS,2102917066,1000042535
05.02.2019,ADULT SOCIAL CARE,HINDWOODS LTD,267.09,APPOINTEESHIPS,OTHER PAYMENTS FOR CLIENTS,2102917010,1000044989
05.02.2019,ADULT SOCIAL CARE,HINDWOODS LTD,267.09,APPOINTEESHIPS,OTHER PAYMENTS FOR CLIENTS,2102917011,1000044989
05.02.2019,ADULT SOCIAL CARE,HINDWOODS LTD,267.09,APPOINTEESHIPS,OTHER PAYMENTS FOR CLIENTS,2102917012,1000044989
05.02.2019,ADULT SOCIAL CARE,HINDWOODS LTD,267.09,APPOINTEESHIPS,OTHER PAYMENTS FOR CLIENTS,2102917013,1000044989
05.02.2019,ADULT SOCIAL CARE,HINDWOODS LTD,267.09,APPOINTEESHIPS,OTHER PAYMENTS FOR CLIENTS,2102917014,1000044989
05.02.2019,ADULT SOCIAL CARE,HINDWOODS LTD,267.09,APPOINTEESHIPS,OTHER PAYMENTS FOR CLIENTS,2102917015,1000044989
05.02.2019,ADULT SOCIAL CARE,GOLDEN LANE HOUSING LTD,892.08,APPOINTEESHIPS,OTHER PAYMENTS FOR CLIENTS,2102917067,1000046267
05.02.2019,ADULT SOCIAL CARE,GLEN CARE GROUP,300,APPOINTEESHIPS,OTHER PAYMENTS FOR CLIENTS,2102917063,1000050223
05.02.2019,ADULT SOCIAL CARE,AFFINITY SUTTON HOMES LTD,319.24,APPOINTEESHIPS,OTHER PAYMENTS FOR CLIENTS,2102917070,1000051647
05.02.2019,ADULT SOCIAL CARE,CRYSTAL MANAGEMENT SERVICE LTD,280,APPOINTEESHIPS,OTHER PAYMENTS FOR CLIENTS,2102917023,1000053550
05.02.2019,ADULT SOCIAL CARE,HEXAGON HOUSING ASSOCIATION LTD,564.12,APPOINTEESHIPS,OTHER PAYMENTS FOR CLIENTS,2102917032,1000056905
05.02.2019,ADULT SOCIAL CARE,DINARDO SUPPORTS LTD,378.43,APPOINTEESHIPS,OTHER PAYMENTS FOR CLIENTS,2102917068,1000063093
05.02.2019,ADULT SOCIAL CARE,DINARDO SUPPORTS LTD,378.43,APPOINTEESHIPS,OTHER PAYMENTS FOR CLIENTS,2102917069,1000063093
05.02.2019,ADULT SOCIAL CARE,FOUNTAIN CARE LTD,329.4,APPOINTEESHIPS,OTHER PAYMENTS FOR CLIENTS,2102916989,1000066815
05.02.2019,ADULT SOCIAL CARE,LOOK AHEAD CARE AND SUPPORT LTD,278.08,APPOINTEESHIPS,OTHER PAYMENTS FOR CLIENTS,2102917039,1000072923
05.02.2019,ADULT SOCIAL CARE,LOOK AHEAD CARE AND SUPPORT LTD,935.16,APPOINTEESHIPS,OTHER PAYMENTS FOR CLIENTS,2102917040,1000072923
05.02.2019,ADULT SOCIAL CARE,LONDON CYRENIANS HOUSING LTD,600,APPOINTEESHIPS,OTHER PAYMENTS FOR CLIENTS,2102917034,1000078600
05.02.2019,ADULT SOCIAL CARE,ELIZABETH PETERS CARE HOMES LTD,280,APPOINTEESHIPS,OTHER PAYMENTS FOR CLIENTS,2102917027,1000078858
05.02.2019,ADULT SOCIAL CARE,DANSHELL GROUP,320,APPOINTEESHIPS,OTHER PAYMENTS FOR CLIENTS,2102917026,1000079284
05.02.2019,ADULT SOCIAL CARE,POP INN CAFE,280,APPOINTEESHIPS,OTHER PAYMENTS FOR CLIENTS,2102917047,1000079353
05.02.2019,ADULT SOCIAL CARE,CYGNET HOSPITAL BURY,340,APPOINTEESHIPS,OTHER PAYMENTS FOR CLIENTS,2102917025,1000079492
05.02.2019,ADULT SOCIAL CARE,CHEGWORTH NURSING HOME,300,APPOINTEESHIPS,OTHER PAYMENTS FOR CLIENTS,2102917080,1000080383
05.02.2019,ADULT SOCIAL CARE,STRADA CARE LTD,"1,700.00",APPOINTEESHIPS,OTHER PAYMENTS FOR CLIENTS,2102917079,1000082133
05.02.2019,ADULT SOCIAL CARE,REDACTED PERSONAL DATA,320,APPOINTEESHIPS,OTHER PAYMENTS FOR CLIENTS,REDACTED,REDACTED
05.02.2019,ADULT SOCIAL CARE,REDACTED PERSONAL DATA,260,APPOINTEESHIPS,OTHER PAYMENTS FOR CLIENTS,REDACTED,REDACTED
05.02.2019,ADULT SOCIAL CARE,REDACTED PERSONAL DATA,583.4,APPOINTEESHIPS,OTHER PAYMENTS FOR CLIENTS,REDACTED,REDACTED
05.02.2019,ADULT SOCIAL CARE,REDACTED PERSONAL DATA,460,APPOINTEESHIPS,OTHER PAYMENTS FOR CLIENTS,REDACTED,REDACTED
05.02.2019,ADULT SOCIAL CARE,REDACTED PERSONAL DATA,484,APPOINTEESHIPS,OTHER PAYMENTS FOR CLIENTS,REDACTED,REDACTED
05.02.2019,ADULT SOCIAL CARE,REDACTED PERSONAL DATA,680,APPOINTEESHIPS,OTHER PAYMENTS FOR CLIENTS,REDACTED,REDACTED
05.02.2019,ADULT SOCIAL CARE,REDACTED PERSONAL DATA,400,APPOINTEESHIPS,OTHER PAYMENTS FOR CLIENTS,REDACTED,REDACTED
05.02.2019,ADULT SOCIAL CARE,REDACTED PERSONAL DATA,330,APPOINTEESHIPS,OTHER PAYMENTS FOR CLIENTS,REDACTED,REDACTED
05.02.2019,ADULT SOCIAL CARE,ACCESS MOBILITY TRANSPORT LTD,"2,393.60",LD LTS 18-64,CLIENT TRANSPORT,2102916931,1000074637
05.02.2019,ADULT SOCIAL CARE,NATIONAL AUTISTIC SOCIETY CARE PACK,"3,449.88",LD LTS 18-64,DAYCARE,2102916930,1000020538
05.02.2019,ADULT SOCIAL CARE,ACT TOO LTD,400,LD LTS 18-64,DAYCARE,2102916927,1000053657
05.02.2019,ADULT SOCIAL CARE,THE NEW SHOOTS,300,LD LTS 18-64,DAYCARE,2102916928,1000073970
05.02.2019,ADULT SOCIAL CARE,CLOUDS END SERVICES LTD,500,PHY LTS 65+,EXTERNAL AGENCIES AND BODIES,2102916929,1000079240
05.02.2019,ADULT SOCIAL CARE,HC-ONE LTD (TOWER BRIDGE CARE HOME),"2,272.05",PHY LTS 65+,PLACEMENTS - RESPITE,2102916932,1000067670
05.02.2019,ADULT SOCIAL CARE,ROMEDICAL LTD,579,SAFEGUARDING TEAM,OTHER CONTRACTORS,5902342123,1000076318
05.02.2019,ADULT SOCIAL CARE,ROMEDICAL LTD,753.97,SAFEGUARDING TEAM,OTHER CONTRACTORS,5902342122,1000076318
05.02.2019,ADULT SOCIAL CARE,MEDACS HOMECARE,577.2,SPECIALIST CARE,SECTION 17 PAYMENTS TO AGENCIES/CARERS,2102916959,11287415
05.02.2019,ADULT SOCIAL CARE,MEDACS HOMECARE,952.41,SPECIALIST CARE,SECTION 17 PAYMENTS TO AGENCIES/CARERS,2102916960,11287415
05.02.2019,ADULT SOCIAL CARE,CONTACT PROFESSIONALS,342,SPECIALIST CARE,SECTION 17 PAYMENTS TO AGENCIES/CARERS,2102916944,1000057263
05.02.2019,ADULT SOCIAL CARE,CONTACT PROFESSIONALS,465.5,SPECIALIST CARE,SECTION 17 PAYMENTS TO AGENCIES/CARERS,2102916941,1000057263
05.02.2019,ADULT SOCIAL CARE,CONTACT PROFESSIONALS,516,SPECIALIST CARE,SECTION 17 PAYMENTS TO AGENCIES/CARERS,2102916946,1000057263
05.02.2019,ADULT SOCIAL CARE,CONTACT PROFESSIONALS,531,SPECIALIST CARE,SECTION 17 PAYMENTS TO AGENCIES/CARERS,2102916955,1000057263
05.02.2019,ADULT SOCIAL CARE,CONTACT PROFESSIONALS,570,SPECIALIST CARE,SECTION 17 PAYMENTS TO AGENCIES/CARERS,2102916939,1000057263
05.02.2019,ADULT SOCIAL CARE,CONTACT PROFESSIONALS,570,SPECIALIST CARE,SECTION 17 PAYMENTS TO AGENCIES/CARERS,2102916951,1000057263
05.02.2019,ADULT SOCIAL CARE,CONTACT PROFESSIONALS,645,SPECIALIST CARE,SECTION 17 PAYMENTS TO AGENCIES/CARERS,2102916936,1000057263
05.02.2019,ADULT SOCIAL CARE,CONTACT PROFESSIONALS,645,SPECIALIST CARE,SECTION 17 PAYMENTS TO AGENCIES/CARERS,2102916937,1000057263
05.02.2019,ADULT SOCIAL CARE,CONTACT PROFESSIONALS,645,SPECIALIST CARE,SECTION 17 PAYMENTS TO AGENCIES/CARERS,2102916938,1000057263
05.02.2019,ADULT SOCIAL CARE,CONTACT PROFESSIONALS,645,SPECIALIST CARE,SECTION 17 PAYMENTS TO AGENCIES/CARERS,2102916940,1000057263
05.02.2019,ADULT SOCIAL CARE,CONTACT PROFESSIONALS,645,SPECIALIST CARE,SECTION 17 PAYMENTS TO AGENCIES/CARERS,2102916943,1000057263
05.02.2019,ADULT SOCIAL CARE,CONTACT PROFESSIONALS,645,SPECIALIST CARE,SECTION 17 PAYMENTS TO AGENCIES/CARERS,2102916945,1000057263
05.02.2019,ADULT SOCIAL CARE,CONTACT PROFESSIONALS,645,SPECIALIST CARE,SECTION 17 PAYMENTS TO AGENCIES/CARERS,2102916947,1000057263
05.02.2019,ADULT SOCIAL CARE,CONTACT PROFESSIONALS,645,SPECIALIST CARE,SECTION 17 PAYMENTS TO AGENCIES/CARERS,2102916950,1000057263
05.02.2019,ADULT SOCIAL CARE,CONTACT PROFESSIONALS,645,SPECIALIST CARE,SECTION 17 PAYMENTS TO AGENCIES/CARERS,2102916952,1000057263
05.02.2019,ADULT SOCIAL CARE,CONTACT PROFESSIONALS,645,SPECIALIST CARE,SECTION 17 PAYMENTS TO AGENCIES/CARERS,2102916953,1000057263
05.02.2019,ADULT SOCIAL CARE,CONTACT PROFESSIONALS,645,SPECIALIST CARE,SECTION 17 PAYMENTS TO AGENCIES/CARERS,2102916954,1000057263
05.02.2019,ADULT SOCIAL CARE,CONTACT PROFESSIONALS,645,SPECIALIST CARE,SECTION 17 PAYMENTS TO AGENCIES/CARERS,2102916956,1000057263
05.02.2019,ADULT SOCIAL CARE,CONTACT PROFESSIONALS,760,SPECIALIST CARE,SECTION 17 PAYMENTS TO AGENCIES/CARERS,2102916933,1000057263
05.02.2019,ADULT SOCIAL CARE,CONTACT PROFESSIONALS,760,SPECIALIST CARE,SECTION 17 PAYMENTS TO AGENCIES/CARERS,2102916934,1000057263
05.02.2019,ADULT SOCIAL CARE,CONTACT PROFESSIONALS,760,SPECIALIST CARE,SECTION 17 PAYMENTS TO AGENCIES/CARERS,2102916942,1000057263
05.02.2019,ADULT SOCIAL CARE,CONTACT PROFESSIONALS,760,SPECIALIST CARE,SECTION 17 PAYMENTS TO AGENCIES/CARERS,2102916949,1000057263
05.02.2019,ADULT SOCIAL CARE,METRO HOMECARE LTD,348.75,SPECIALIST CARE,SECTION 17 PAYMENTS TO AGENCIES/CARERS,2102916923,1000070695
05.02.2019,ADULT SOCIAL CARE,METRO HOMECARE LTD,446.4,SPECIALIST CARE,SECTION 17 PAYMENTS TO AGENCIES/CARERS,2102916922,1000070695
05.02.2019,ADULT SOCIAL CARE,METRO HOMECARE LTD,446.4,SPECIALIST CARE,SECTION 17 PAYMENTS TO AGENCIES/CARERS,2102916924,1000070695
05.02.2019,ADULT SOCIAL CARE,METRO HOMECARE LTD,502.2,SPECIALIST CARE,SECTION 17 PAYMENTS TO AGENCIES/CARERS,2102916919,1000070695
05.02.2019,ADULT SOCIAL CARE,METRO HOMECARE LTD,502.2,SPECIALIST CARE,SECTION 17 PAYMENTS TO AGENCIES/CARERS,2102916925,1000070695
05.02.2019,ADULT SOCIAL CARE,MEDACS HOMECARE,808.08,TRANSITIONS 14-18YRS,SECTION 17 PAYMENTS TO AGENCIES/CARERS,2102916961,11287415
05.02.2019,ASSET MANAGEMENT,HIGHER ELEVATION LTD,"5,216.00",ADAPTATIONS,BUILDING R&M,2102917176,3000001900
05.02.2019,ASSET MANAGEMENT,SGN CONNECTIONS LTD,847.2,ENG CONTRACTS (SOUTH),OTHER R&M,5902342242,1000055428
05.02.2019,"BOROUGH, BANKSIDE AND WALWORTH COMMUNITY COUNCIL",DECIMA STREET T&RA,"2,000.00",11TH ANNUAL DECIMA STREET TRA FESTIVAL,GRANT,CHEQUE PAYMENT,CHEQUE PAYMENT
05.02.2019,CHIEF EXECUTIVE,ADDLESHAW GODDARD LLP,958.13,CAPITAL PS (REGEN),CONSTRUCTION FEES - LEGAL,5902342119,1000079782
05.02.2019,CHILDREN AND ADULT,CHESTNUT PRODUCTS LIMITED,"9,298.03",CAPITAL PS (EDUCATION),CONSTRUCTION FEES - QUANTITY SURVEYOR,2102917177,3000001880
05.02.2019,CHILDREN AND ADULT,INTERSERVE (FACILITIES MANAGEMENT),"1,313.93",CAPITAL PS (SOC SERV),CONSTRUCTION MAIN CONTRACT,2102917175,3000000166
05.02.2019,CHILDREN'S SERVICES,REDACTED PERSONAL DATA,369.16,ADOPTION PLACEMENTS & INTER AGENCY,PAYMENTS TO CARERS,REDACTED,REDACTED
05.02.2019,CHILDREN'S SERVICES,FOSTERING LONDON LTD,"2,325.00",AGENCY FOSTERING,EXTERNAL AGENCIES AND BODIES,2102916966,1000077541
05.02.2019,CHILDREN'S SERVICES,FOSTERING LONDON LTD,"4,650.00",AGENCY FOSTERING,EXTERNAL AGENCIES AND BODIES,2102916968,1000077541
05.02.2019,CHILDREN'S SERVICES,LIGHTHOUSE FOSTERING LTD,"5,766.89",AGENCY FOSTERING,EXTERNAL AGENCIES AND BODIES,2102916964,1000080372
05.02.2019,CHILDREN'S SERVICES,ALL4U FOSTERING LTD,"6,443.04",AGENCY FOSTERING,EXTERNAL AGENCIES AND BODIES,2102916967,1000080663
05.02.2019,CHILDREN'S SERVICES,SYDENHAM SCHOOL,"2,639.18",CASEWORK OLA  0-8,CENTRAL GOVERNMENT,2102917147,1000079303
05.02.2019,CHILDREN'S SERVICES,KENDER PRIMARY SCHOOL,"7,078.45",CASEWORK OLA  0-8,EXTERNAL AGENCIES AND BODIES,2102917129,1000017238
05.02.2019,CHILDREN'S SERVICES,ROCKMOUNT PRIMARY SCHOOL,"2,031.93",CASEWORK OLA  0-8,EXTERNAL AGENCIES AND BODIES,2102917125,1000073237
05.02.2019,CHILDREN'S SERVICES,ST JAMES HATCHAM CE PRIMARY SCHOOL,"2,754.54",CASEWORK OLA  0-8,EXTERNAL AGENCIES AND BODIES,2102917150,1000080746
05.02.2019,CHILDREN'S SERVICES,JESSOP PRIMARY SCHOOL,"5,319.59",CASEWORK OLA  0-8,EXTERNAL AGENCIES AND BODIES,2102917130,1000081840
05.02.2019,CHILDREN'S SERVICES,MYATT GARDEN PRIMARY SCHOOL,"3,917.53",CASEWORK OLA  0-8,EXTERNAL AGENCIES AND BODIES,2102917149,1000082161
05.02.2019,CHILDREN'S SERVICES,PARKWOOD HALL CO-OPERATIVE ACADEMY,"37,778.21",CASEWORK OLA  0-8,RECOUPMENT,2102917131,1000077451
05.02.2019,CHILDREN'S SERVICES,WHITEFIELD ACADEMY TRUST,"4,750.00",CASEWORK OLA  0-8,RECOUPMENT,2102917158,1000080971
05.02.2019,CHILDREN'S SERVICES,THE SOUTHOVER PARTNERSHIP,"14,200.00",CASEWORK OLA  0-8,RECOUPMENT,2102917104,1000081808
05.02.2019,CHILDREN'S SERVICES,BEYOND AUTISM T/A PARK HOUSE SCHOOL,"312,512.12",CASEWORK OLA  0-8,RECOUPMENT,2102917081,1000048234
05.02.2019,CHILDREN'S SERVICES,LINDEN LODGE SCHOOL,"31,117.00",CASEWORK OLA  0-8,RECOUPMENT,2102917145,1000070880
05.02.2019,CHILDREN'S SERVICES,BLANCHE NEVILE SCHOOL,"5,887.06",CASEWORK OLA  0-8,RECOUPMENT,2102917138,1000078704
05.02.2019,CHILDREN'S SERVICES,THE COMPLETE WORKS INDEPENDENT SCHOOL,"15,750.00",CASEWORK OLA  0-8,"SCHOOLS CAPITATION, OTHER GRANTS",2102917162,1000033256
05.02.2019,CHILDREN'S SERVICES,FLEET TUTORS,480,CASEWORK OLA  0-8,"SCHOOLS CAPITATION, OTHER GRANTS",2102917113,1000044820
05.02.2019,CHILDREN'S SERVICES,FLEET TUTORS,"1,884.00",CASEWORK OLA  0-8,"SCHOOLS CAPITATION, OTHER GRANTS",2102917112,1000044820
05.02.2019,CHILDREN'S SERVICES,FLEET TUTORS,"2,295.00",CASEWORK OLA  0-8,"SCHOOLS CAPITATION, OTHER GRANTS",2102917111,1000044820
05.02.2019,CHILDREN'S SERVICES,FLEET TUTORS,"7,821.08",CASEWORK OLA  0-8,"SCHOOLS CAPITATION, OTHER GRANTS",2102917114,1000044820
05.02.2019,CHILDREN'S SERVICES,FLEET TUTORS,"13,329.00",CASEWORK OLA  0-8,"SCHOOLS CAPITATION, OTHER GRANTS",2102917109,1000044820
05.02.2019,CHILDREN'S SERVICES,ROCKINGHAM COMMUNITY NURSERY,"4,298.17",CASEWORK SOUTHWARK 0-8,CONTRIBUTION TO PROVISIONS (TP PAYMENTS),2102917128,1095826
05.02.2019,CHILDREN'S SERVICES,LOVE ABA LTD,650,CASEWORK SOUTHWARK 0-8,CONTRIBUTION TO PROVISIONS (TP PAYMENTS),2102917139,1000079474
05.02.2019,CHILDREN'S SERVICES,LOVE ABA LTD,650,CASEWORK SOUTHWARK 0-8,CONTRIBUTION TO PROVISIONS (TP PAYMENTS),2102917140,1000079474
05.02.2019,CHILDREN'S SERVICES,LOVE ABA LTD,650,CASEWORK SOUTHWARK 0-8,CONTRIBUTION TO PROVISIONS (TP PAYMENTS),2102917141,1000079474
05.02.2019,CHILDREN'S SERVICES,REDACTED PERSONAL DATA,"9,977.96",CASEWORK SOUTHWARK 0-8,M&M ALLOWANCE CO-OPS,REDACTED,REDACTED
05.02.2019,CHILDREN'S SERVICES,REDACTED PERSONAL DATA,"1,417.53",CASEWORK SOUTHWARK 0-8,M&M ALLOWANCE CO-OPS,REDACTED,REDACTED
05.02.2019,CHILDREN'S SERVICES,ROCKINGHAM COMMUNITY NURSERY,"4,911.73",CASEWORK SOUTHWARK 0-8,OTHER LOCAL AUTHORITIES,2102917127,1095826
05.02.2019,CHILDREN'S SERVICES,THE VILLA SCHOOL & NURSERY LTD,"3,333.33",CASEWORK SOUTHWARK 0-8,OTHER LOCAL AUTHORITIES,2102917095,1000003742
05.02.2019,CHILDREN'S SERVICES,THE VILLA SCHOOL & NURSERY LTD,"3,333.33",CASEWORK SOUTHWARK 0-8,OTHER LOCAL AUTHORITIES,2102917096,1000003742
05.02.2019,CHILDREN'S SERVICES,KINTORE WAY CHILDRENS CENTRE,"9,200.00",CASEWORK SOUTHWARK 0-8,OTHER LOCAL AUTHORITIES,2102917102,5001000047
05.02.2019,CHILDREN'S SERVICES,CITY OF LONDON ACADEMY,"99,847.68",CASEWORK SOUTHWARK 0-8,STATEMENTED FEES,2102917121,1000049128
05.02.2019,CHILDREN'S SERVICES,GOOSE GREEN PRIMARY AND NURSERY SCHOOL,"2,597.94",CASEWORK SOUTHWARK 0-8,STATEMENTED FEES,2102917101,1000070613
05.02.2019,CHILDREN'S SERVICES,AVOCET SOCIAL CARE LTD,"4,188.80",DISABILITY & HIV,PROFESSIONAL FEES,5902342129,1000071940
05.02.2019,CHILDREN'S SERVICES,NATIONAL AUTISTIC SOCIETY CARE PACK,"22,887.87",PFA TEAM SOUTHWARK 9 PLUS,ADDITIONAL PAYMENTS TO AGENCIES/CARERS,2102917119,1000020538
05.02.2019,CHILDREN'S SERVICES,BARNARDOS SERVICES LTD,"15,834.00",PFA TEAM SOUTHWARK 9 PLUS,ADDITIONAL PAYMENTS TO AGENCIES/CARERS,2102917103,1000063730
05.02.2019,CHILDREN'S SERVICES,BISHOP THOMAS GRANT SCHOOL,"7,876.29",PFA TEAM SOUTHWARK 9 PLUS,CENTRAL GOVERNMENT,2102917146,1000073651
05.02.2019,CHILDREN'S SERVICES,NATIONAL AUTISTIC SOCIETY CARE PACK,"15,033.26",PFA TEAM SOUTHWARK 9 PLUS,CONTRIBUTION TO PROVISIONS (TP PAYMENTS),2102917120,1000020538
05.02.2019,CHILDREN'S SERVICES,PASCALS COLLEGE LTD,"2,134.27",PFA TEAM SOUTHWARK 9 PLUS,CONTRIBUTION TO PROVISIONS (TP PAYMENTS),2102917135,1000077557
05.02.2019,CHILDREN'S SERVICES,VIBE TEACHER RECRUITMENT LTD,"1,845.00",PFA TEAM SOUTHWARK 9 PLUS,CONTRIBUTION TO PROVISIONS (TP PAYMENTS),2102917089,1000081423
05.02.2019,CHILDREN'S SERVICES,VIBE TEACHER RECRUITMENT LTD,"2,685.00",PFA TEAM SOUTHWARK 9 PLUS,CONTRIBUTION TO PROVISIONS (TP PAYMENTS),2102917090,1000081423
05.02.2019,CHILDREN'S SERVICES,VIBE TEACHER RECRUITMENT LTD,"2,745.00",PFA TEAM SOUTHWARK 9 PLUS,CONTRIBUTION TO PROVISIONS (TP PAYMENTS),2102917088,1000081423
05.02.2019,CHILDREN'S SERVICES,NASH COLLEGE 'LIVABILITY',"3,378.02",PFA TEAM SOUTHWARK 9 PLUS,EQUIPMENT PURCHASE & REPAIR,2102917124,1000062581
05.02.2019,CHILDREN'S SERVICES,TREASURE HOUSE (LONDON) CIC,"4,222.00",PFA TEAM SOUTHWARK 9 PLUS,OTHER CONTRACTORS,2102917093,1000061163
05.02.2019,CHILDREN'S SERVICES,AMBITIOUS ABOUT AUTISM,"24,589.97",PFA TEAM SOUTHWARK 9 PLUS,RECOUPMENT,2102917116,1000035784
05.02.2019,CHILDREN'S SERVICES,TREASURE HOUSE (LONDON) CIC,"9,000.00",PFA TEAM SOUTHWARK 9 PLUS,RECOUPMENT,2102917092,1000061163
05.02.2019,CHILDREN'S SERVICES,TREASURE HOUSE (LONDON) CIC,"14,333.00",PFA TEAM SOUTHWARK 9 PLUS,RECOUPMENT,2102917094,1000061163
05.02.2019,CHILDREN'S SERVICES,TREASURE HOUSE (LONDON) CIC,"18,000.00",PFA TEAM SOUTHWARK 9 PLUS,RECOUPMENT,2102917091,1000061163
05.02.2019,CHILDREN'S SERVICES,NASH COLLEGE 'LIVABILITY',"57,298.94",PFA TEAM SOUTHWARK 9 PLUS,RECOUPMENT,2102917123,1000062581
05.02.2019,CHILDREN'S SERVICES,CARETRADE CHARITABLE TRUST,"18,277.34",PFA TEAM SOUTHWARK 9 PLUS,RECOUPMENT,2102917148,1000067322
05.02.2019,CHILDREN'S SERVICES,ORCHARD HILL COLLEGE,"605,902.41",PFA TEAM SOUTHWARK 9 PLUS,RECOUPMENT,2102917155,1000070978
05.02.2019,CHILDREN'S SERVICES,PHOENIXPLACE,"2,880.00",PFA TEAM SOUTHWARK 9 PLUS,RECOUPMENT,2102917086,1000075565
05.02.2019,CHILDREN'S SERVICES,PHOENIXPLACE,"2,880.00",PFA TEAM SOUTHWARK 9 PLUS,RECOUPMENT,2102917087,1000075565
05.02.2019,CHILDREN'S SERVICES,PARKWOOD HALL CO-OPERATIVE ACADEMY,"8,629.27",PFA TEAM SOUTHWARK 9 PLUS,RECOUPMENT,2102917133,1000077451
05.02.2019,CHILDREN'S SERVICES,PARKWOOD HALL CO-OPERATIVE ACADEMY,"25,708.73",PFA TEAM SOUTHWARK 9 PLUS,RECOUPMENT,2102917132,1000077451
05.02.2019,CHILDREN'S SERVICES,HORNBEAM ACADEMY TRUST,"6,166.67",PFA TEAM SOUTHWARK 9 PLUS,RECOUPMENT,2102917126,1000077937
05.02.2019,CHILDREN'S SERVICES,BEYONDAUTISM,"174,114.61",PFA TEAM SOUTHWARK 9 PLUS,RECOUPMENT,2102917082,1000080312
05.02.2019,CHILDREN'S SERVICES,WHITEFIELD ACADEMY TRUST,"4,750.00",PFA TEAM SOUTHWARK 9 PLUS,RECOUPMENT,2102917157,1000080971
05.02.2019,CHILDREN'S SERVICES,LONDON BOROUGH OF MERTON,"5,554.15",PFA TEAM SOUTHWARK 9 PLUS,RECOUPMENT,2102917156,1000020886
05.02.2019,CHILDREN'S SERVICES,CENTER ACADEMY SCHOOL,"13,666.00",PFA TEAM SOUTHWARK 9 PLUS,RECOUPMENT,2102917085,11295355
05.02.2019,CHILDREN'S SERVICES,ST ELIZABETH SCHOOL,"35,148.27",PFA TEAM SOUTHWARK 9 PLUS,RECOUPMENT,2102917134,1000014407
05.02.2019,CHILDREN'S SERVICES,LINDEN LODGE SCHOOL,"24,748.00",PFA TEAM SOUTHWARK 9 PLUS,RECOUPMENT,2102917144,1000070880
05.02.2019,CHILDREN'S SERVICES,IAN MIKARDO HIGH SCHOOL,"16,923.08",PFA TEAM SOUTHWARK 9 PLUS,RECOUPMENT,2102917159,1000073655
05.02.2019,CHILDREN'S SERVICES,BLANCHE NEVILE SCHOOL,"5,887.06",PFA TEAM SOUTHWARK 9 PLUS,RECOUPMENT,2102917137,1000078704
05.02.2019,CHILDREN'S SERVICES,WIZE UP INDEPENDENT SCHOOL,"3,800.00",PFA TEAM SOUTHWARK 9 PLUS,RECOUPMENT,2102917160,1000080560
05.02.2019,CHILDREN'S SERVICES,THE COMPLETE WORKS INDEPENDENT SCHOOL,600,PFA TEAM SOUTHWARK 9 PLUS,"SCHOOLS CAPITATION, OTHER GRANTS",2102917099,1000033256
05.02.2019,CHILDREN'S SERVICES,THE COMPLETE WORKS INDEPENDENT SCHOOL,"1,035.00",PFA TEAM SOUTHWARK 9 PLUS,"SCHOOLS CAPITATION, OTHER GRANTS",2102917100,1000033256
05.02.2019,CHILDREN'S SERVICES,THE COMPLETE WORKS INDEPENDENT SCHOOL,"1,610.00",PFA TEAM SOUTHWARK 9 PLUS,"SCHOOLS CAPITATION, OTHER GRANTS",2102917098,1000033256
05.02.2019,CHILDREN'S SERVICES,THE COMPLETE WORKS INDEPENDENT SCHOOL,"1,725.00",PFA TEAM SOUTHWARK 9 PLUS,"SCHOOLS CAPITATION, OTHER GRANTS",2102917097,1000033256
05.02.2019,CHILDREN'S SERVICES,THE COMPLETE WORKS INDEPENDENT SCHOOL,"4,500.00",PFA TEAM SOUTHWARK 9 PLUS,"SCHOOLS CAPITATION, OTHER GRANTS",2102917161,1000033256
05.02.2019,CHILDREN'S SERVICES,THE COMPLETE WORKS INDEPENDENT SCHOOL,"4,500.00",PFA TEAM SOUTHWARK 9 PLUS,"SCHOOLS CAPITATION, OTHER GRANTS",2102917164,1000033256
05.02.2019,CHILDREN'S SERVICES,THE COMPLETE WORKS INDEPENDENT SCHOOL,"5,133.26",PFA TEAM SOUTHWARK 9 PLUS,"SCHOOLS CAPITATION, OTHER GRANTS",2102917163,1000033256
05.02.2019,CHILDREN'S SERVICES,BLOOMFIELD LEARNING CENTRE,"5,200.00",PFA TEAM SOUTHWARK 9 PLUS,"SCHOOLS CAPITATION, OTHER GRANTS",2102917105,1000033357
05.02.2019,CHILDREN'S SERVICES,FLEET TUTORS,"7,231.92",PFA TEAM SOUTHWARK 9 PLUS,"SCHOOLS CAPITATION, OTHER GRANTS",2102917115,1000044820
05.02.2019,CHILDREN'S SERVICES,FLEET TUTORS,"10,546.00",PFA TEAM SOUTHWARK 9 PLUS,"SCHOOLS CAPITATION, OTHER GRANTS",2102917110,1000044820
05.02.2019,CHILDREN'S SERVICES,J K EDUCATION LTD,587.5,PFA TEAM SOUTHWARK 9 PLUS,"SCHOOLS CAPITATION, OTHER GRANTS",2102917151,1000077075
05.02.2019,CHILDREN'S SERVICES,J K EDUCATION LTD,587.5,PFA TEAM SOUTHWARK 9 PLUS,"SCHOOLS CAPITATION, OTHER GRANTS",2102917152,1000077075
05.02.2019,CHILDREN'S SERVICES,INTERHIGH EDUCATION,450,PFA TEAM SOUTHWARK 9 PLUS,"SCHOOLS CAPITATION, STANDARDS FUND",2102917084,1000071250
05.02.2019,CHILDREN'S SERVICES,BEYONDAUTISM,"21,347.66",PFA TEAM SOUTHWARK 9 PLUS,"SCHOOLS CAPITATION, STANDARDS FUND",2102917083,1000080312
05.02.2019,CHILDREN'S SERVICES,CITY OF LONDON ACADEMY,"153,547.43",PFA TEAM SOUTHWARK 9 PLUS,STATEMENTED FEES,2102917122,1000049128
05.02.2019,CHILDREN'S SERVICES,THE ELMGREEN SCHOOL,"4,221.96",PFA TEAM SOUTHWARK 9 PLUS,STATEMENTED FEES,2102917136,1000013250
05.02.2019,CHILDREN'S SERVICES,NORTH LAKES CHILDRENS SERVICES,"10,420.74",RESIDENTIAL,OTHER PAYMENTS FOR CLIENTS,2102916860,1000059568
05.02.2019,CHILDREN'S SERVICES,HOLMDENE HOUSING LTD,"1,480.00",S24 CLA,EXTERNAL AGENCIES AND BODIES,2102916899,1000032598
05.02.2019,CHILDREN'S SERVICES,HOLMDENE HOUSING LTD,"1,480.00",S24 CLA,EXTERNAL AGENCIES AND BODIES,2102916906,1000032598
05.02.2019,CHILDREN'S SERVICES,YOUNG FUTURES,-903.34,S24 CLA,EXTERNAL AGENCIES AND BODIES,2102916892,1000059563
05.02.2019,CHILDREN'S SERVICES,YOUNG FUTURES,-450.43,S24 CLA,EXTERNAL AGENCIES AND BODIES,2102916900,1000059563
05.02.2019,CHILDREN'S SERVICES,YOUNG FUTURES,"1,984.00",S24 CLA,EXTERNAL AGENCIES AND BODIES,2102916884,1000059563
05.02.2019,CHILDREN'S SERVICES,YOUNG FUTURES,"1,984.00",S24 CLA,EXTERNAL AGENCIES AND BODIES,2102916897,1000059563
05.02.2019,CHILDREN'S SERVICES,YOUNG FUTURES,"2,790.00",S24 CLA,EXTERNAL AGENCIES AND BODIES,2102916916,1000059563
05.02.2019,CHILDREN'S SERVICES,FUTURE FOUNDATIONS LTD,"1,722.71",S24 CLA,EXTERNAL AGENCIES AND BODIES,2102916888,1000063272
05.02.2019,CHILDREN'S SERVICES,FUTURE FOUNDATIONS LTD,"1,722.71",S24 CLA,EXTERNAL AGENCIES AND BODIES,2102916902,1000063272
05.02.2019,CHILDREN'S SERVICES,FUTURE FOUNDATIONS LTD,"1,722.71",S24 CLA,EXTERNAL AGENCIES AND BODIES,2102916913,1000063272
05.02.2019,CHILDREN'S SERVICES,FUTURE FOUNDATIONS LTD,"1,722.71",S24 CLA,EXTERNAL AGENCIES AND BODIES,2102916915,1000063272
05.02.2019,CHILDREN'S SERVICES,FUTURE FOUNDATIONS LTD,"2,909.57",S24 CLA,EXTERNAL AGENCIES AND BODIES,2102916891,1000063272
05.02.2019,CHILDREN'S SERVICES,FUTURE FOUNDATIONS LTD,"4,419.71",S24 CLA,EXTERNAL AGENCIES AND BODIES,2102916908,1000063272
05.02.2019,CHILDREN'S SERVICES,FRESH START CARE SOLUTIONS LTD,"13,915.01",S24 CLA,EXTERNAL AGENCIES AND BODIES,2102916970,1000070537
05.02.2019,CHILDREN'S SERVICES,RELA SUPPORT SERVICES LTD,"3,920.00",S24 CLA,EXTERNAL AGENCIES AND BODIES,2102916895,1000073128
05.02.2019,CHILDREN'S SERVICES,HEARTWOOD OUTREACH SERVICES LTD,"1,887.59",S24 CLA,EXTERNAL AGENCIES AND BODIES,2102916971,1000075021
05.02.2019,CHILDREN'S SERVICES,HEARTWOOD OUTREACH SERVICES LTD,"2,620.12",S24 CLA,EXTERNAL AGENCIES AND BODIES,2102916969,1000075021
05.02.2019,CHILDREN'S SERVICES,COMMUNITY BUILDING MANAGEMENT,"11,283.27",S24 CLA,EXTERNAL AGENCIES AND BODIES,2102916894,1000078932
05.02.2019,CHILDREN'S SERVICES,JORDAN XAVIER LTD,"1,221.43",S24 CLA,EXTERNAL AGENCIES AND BODIES,2102916957,1000081470
05.02.2019,CHILDREN'S SERVICES,REDACTED PERSONAL DATA,"1,628.65",S24 CLA,EXTERNAL AGENCIES AND BODIES,REDACTED,REDACTED
05.02.2019,CHILDREN'S SERVICES,SILVER BIRCH CARE LTD,300,SEMI INDEPENDENT,ADDITIONAL PAYMENTS TO AGENCIES/CARERS,2102916869,1000076525
05.02.2019,CHILDREN'S SERVICES,YOUNG FUTURES,"2,790.00",SEMI INDEPENDENT,EXTERNAL AGENCIES AND BODIES,2102916881,1000059563
05.02.2019,CHILDREN'S SERVICES,YOUNG FUTURES,"2,790.00",SEMI INDEPENDENT,EXTERNAL AGENCIES AND BODIES,2102916893,1000059563
05.02.2019,CHILDREN'S SERVICES,YOUNG FUTURES,"3,365.67",SEMI INDEPENDENT,EXTERNAL AGENCIES AND BODIES,2102916861,1000059563
05.02.2019,CHILDREN'S SERVICES,YOUNG FUTURES,"8,192.68",SEMI INDEPENDENT,EXTERNAL AGENCIES AND BODIES,2102916879,1000059563
05.02.2019,CHILDREN'S SERVICES,YOUNG FUTURES,"8,192.68",SEMI INDEPENDENT,EXTERNAL AGENCIES AND BODIES,2102916882,1000059563
05.02.2019,CHILDREN'S SERVICES,FUTURE FOUNDATIONS LTD,"2,604.00",SEMI INDEPENDENT,EXTERNAL AGENCIES AND BODIES,2102916876,1000063272
05.02.2019,CHILDREN'S SERVICES,FUTURE FOUNDATIONS LTD,"4,419.71",SEMI INDEPENDENT,EXTERNAL AGENCIES AND BODIES,2102916864,1000063272
05.02.2019,CHILDREN'S SERVICES,FUTURE FOUNDATIONS LTD,"4,419.71",SEMI INDEPENDENT,EXTERNAL AGENCIES AND BODIES,2102916871,1000063272
05.02.2019,CHILDREN'S SERVICES,FUTURE FOUNDATIONS LTD,"4,419.71",SEMI INDEPENDENT,EXTERNAL AGENCIES AND BODIES,2102916883,1000063272
05.02.2019,CHILDREN'S SERVICES,RELA SUPPORT SERVICES LTD,"15,760.00",SEMI INDEPENDENT,EXTERNAL AGENCIES AND BODIES,2102916918,1000073128
05.02.2019,CHILDREN'S SERVICES,COMMUNITY BUILDING MANAGEMENT,"11,049.28",SEMI INDEPENDENT,EXTERNAL AGENCIES AND BODIES,2102916865,1000078932
05.02.2019,CHILDREN'S SERVICES,FUTURE FOUNDATIONS LTD,265.71,SEMI INDEPENDENT,OTHER PAYMENTS FOR CLIENTS,2102916868,1000063272
05.02.2019,CHILDREN'S SERVICES,FUTURE FOUNDATIONS LTD,265.71,SEMI INDEPENDENT,OTHER PAYMENTS FOR CLIENTS,2102916878,1000063272
05.02.2019,CHILDREN'S SERVICES,COMMUNITY BUILDING MANAGEMENT,299.74,SEMI INDEPENDENT,OTHER PAYMENTS FOR CLIENTS,2102916867,1000078932
05.02.2019,CHILDREN'S SERVICES,KENT COUNTY SUPPLIES,"2,385.64",THOMAS CALTON CENTRE,GAS,5902342138,1000000291
05.02.2019,CHILDREN'S SERVICES,HOLMDENE HOUSING LTD,422.86,UASC SECTION 24,EXTERNAL AGENCIES AND BODIES,2102916903,1000032598
05.02.2019,CHILDREN'S SERVICES,HOLMDENE HOUSING LTD,"1,480.00",UASC SECTION 24,EXTERNAL AGENCIES AND BODIES,2102916890,1000032598
05.02.2019,CHILDREN'S SERVICES,HOLMDENE HOUSING LTD,"1,480.00",UASC SECTION 24,EXTERNAL AGENCIES AND BODIES,2102916896,1000032598
05.02.2019,CHILDREN'S SERVICES,HOLMDENE HOUSING LTD,"1,480.00",UASC SECTION 24,EXTERNAL AGENCIES AND BODIES,2102916907,1000032598
05.02.2019,CHILDREN'S SERVICES,HOLMDENE HOUSING LTD,"1,480.00",UASC SECTION 24,EXTERNAL AGENCIES AND BODIES,2102916909,1000032598
05.02.2019,CHILDREN'S SERVICES,HOLMDENE HOUSING LTD,"2,240.00",UASC SECTION 24,EXTERNAL AGENCIES AND BODIES,2102916904,1000032598
05.02.2019,CHILDREN'S SERVICES,YOUNG FUTURES,-903.34,UASC SECTION 24,EXTERNAL AGENCIES AND BODIES,2102916887,1000059563
05.02.2019,CHILDREN'S SERVICES,YOUNG FUTURES,"2,214.33",UASC SECTION 24,EXTERNAL AGENCIES AND BODIES,2102916910,1000059563
05.02.2019,CHILDREN'S SERVICES,FUTURE FOUNDATIONS LTD,"1,722.71",UASC SECTION 24,EXTERNAL AGENCIES AND BODIES,2102916885,1000063272
05.02.2019,CHILDREN'S SERVICES,FUTURE FOUNDATIONS LTD,"1,722.71",UASC SECTION 24,EXTERNAL AGENCIES AND BODIES,2102916886,1000063272
05.02.2019,CHILDREN'S SERVICES,FUTURE FOUNDATIONS LTD,"1,722.71",UASC SECTION 24,EXTERNAL AGENCIES AND BODIES,2102916898,1000063272
05.02.2019,CHILDREN'S SERVICES,FUTURE FOUNDATIONS LTD,"2,094.71",UASC SECTION 24,EXTERNAL AGENCIES AND BODIES,2102916905,1000063272
05.02.2019,CHILDREN'S SERVICES,YOUNG LONDON TODAY,"1,638.35",UASC SECTION 24,EXTERNAL AGENCIES AND BODIES,2102916912,1000071232
05.02.2019,CHILDREN'S SERVICES,FUTURE FOUNDATIONS LTD,"2,604.00",UNACCOMPANIED ASYLUM CHILDREN 16-17,EXTERNAL AGENCIES AND BODIES,2102916880,1000063272
05.02.2019,CHILDREN'S SERVICES,FUTURE FOUNDATIONS LTD,"4,419.71",UNACCOMPANIED ASYLUM CHILDREN 16-17,EXTERNAL AGENCIES AND BODIES,2102916862,1000063272
05.02.2019,CHILDREN'S SERVICES,FUTURE FOUNDATIONS LTD,"4,419.71",UNACCOMPANIED ASYLUM CHILDREN 16-17,EXTERNAL AGENCIES AND BODIES,2102916863,1000063272
05.02.2019,CHILDREN'S SERVICES,FUTURE FOUNDATIONS LTD,265.71,UNACCOMPANIED ASYLUM CHILDREN 16-17,OTHER PAYMENTS FOR CLIENTS,2102916873,1000063272
05.02.2019,COMMISSIONING & CENTRAL,SYED & QUINN LTD,500,ASW - PROFESSIONAL DEVELOPMENT,TRAINING,5902342332,1000029554
05.02.2019,COMMISSIONING & CENTRAL,SIGNIS LTD,500,CSW - PROFESSIONAL DEVELOPMENT,TRAINING,5902342313,1000075765
05.02.2019,COMMISSIONING & CENTRAL,SIGNIS LTD,500,CSW - PROFESSIONAL DEVELOPMENT,TRAINING,5902342376,1000075765
05.02.2019,COMMISSIONING & CENTRAL,SYED & QUINN LTD,550,FOSTER CARERS TRAINING,TRAINING,5902342335,1000029554
05.02.2019,COMMUNITIES,PHIL MORGAN LTD,629.4,RESIDENT INVOLVEMENT TEAM,PROFESSIONAL FEES,5902342134,1000081732
05.02.2019,COMMUNITIES,WELLS WAY TRIANGLE,"1,300.00",TENANTS FUND,GRANTS,5902342160,1000068079
05.02.2019,CORPORATE & DEMOCRATIC CORE,THE OLD VIC,"24,306.70",CORPORATE & DEPARTMENTAL EXP.,MISCELLANEOUS EXPENSES,5902342178,1000043123
05.02.2019,CUSTOMER EXPERIENCE HGF,INTERSERVE (FACILITIES MANAGEMENT),"1,167.09",CORONER'S,BUILDING R&M,2102917174,3000000166
05.02.2019,CUSTOMER EXPERIENCE HGF,TYNETEC LEGRAND LTD,"1,485.40",SMART MOBILE RESPONSE TEAM,EQUIPMENT PURCHASE & REPAIR,5902342228,1000066068
05.02.2019,ELECTORAL SVCES,BESSEMER GRANGE  T&RA,480,BOROUGH COUNCIL ELECTIONS,HIRE OF ROOMS/HALLS,5902342282,11084898
05.02.2019,ELECTORAL SVCES,BERMONDSEY VILLAGE HALL,350,BOROUGH COUNCIL ELECTIONS,HIRE OF ROOMS/HALLS,5902342286,11281816
05.02.2019,ENVIRONMENT AND LEISURE,CONWAY AECOM LTD,"8,860.36",CAPITAL PS (LEISURE),CONSTR'N SUB CONTRACT - NON CERTIFICATED,2102917179,3000001595
05.02.2019,ENVIRONMENT AND LEISURE,CONWAY AECOM LTD,"8,889.58",CAPITAL PS (LEISURE),CONSTR'N SUB CONTRACT - NON CERTIFICATED,2102917180,3000001595
05.02.2019,ENVIRONMENT AND LEISURE,CONWAY AECOM LTD,"12,464.39",CAPITAL PS (LEISURE),CONSTR'N SUB CONTRACT - NON CERTIFICATED,2102917178,3000001595
05.02.2019,ENVIRONMENT AND LEISURE,CONWAY AECOM LTD,"7,936.01",CAPITAL PS (LEISURE),CONSTRUCTION,5902342320,1000071205
05.02.2019,ENVIRONMENT DIRECTORATE,PROJECT CENTRE LTD,"9,600.38",2019+ HIGHWAYS SERVICE DELIVERY,HIGHWAYS TERM CONTRACT,5902342311,1000072621
05.02.2019,ENVIRONMENT DIRECTORATE,VOLKSWAGEN FINANCIAL SERVICES (UK),347.72,CAR LEASING CTRL A/C,VEHICLE LEASING CHARGES,5902342404,1000079245
05.02.2019,ENVIRONMENT DIRECTORATE,VOLKSWAGEN FINANCIAL SERVICES (UK),366.6,CAR LEASING CTRL A/C,VEHICLE LEASING CHARGES,5902342404,1000079245
05.02.2019,ENVIRONMENT DIRECTORATE,SOUTHWARK NEWSPAPER LTD,288,HIGHWAYS DEVELOPMENT,MARKETING & PUBLICITY SERVICES,5902342149,1556957
05.02.2019,ENVIRONMENT DIRECTORATE,SOUTHWARK NEWSPAPER LTD,336,HIGHWAYS DEVELOPMENT,MARKETING & PUBLICITY SERVICES,5902342147,1556957
05.02.2019,ENVIRONMENT DIRECTORATE,SOUTHWARK NEWSPAPER LTD,468,HIGHWAYS DEVELOPMENT,MARKETING & PUBLICITY SERVICES,5902342133,1556957
05.02.2019,ENVIRONMENT DIRECTORATE,SOUTHWARK NEWSPAPER LTD,504,HIGHWAYS DEVELOPMENT,MARKETING & PUBLICITY SERVICES,5902342145,1556957
05.02.2019,ENVIRONMENT DIRECTORATE,STANBURY BUILDING SERVICES LTD,795,MULTI STOREY CAR PARK,BUILDING R&M,5902342363,1000078207
05.02.2019,ENVIRONMENT DIRECTORATE,COMMUNITY LINKS TRADING LTD,373.2,YOUNG ADVISORS,PUBLIC TRANSPORT,5902342403,1000049897
05.02.2019,ENVIRONMENT DIRECTORATE,COMMUNITY LINKS TRADING LTD,377.2,YOUNG ADVISORS,PUBLIC TRANSPORT,5902342399,1000049897
05.02.2019,HOUSING GENERAL FUND,L H BRIDGE LTD,482,CAPITAL PS (HOUSING GF),CONSTRUCTION SITE COSTS,5902342342,1000056928
05.02.2019,HOUSING HRA,PRB ESTATES LTD,"8,411.00",CAPITAL PS (HRA),CONST'N MAIN CONTRACT - NON CERTIFICATED,2102917169,3000001691
05.02.2019,HOUSING HRA,PRB ESTATES LTD,"9,107.00",CAPITAL PS (HRA),CONST'N MAIN CONTRACT - NON CERTIFICATED,2102917168,3000001691
05.02.2019,HOUSING HRA,C&C BUILDERS LTD,"6,160.00",CAPITAL PS (HRA),CONST'N MAIN CONTRACT - NON CERTIFICATED,2102917166,3000001986
05.02.2019,HOUSING HRA,AJMADAPTIONS LTD,"4,205.00",CAPITAL PS (HRA),CONST'N MAIN CONTRACT - NON CERTIFICATED,2102917171,3000002056
05.02.2019,HOUSING HRA,ENGIE REGENERATION (APOLLO) LTD,"12,795.11",CAPITAL PS (HRA),CONSTRUCTION MAIN CONTRACT -CERTIFICATED,2102917172,4000449
05.02.2019,HOUSING HRA,ENGIE REGENERATION (APOLLO) LTD,"47,944.87",CAPITAL PS (HRA),CONSTRUCTION MAIN CONTRACT -CERTIFICATED,2102917173,4000449
05.02.2019,HOUSING HRA,DUCTCLEAN (UK) LTD,"10,605.72",DUCTCLEAN,MANUAL CREDITORS,2102917170,3000001635
05.02.2019,HOUSING HRA,KENT COUNTY COUNCIL - LASER,"13,511.69",RESIDENT SERVICES BUSINESS SUPPORT,ELECTRICITY,6101871512,DIRECT DEBIT PAYMENT
05.02.2019,HOUSING HRA,KENT COUNTY COUNCIL - LASER,"12,726.24",RESIDENT SERVICES BUSINESS SUPPORT,ELECTRICITY,6101871513,DIRECT DEBIT PAYMENT
05.02.2019,HOUSING STRATEGY AND OPTIONS,REACH-OUT HOUSING LTD,"1,120.00",HOMELESS PROJECTS,GRANTS,5902342141,1000071129
05.02.2019,LEISURE DIRECTORATE,LAWSON ESTATE T&RA,360,PLAY NORTH,PROFESSIONAL FEES,5902342380,1028168
05.02.2019,MODERNISATION HGF,KENT COUNTY COUNCIL - LASER,663.91,34 PECKHAM ROAD,GAS,5902342395,1000012926
05.02.2019,MODERNISATION HGF,CASTLE WATER LTD,898.05,BOURNEMOUTH GROVE,WATER,5902342227,1000078867
05.02.2019,MODERNISATION HGF,THE KNOWLEDGE ACADEMY LTD,"1,600.00",CORPORATE TRAINING BUDGETS,TRAINING,5902342148,1000064533
05.02.2019,MODERNISATION HGF,APTIVA ENVIRONMENTAL LTD,"1,025.00",REPAIR AND MAINTENANCE SERVICES,BUILDING R&M,2102917167,3000001565
05.02.2019,PROPERTY SERVICES,ESSENTIAL INFORMATION GROUP,475,PROPERTY SERVICES,SUBSCRIPTIONS,5902342143,1000041851
05.02.2019,PUBLIC HEALTH,SPA EDUCATION TRUST,"22,500.00",SSF SPA FM/ICT,GRANTS,5902342156,1000081600
05.02.2019,RESIDENT SERVICES,LONDON TOOLS LIMITED,358,SUPPORTED HOSTELS,MATERIALS,5902342124,1000003017
05.02.2019,RESIDENT SERVICES HGF,CALFORD SEADEN LLP,"4,707.49",SPRINGTIDE CLOSE,PROFESSIONAL FEES,5902342109,1061592
05.02.2019,SOUTHWARK BUILDING SERVICES,N & C BUILDING MATERIALS,465,R & M OVERHEADS,MATERIALS,5902342163,1005586
05.02.2019,SOUTHWARK BUILDING SERVICES,TRAVIS PERKINS,260,R & M OVERHEADS,MATERIALS,5902342241,1514319
05.02.2019,SOUTHWARK BUILDING SERVICES,TRAVIS PERKINS,287.33,R & M OVERHEADS,MATERIALS,5902342371,1514319
05.02.2019,SOUTHWARK BUILDING SERVICES,TRAVIS PERKINS,295.2,R & M OVERHEADS,MATERIALS,5902342221,1514319
05.02.2019,SOUTHWARK BUILDING SERVICES,TRAVIS PERKINS,370.5,R & M OVERHEADS,MATERIALS,5902342241,1514319
05.02.2019,SOUTHWARK BUILDING SERVICES,AKW MEDI-CARE LTD,287.92,R & M OVERHEADS,MATERIALS,5902342392,1000047103
05.02.2019,SOUTHWARK BUILDING SERVICES,AKW MEDI-CARE LTD,322.04,R & M OVERHEADS,MATERIALS,5902342378,1000047103
05.02.2019,SOUTHWARK BUILDING SERVICES,AKW MEDI-CARE LTD,370.36,R & M OVERHEADS,MATERIALS,5902342394,1000047103
05.02.2019,SOUTHWARK BUILDING SERVICES,AKW MEDI-CARE LTD,386.7,R & M OVERHEADS,MATERIALS,5902342389,1000047103
05.02.2019,SOUTHWARK BUILDING SERVICES,KENT COUNTY COUNCIL - LASER,450.95,R & M OVERHEADS,VEHICLE FUEL,5902342173,1000012926
05.02.2019,SOUTHWARK BUILDING SERVICES,KENT COUNTY COUNCIL - LASER,645.87,R & M OVERHEADS,VEHICLE FUEL,5902342168,1000012926
05.02.2019,SOUTHWARK BUILDING SERVICES,KENT COUNTY COUNCIL - LASER,"1,503.55",R & M OVERHEADS,VEHICLE FUEL,5902342117,1000012926
05.02.2019,SOUTHWARK BUILDING SERVICES,KENT COUNTY COUNCIL - LASER,"2,590.36",R & M OVERHEADS,VEHICLE FUEL,5902342172,1000012926
05.02.2019,SOUTHWARK BUILDING SERVICES,KENT COUNTY COUNCIL - LASER,"2,790.80",R & M OVERHEADS,VEHICLE FUEL,5902342167,1000012926
05.02.2019,SOUTHWARK BUILDING SERVICES,LONDON TOOLS LIMITED,335,STORES/LOGISTICS,CREDITORS -GR/IR CLEARING ACCOUNT,5902342387,1000003017
05.02.2019,SOUTHWARK BUILDING SERVICES,LONDON TOOLS LIMITED,"1,475.00",STORES/LOGISTICS,CREDITORS -GR/IR CLEARING ACCOUNT,5902342126,1000003017
05.02.2019,SOUTHWARK BUILDING SERVICES,LONDON TOOLS LIMITED,"1,890.00",STORES/LOGISTICS,CREDITORS -GR/IR CLEARING ACCOUNT,5902342118,1000003017
05.02.2019,SOUTHWARK BUILDING SERVICES,LONDON TOOLS LIMITED,"2,100.00",STORES/LOGISTICS,CREDITORS -GR/IR CLEARING ACCOUNT,5902342118,1000003017
05.02.2019,SOUTHWARK BUILDING SERVICES,ACCLAIM HANDLING PLC,346.66,STORES/LOGISTICS,OP LEASE/HIRE CHARGES:PLANT/EQUIP/FURNIT,5902342238,1000008515
06.02.2019,ADULT SOCIAL CARE,PROBATE & ESTATE ADMINISTRATION LTD,705.97,APPOINTEESHIPS,OTHER PAYMENTS FOR CLIENTS,5902342509,1000072967
06.02.2019,ADULT SOCIAL CARE,REDACTED PERSONAL DATA,600,APPOINTEESHIPS,OTHER PAYMENTS FOR CLIENTS,REDACTED,REDACTED
06.02.2019,ADULT SOCIAL CARE,ANDREW RELIABLE REMOVAL,300,MH S.48 STORAGE,OTHER PAYMENTS FOR CLIENTS,5902342557,1000071141
06.02.2019,ADULT SOCIAL CARE,CONTACT PROFESSIONALS,266,SPECIALIST CARE,SECTION 17 PAYMENTS TO AGENCIES/CARERS,2102917743,1000057263
06.02.2019,ADULT SOCIAL CARE,CONTACT PROFESSIONALS,266,SPECIALIST CARE,SECTION 17 PAYMENTS TO AGENCIES/CARERS,2102917830,1000057263
06.02.2019,ADULT SOCIAL CARE,CONTACT PROFESSIONALS,304,SPECIALIST CARE,SECTION 17 PAYMENTS TO AGENCIES/CARERS,2102917764,1000057263
06.02.2019,ADULT SOCIAL CARE,CONTACT PROFESSIONALS,304,SPECIALIST CARE,SECTION 17 PAYMENTS TO AGENCIES/CARERS,2102917790,1000057263
06.02.2019,ADULT SOCIAL CARE,CONTACT PROFESSIONALS,323,SPECIALIST CARE,SECTION 17 PAYMENTS TO AGENCIES/CARERS,2102917783,1000057263
06.02.2019,ADULT SOCIAL CARE,CONTACT PROFESSIONALS,361,SPECIALIST CARE,SECTION 17 PAYMENTS TO AGENCIES/CARERS,2102917827,1000057263
06.02.2019,ADULT SOCIAL CARE,CONTACT PROFESSIONALS,380,SPECIALIST CARE,SECTION 17 PAYMENTS TO AGENCIES/CARERS,2102917776,1000057263
06.02.2019,ADULT SOCIAL CARE,CONTACT PROFESSIONALS,380,SPECIALIST CARE,SECTION 17 PAYMENTS TO AGENCIES/CARERS,2102917782,1000057263
06.02.2019,ADULT SOCIAL CARE,CONTACT PROFESSIONALS,418,SPECIALIST CARE,SECTION 17 PAYMENTS TO AGENCIES/CARERS,2102917800,1000057263
06.02.2019,ADULT SOCIAL CARE,CONTACT PROFESSIONALS,456,SPECIALIST CARE,SECTION 17 PAYMENTS TO AGENCIES/CARERS,2102917823,1000057263
06.02.2019,ADULT SOCIAL CARE,CONTACT PROFESSIONALS,627,SPECIALIST CARE,SECTION 17 PAYMENTS TO AGENCIES/CARERS,2102917747,1000057263
06.02.2019,ADULT SOCIAL CARE,CONTACT PROFESSIONALS,912,TRANSITIONS 14-18YRS,SECTION 17 PAYMENTS TO AGENCIES/CARERS,2102917754,1000057263
06.02.2019,ADULT SOCIAL CARE,CONTACT PROFESSIONALS,912,TRANSITIONS 14-18YRS,SECTION 17 PAYMENTS TO AGENCIES/CARERS,2102917779,1000057263
06.02.2019,ASSET MANAGEMENT,FRANKHAM CONSULTANCY GROUP LTD,618.67,ADAPTATIONS,BUILDING R&M,5902342558,1000043952
06.02.2019,ASSET MANAGEMENT,BUILDTRUST LTD,"20,248.13",R&M CONTRACTS (SOUTH),BUILDING R&M,2102917885,3000002010
06.02.2019,ASSET MANAGEMENT,SINCLAIR JOHNSTON & PARTNERS LTD,832.5,REPAIRS OPERATIONS,BUILDING R&M,5902342532,1000052146
06.02.2019,ASSET MANAGEMENT,SINCLAIR JOHNSTON & PARTNERS LTD,"1,300.00",REPAIRS OPERATIONS,BUILDING R&M,5902342529,1000052146
06.02.2019,CENTRAL FUNCTIONS,STANBURY BUILDING SERVICES LTD,395,COMMERCIAL PROPERTIES,BUILDING R&M,5902342521,1000078207
06.02.2019,CENTRAL FUNCTIONS,STANBURY BUILDING SERVICES LTD,495,COMMERCIAL PROPERTIES,BUILDING R&M,5902342474,1000078207
06.02.2019,CENTRAL FUNCTIONS,STANBURY BUILDING SERVICES LTD,295,COMMERCIAL PROPERTIES,BUILDING R&M,2102917881,3000001967
06.02.2019,CHIEF EXECUTIVE,CONWAY AECOM LTD,"5,071.18",CAPITAL PS (REGEN),CONSTR'N SUB CONTRACT - NON CERTIFICATED,2102917853,3000001595
06.02.2019,CHIEF EXECUTIVE,CONWAY AECOM LTD,"8,099.07",CAPITAL PS (REGEN),CONSTR'N SUB CONTRACT - NON CERTIFICATED,2102917854,3000001595
06.02.2019,CHIEF EXECUTIVE,CONWAY AECOM LTD,"10,000.00",CAPITAL PS (REGEN),CONSTR'N SUB CONTRACT - NON CERTIFICATED,2102917854,3000001595
06.02.2019,CHIEF EXECUTIVE,ADAMS AND SUTHERLAND,"4,613.76",CAPITAL PS (REGEN),CONSTRUCTION FEES,5902342508,1000066083
06.02.2019,CHIEF EXECUTIVE,JAN KATTEIN ARCHITECTS LTD,"7,010.53",CAPITAL PS (REGEN),CONSTRUCTION FEES,5902342507,1000070627
06.02.2019,CHIEF EXECUTIVE,CONTEMPORARY ART SOCIETY,"4,087.50",CAPITAL PS (REGEN),CONSTRUCTION FEES  - EXTERNAL,5902342562,1000076023
06.02.2019,CHIEF EXECUTIVE,SURREY DOCKS FARM PROVIDENT SOCIETY,"11,229.20",CAPITAL PS (REGEN),CONSTRUCTION MAIN CONTRACT,5902342597,1000000958
06.02.2019,CHILDREN AND ADULT,STREET TREE CARE LTD,"1,800.00",CAPITAL PS (EDUCATION),CONSTRUCTION FEES - QUANTITY SURVEYOR,5902342563,1000055901
06.02.2019,CHILDREN AND ADULT,INTERSERVE (FACILITIES MANAGEMENT),"10,916.81",CAPITAL PS (SOC SERV),CONSTRUCTION MAIN CONTRACT,2102917879,3000000166
06.02.2019,CHILDREN AND ADULT,INTERSERVE (FACILITIES MANAGEMENT),"16,375.21",CAPITAL PS (SOC SERV),CONSTRUCTION MAIN CONTRACT,2102917884,3000000166
06.02.2019,CHILDREN'S SERVICES,TREASURE HOUSE (LONDON) CIC,"1,995.00",ALTERNATIVE PROVISION,EXTERNAL AGENCIES AND BODIES,5902342588,1000061163
06.02.2019,CHILDREN'S SERVICES,TREASURE HOUSE (LONDON) CIC,"1,995.00",ALTERNATIVE PROVISION,EXTERNAL AGENCIES AND BODIES,5902342590,1000061163
06.02.2019,CHILDREN'S SERVICES,RISE EDUCATION LTD,"1,440.00",ALTERNATIVE PROVISION,EXTERNAL AGENCIES AND BODIES,5902342569,1000077642
06.02.2019,CHILDREN'S SERVICES,THE SPEECH CENTRE,275,CENTRAL SUPPORT,MEDICAL / HEALTH & SAFETY SERVICES,5902342584,1000035799
06.02.2019,CHILDREN'S SERVICES,THE SPEECH CENTRE,325,CENTRAL SUPPORT,MEDICAL / HEALTH & SAFETY SERVICES,5902342584,1000035799
06.02.2019,CHILDREN'S SERVICES,THE SPEECH CENTRE,705,CENTRAL SUPPORT,MEDICAL / HEALTH & SAFETY SERVICES,5902342584,1000035799
06.02.2019,CHILDREN'S SERVICES,THE SPEECH CENTRE,"1,645.00",CENTRAL SUPPORT,MEDICAL / HEALTH & SAFETY SERVICES,5902342584,1000035799
06.02.2019,CHILDREN'S SERVICES,ISABELLE GRAVENSTEIN T/A REVIVAL,870,CENTRAL SUPPORT,OTHER PAYMENTS FOR CLIENTS,5902342484,1000027424
06.02.2019,CHILDREN'S SERVICES,REDACTED PERSONAL DATA,"1,300.00",LEAVING CARE GRANT,OTHER PAYMENTS FOR CLIENTS,REDACTED,REDACTED
06.02.2019,CHILDREN'S SERVICES,BEORMUND COMMUNITY CENTRE,"10,807.20",NURSERY ED GRANT 3 YEAR OLD,GRANTS,2102917963,1029218
06.02.2019,CHILDREN'S SERVICES,ROCKINGHAM COMMUNITY NURSERY,"39,639.60",NURSERY ED GRANT 3 YEAR OLD,GRANTS,2102918012,1095826
06.02.2019,CHILDREN'S SERVICES,TRINITY CHILD CARE,"35,987.40",NURSERY ED GRANT 3 YEAR OLD,GRANTS,2102918032,1151305
06.02.2019,CHILDREN'S SERVICES,BERMONDSEY COMMUNITY NURSERY,"29,008.80",NURSERY ED GRANT 3 YEAR OLD,GRANTS,2102917911,1151885
06.02.2019,CHILDREN'S SERVICES,PLAYSHACK PLAYGROUP,"6,199.74",NURSERY ED GRANT 3 YEAR OLD,GRANTS,2102918005,1608859
06.02.2019,CHILDREN'S SERVICES,ROCKINGHAM PRE-SCHOOL,"6,445.80",NURSERY ED GRANT 3 YEAR OLD,GRANTS,2102918013,11002695
06.02.2019,CHILDREN'S SERVICES,PUDDLEDUCK NURSERY,"30,031.20",NURSERY ED GRANT 3 YEAR OLD,GRANTS,2102918007,11210722
06.02.2019,CHILDREN'S SERVICES,THE BEECHES NURSERY GROUP LTD,"30,925.20",NURSERY ED GRANT 3 YEAR OLD,GRANTS,2102917947,11215743
06.02.2019,CHILDREN'S SERVICES,MOTHER GOOSE NURSERIES T/A MOTHER GOOSE NURSERIES (UPLAND ) LTD,"19,614.60",NURSERY ED GRANT 3 YEAR OLD,GRANTS,2102917990,11216072
06.02.2019,CHILDREN'S SERVICES,A MEEHAN T/A HALFMOON MONTESSORI NURSERY,"27,880.50",NURSERY ED GRANT 3 YEAR OLD,GRANTS,2102917958,11219161
06.02.2019,CHILDREN'S SERVICES,HERMAN WHYTE T/A LITTLE CLIMBERS DAYCARE PROJECT,"15,668.10",NURSERY ED GRANT 3 YEAR OLD,GRANTS,2102917976,11230367
06.02.2019,CHILDREN'S SERVICES,COLOURBOX CHILDCARE,"5,769.90",NURSERY ED GRANT 3 YEAR OLD,GRANTS,2102917925,11241636
06.02.2019,CHILDREN'S SERVICES,THE CHERRY TREE MONTESSORI NURSERY,"9,295.20",NURSERY ED GRANT 3 YEAR OLD,GRANTS,2102917924,11255353
06.02.2019,CHILDREN'S SERVICES,KINGS COLLEGE NHS FOUNDATION TRUST,"10,168.65",NURSERY ED GRANT 3 YEAR OLD,GRANTS,2102917970,11255665
06.02.2019,CHILDREN'S SERVICES,CREATIVE MINDS CARE AND EDUCATION,"8,501.40",NURSERY ED GRANT 3 YEAR OLD,GRANTS,2102917926,11293601
06.02.2019,CHILDREN'S SERVICES,BRIGHT HORIZONS FAMILY SOLUTIONS,"30,086.40",NURSERY ED GRANT 3 YEAR OLD,GRANTS,2102918002,11294322
06.02.2019,CHILDREN'S SERVICES,ELEPHANT & CASTLE DAY NURSERY LTD,"32,985.00",NURSERY ED GRANT 3 YEAR OLD,GRANTS,2102917941,11329999
06.02.2019,CHILDREN'S SERVICES,MIATA EDUCATIONAL SERVICES LTD,"28,150.20",NURSERY ED GRANT 3 YEAR OLD,GRANTS,2102917940,1000003741
06.02.2019,CHILDREN'S SERVICES,THE VILLA SCHOOL & NURSERY LTD,"67,004.55",NURSERY ED GRANT 3 YEAR OLD,GRANTS,2102918030,1000003742
06.02.2019,CHILDREN'S SERVICES,HALFPINTS PRE-SCHOOL,"10,000.00",NURSERY ED GRANT 3 YEAR OLD,GRANTS,2102917957,1000012294
06.02.2019,CHILDREN'S SERVICES,LITTLE ACORNS DAY NURSERY,"42,671.70",NURSERY ED GRANT 3 YEAR OLD,GRANTS,2102917974,1000015844
06.02.2019,CHILDREN'S SERVICES,C FODILI,"1,126.80",NURSERY ED GRANT 3 YEAR OLD,GRANTS,2102917921,1000016440
06.02.2019,CHILDREN'S SERVICES,CRYSTAL NURSERY (UK),"12,001.50",NURSERY ED GRANT 3 YEAR OLD,GRANTS,2102917955,1000016621
06.02.2019,CHILDREN'S SERVICES,MOTHER GOOSE NURSERIES T/A MOTHER GOOSE,"27,747.90",NURSERY ED GRANT 3 YEAR OLD,GRANTS,2102917991,1000017311
06.02.2019,CHILDREN'S SERVICES,SABINA  JACKSON,"2,480.40",NURSERY ED GRANT 3 YEAR OLD,GRANTS,2102918016,1000022899
06.02.2019,CHILDREN'S SERVICES,GLORIA PAGE,496.28,NURSERY ED GRANT 3 YEAR OLD,GRANTS,2102917952,1000024038
06.02.2019,CHILDREN'S SERVICES,ABOSEDE DOSUNMU,"2,250.00",NURSERY ED GRANT 3 YEAR OLD,GRANTS,2102917903,1000024273
06.02.2019,CHILDREN'S SERVICES,MOTHER GOOSE NURSERIES - GREENDALE FIELDS LTD,"23,448.60",NURSERY ED GRANT 3 YEAR OLD,GRANTS,2102917989,1000025888
06.02.2019,CHILDREN'S SERVICES,SUSAN OGHRE,647.1,NURSERY ED GRANT 3 YEAR OLD,GRANTS,2102918027,1000026280
06.02.2019,CHILDREN'S SERVICES,JULIE KANU,"1,125.00",NURSERY ED GRANT 3 YEAR OLD,GRANTS,2102917967,1000028537
06.02.2019,CHILDREN'S SERVICES,"THE SALVATION ARMY, WILLIAM BOOTH NURSERY & AFTER SCHOOL CLUB","6,476.40",NURSERY ED GRANT 3 YEAR OLD,GRANTS,2102917962,1000031051
06.02.2019,CHILDREN'S SERVICES,BUDS DAY NURSERY LTD,"9,858.60",NURSERY ED GRANT 3 YEAR OLD,GRANTS,2102917918,1000032347
06.02.2019,CHILDREN'S SERVICES,SEMIRA MESSOUD,"1,126.80",NURSERY ED GRANT 3 YEAR OLD,GRANTS,2102918018,1000033260
06.02.2019,CHILDREN'S SERVICES,BASCULE LTD,"7,242.30",NURSERY ED GRANT 3 YEAR OLD,GRANTS,2102917995,1000037268
06.02.2019,CHILDREN'S SERVICES,BASCULE LTD,"16,184.10",NURSERY ED GRANT 3 YEAR OLD,GRANTS,2102917994,1000037268
06.02.2019,CHILDREN'S SERVICES,LITTLE WINNERS DAY NURSERY 1,"21,202.20",NURSERY ED GRANT 3 YEAR OLD,GRANTS,2102917980,1000041814
06.02.2019,CHILDREN'S SERVICES,NEW VISION DAY NURSERY,"31,779.00",NURSERY ED GRANT 3 YEAR OLD,GRANTS,2102917996,1000041971
06.02.2019,CHILDREN'S SERVICES,FOUNTAIN CHILDRENS CENTRE LIMITED,"19,996.20",NURSERY ED GRANT 3 YEAR OLD,GRANTS,2102917948,1000042265
06.02.2019,CHILDREN'S SERVICES,MAGIC ROUNDABOUT NURSERIES LTD,"42,278.40",NURSERY ED GRANT 3 YEAR OLD,GRANTS,2102917984,1000045128
06.02.2019,CHILDREN'S SERVICES,NICKI DAY NURSERY LTD,"22,935.60",NURSERY ED GRANT 3 YEAR OLD,GRANTS,2102917997,1000045363
06.02.2019,CHILDREN'S SERVICES,GUMBOOTS COMMUNITY NURSERY,"49,505.10",NURSERY ED GRANT 3 YEAR OLD,GRANTS,2102917956,1000046112
06.02.2019,CHILDREN'S SERVICES,ARC COMMUNITY TRUSTEES,"15,747.00",NURSERY ED GRANT 3 YEAR OLD,GRANTS,2102918023,1000046206
06.02.2019,CHILDREN'S SERVICES,THE BOSCO CENTRE,"18,878.40",NURSERY ED GRANT 3 YEAR OLD,GRANTS,2102917914,1000046317
06.02.2019,CHILDREN'S SERVICES,EMMA GROVER,760.5,NURSERY ED GRANT 3 YEAR OLD,GRANTS,2102917942,1000047348
06.02.2019,CHILDREN'S SERVICES,ALICE ADAMS,"2,142.00",NURSERY ED GRANT 3 YEAR OLD,GRANTS,2102917905,1000047717
06.02.2019,CHILDREN'S SERVICES,SALMA KHANAM,"1,125.00",NURSERY ED GRANT 3 YEAR OLD,GRANTS,2102918017,1000048927
06.02.2019,CHILDREN'S SERVICES,MATVIC VENTURES LTD T/A MAGIC MIND NURSERY & PRE-SCHOOL,"5,711.40",NURSERY ED GRANT 3 YEAR OLD,GRANTS,2102917983,1000049570
06.02.2019,CHILDREN'S SERVICES,1ST PLACE CHILDREN & PARENTS CENTRE,"47,201.40",NURSERY ED GRANT 3 YEAR OLD,GRANTS,2102917901,1000049952
06.02.2019,CHILDREN'S SERVICES,1ST PLACE CHILDREN & PARENTS CENTRE,"52,352.10",NURSERY ED GRANT 3 YEAR OLD,GRANTS,2102917902,1000049952
06.02.2019,CHILDREN'S SERVICES,1ST PLACE CHILDREN & PARENTS CENTRE,"60,554.70",NURSERY ED GRANT 3 YEAR OLD,GRANTS,2102917900,1000049952
06.02.2019,CHILDREN'S SERVICES,CAMBERWELL AFTER SCHOOL PROJECT,"13,893.30",NURSERY ED GRANT 3 YEAR OLD,GRANTS,2102917923,1000051625
06.02.2019,CHILDREN'S SERVICES,BRIGHT HORIZONS FAMILY SOLUTIONS,"10,976.34",NURSERY ED GRANT 3 YEAR OLD,GRANTS,2102917935,1000052087
06.02.2019,CHILDREN'S SERVICES,BRIGHT HORIZONS FAMILY SOLUTIONS,"45,075.60",NURSERY ED GRANT 3 YEAR OLD,GRANTS,2102917916,1000052087
06.02.2019,CHILDREN'S SERVICES,VEVIENNE CAMPBELL,"2,365.20",NURSERY ED GRANT 3 YEAR OLD,GRANTS,2102918035,1000053391
06.02.2019,CHILDREN'S SERVICES,JULIE THOMPSON,"15,058.20",NURSERY ED GRANT 3 YEAR OLD,GRANTS,2102917913,1000054116
06.02.2019,CHILDREN'S SERVICES,DENISE OTAR,"7,147.80",NURSERY ED GRANT 3 YEAR OLD,GRANTS,2102917931,1000054239
06.02.2019,CHILDREN'S SERVICES,OLUFUNMI OREYOMI,"1,350.00",NURSERY ED GRANT 3 YEAR OLD,GRANTS,2102918000,1000055802
06.02.2019,CHILDREN'S SERVICES,SMART START NURSERY,"58,311.30",NURSERY ED GRANT 3 YEAR OLD,GRANTS,2102918019,1000056317
06.02.2019,CHILDREN'S SERVICES,GERMAN KINDERGARTEN LTD,"9,194.40",NURSERY ED GRANT 3 YEAR OLD,GRANTS,2102917950,1000058090
06.02.2019,CHILDREN'S SERVICES,VICTORY IN COMMUNITY RESOURCE CENTRE,"24,022.80",NURSERY ED GRANT 3 YEAR OLD,GRANTS,2102918036,1000058383
06.02.2019,CHILDREN'S SERVICES,TINU ODEKU T/A LITTLE ANGELS CHILDCARE SERVICES,"12,950.10",NURSERY ED GRANT 3 YEAR OLD,GRANTS,2102917975,1000058464
06.02.2019,CHILDREN'S SERVICES,CAROLINE ROONEY,535.5,NURSERY ED GRANT 3 YEAR OLD,GRANTS,2102917922,1000058592
06.02.2019,CHILDREN'S SERVICES,DAWN DIXON,881.1,NURSERY ED GRANT 3 YEAR OLD,GRANTS,2102917929,1000059408
06.02.2019,CHILDREN'S SERVICES,ARK SCHOOLS T/A GLOBE ACADEMY,"3,315.60",NURSERY ED GRANT 3 YEAR OLD,GRANTS,2102917951,1000060008
06.02.2019,CHILDREN'S SERVICES,SUCCESS ASSOCIATES,"31,465.50",NURSERY ED GRANT 3 YEAR OLD,GRANTS,2102917972,1000060300
06.02.2019,CHILDREN'S SERVICES,EXCEL CHILD CARE SERVICES LTD,"17,870.40",NURSERY ED GRANT 3 YEAR OLD,GRANTS,2102917944,1000060429
06.02.2019,CHILDREN'S SERVICES,DIONNE CAMPBELL,"1,353.60",NURSERY ED GRANT 3 YEAR OLD,GRANTS,2102917933,1000061532
06.02.2019,CHILDREN'S SERVICES,CTY NURSERY LTD,"39,069.60",NURSERY ED GRANT 3 YEAR OLD,GRANTS,2102917927,1000063131
06.02.2019,CHILDREN'S SERVICES,MARY KIM,"1,240.20",NURSERY ED GRANT 3 YEAR OLD,GRANTS,2102917986,1000064977
06.02.2019,CHILDREN'S SERVICES,K & O CHILDCARE LTD,"37,794.60",NURSERY ED GRANT 3 YEAR OLD,GRANTS,2102917969,1000065113
06.02.2019,CHILDREN'S SERVICES,UMU AMINATA KABIA,"2,054.70",NURSERY ED GRANT 3 YEAR OLD,GRANTS,2102918033,1000066088
06.02.2019,CHILDREN'S SERVICES,SURE AND FIRM FOUNDATIONS,"15,912.90",NURSERY ED GRANT 3 YEAR OLD,GRANTS,2102917993,1000066223
06.02.2019,CHILDREN'S SERVICES,REDRIFF DAYCARE,"4,020.00",NURSERY ED GRANT 3 YEAR OLD,GRANTS,2102918010,1000066369
06.02.2019,CHILDREN'S SERVICES,LITTLE JUNGLE NURSERY LIMITED,"36,684.90",NURSERY ED GRANT 3 YEAR OLD,GRANTS,2102917978,1000067064
06.02.2019,CHILDREN'S SERVICES,DESTINY KIDS NURSERY LTD,"21,463.20",NURSERY ED GRANT 3 YEAR OLD,GRANTS,2102917932,1000068663
06.02.2019,CHILDREN'S SERVICES,GOOSE GREEN PRIMARY AND NURSERY SCHOOL,"25,791.80",NURSERY ED GRANT 3 YEAR OLD,GRANTS,2102917954,1000070613
06.02.2019,CHILDREN'S SERVICES,PIPLINGS NURSERY ED,"12,731.40",NURSERY ED GRANT 3 YEAR OLD,GRANTS,2102918004,1000070644
06.02.2019,CHILDREN'S SERVICES,UNDER THE WILLOW NURSERY,"16,271.10",NURSERY ED GRANT 3 YEAR OLD,GRANTS,2102918034,1000071830
06.02.2019,CHILDREN'S SERVICES,MINI TREASURES NURSERY LTD,"29,781.90",NURSERY ED GRANT 3 YEAR OLD,GRANTS,2102917988,1000071834
06.02.2019,CHILDREN'S SERVICES,HEAVEN SENT NURSERY LTD,"24,521.40",NURSERY ED GRANT 3 YEAR OLD,GRANTS,2102917961,1000071859
06.02.2019,CHILDREN'S SERVICES,THE FRUIT TREE DAY NURSERY,"30,375.00",NURSERY ED GRANT 3 YEAR OLD,GRANTS,2102918029,1000072492
06.02.2019,CHILDREN'S SERVICES,GODS GRACE DAYCARE,"5,632.20",NURSERY ED GRANT 3 YEAR OLD,GRANTS,2102917953,1000072790
06.02.2019,CHILDREN'S SERVICES,SOPHIA ESSEL,"1,240.20",NURSERY ED GRANT 3 YEAR OLD,GRANTS,2102918020,1000073414
06.02.2019,CHILDREN'S SERVICES,LITTLE FINGERS MONTESSORI 2,"24,093.60",NURSERY ED GRANT 3 YEAR OLD,GRANTS,2102917977,1000073415
06.02.2019,CHILDREN'S SERVICES,JACQUELINE WELLS,"3,997.80",NURSERY ED GRANT 3 YEAR OLD,GRANTS,2102917964,1000073750
06.02.2019,CHILDREN'S SERVICES,LOGICOUS LTD,"24,693.00",NURSERY ED GRANT 3 YEAR OLD,GRANTS,2102917909,1000073852
06.02.2019,CHILDREN'S SERVICES,BRIGHT EXPLORERS DAY NURSERY,"2,461.50",NURSERY ED GRANT 3 YEAR OLD,GRANTS,2102917915,1000074268
06.02.2019,CHILDREN'S SERVICES,PATRICIA IBIRONKE T/A JOYFUL STAR NURSERY,"5,436.00",NURSERY ED GRANT 3 YEAR OLD,GRANTS,2102917966,1000074638
06.02.2019,CHILDREN'S SERVICES,JOY ALLI,"37,751.40",NURSERY ED GRANT 3 YEAR OLD,GRANTS,2102918015,1000074965
06.02.2019,CHILDREN'S SERVICES,FIRST CHOICE DAY NURSERY,"22,743.00",NURSERY ED GRANT 3 YEAR OLD,GRANTS,2102917899,1000075368
06.02.2019,CHILDREN'S SERVICES,ANGEL OAK ACADEMY,"13,770.90",NURSERY ED GRANT 3 YEAR OLD,GRANTS,2102917907,1000075379
06.02.2019,CHILDREN'S SERVICES,HEAVENLY ANGELS LTD T/A BANANA MOON DAY NURSERY,"3,324.60",NURSERY ED GRANT 3 YEAR OLD,GRANTS,2102917910,1000076197
06.02.2019,CHILDREN'S SERVICES,AISHA IDRIS MAHAMA,"8,811.90",NURSERY ED GRANT 3 YEAR OLD,GRANTS,2102917904,1000076302
06.02.2019,CHILDREN'S SERVICES,TODDLE ON INN LTD,"19,575.00",NURSERY ED GRANT 3 YEAR OLD,GRANTS,2102918031,1000076934
06.02.2019,CHILDREN'S SERVICES,LONDON EARLY YEARS FOUNDATION,"23,021.10",NURSERY ED GRANT 3 YEAR OLD,GRANTS,2102917919,1000077129
06.02.2019,CHILDREN'S SERVICES,EAST DULWICH GROVE NURSERY LTD,"35,886.60",NURSERY ED GRANT 3 YEAR OLD,GRANTS,2102917971,1000077140
06.02.2019,CHILDREN'S SERVICES,LYNSEY PAVEY,"1,688.40",NURSERY ED GRANT 3 YEAR OLD,GRANTS,2102917982,1000077405
06.02.2019,CHILDREN'S SERVICES,LONDON EARLY YEARS FOUNDATION,"20,842.80",NURSERY ED GRANT 3 YEAR OLD,GRANTS,2102918022,1000077919
06.02.2019,CHILDREN'S SERVICES,LILIES DAY NURSERY,"44,862.30",NURSERY ED GRANT 3 YEAR OLD,GRANTS,2102917973,1000078155
06.02.2019,CHILDREN'S SERVICES,MARIA ELEFTHERIOU,"5,292.90",NURSERY ED GRANT 3 YEAR OLD,GRANTS,2102917985,1000078601
06.02.2019,CHILDREN'S SERVICES,EAGLES FLIGHT MONTESSORI NURSERY,"1,829.70",NURSERY ED GRANT 3 YEAR OLD,GRANTS,2102917939,1000079087
06.02.2019,CHILDREN'S SERVICES,DAUCY DE CAMIGNANI,"1,071.00",NURSERY ED GRANT 3 YEAR OLD,GRANTS,2102917928,1000079174
06.02.2019,CHILDREN'S SERVICES,MAUREEN GARVIS,864,NURSERY ED GRANT 3 YEAR OLD,GRANTS,2102917987,1000079199
06.02.2019,CHILDREN'S SERVICES,FATMATA BANGURA,"2,480.40",NURSERY ED GRANT 3 YEAR OLD,GRANTS,2102917945,1000079391
06.02.2019,CHILDREN'S SERVICES,SUSAN PATERSON,"1,071.00",NURSERY ED GRANT 3 YEAR OLD,GRANTS,2102918028,1000079504
06.02.2019,CHILDREN'S SERVICES,ESTHER PARSONS,"1,236.60",NURSERY ED GRANT 3 YEAR OLD,GRANTS,2102917943,1000079521
06.02.2019,CHILDREN'S SERVICES,LITTLEPIPS PRESCHOOL,"11,690.10",NURSERY ED GRANT 3 YEAR OLD,GRANTS,2102917979,1000079580
06.02.2019,CHILDREN'S SERVICES,GEORGIA LONGHURST,647.1,NURSERY ED GRANT 3 YEAR OLD,GRANTS,2102917949,1000079588
06.02.2019,CHILDREN'S SERVICES,NICOLE REYNOLDS,"4,500.00",NURSERY ED GRANT 3 YEAR OLD,GRANTS,2102917999,1000079725
06.02.2019,CHILDREN'S SERVICES,POPPYS DAY NURSERY,"15,854.40",NURSERY ED GRANT 3 YEAR OLD,GRANTS,2102918006,1000080085
06.02.2019,CHILDREN'S SERVICES,BRIGHT SOJOURNER NURSERY LTD,"3,069.90",NURSERY ED GRANT 3 YEAR OLD,GRANTS,2102917917,1000080155
06.02.2019,CHILDREN'S SERVICES,PUMPHOUSE 16 LTD,"5,580.00",NURSERY ED GRANT 3 YEAR OLD,GRANTS,2102918008,1000080556
06.02.2019,CHILDREN'S SERVICES,NICOLA SUPPLE,"1,606.50",NURSERY ED GRANT 3 YEAR OLD,GRANTS,2102917998,1000080557
06.02.2019,CHILDREN'S SERVICES,SORAIA BARBOSA,"1,606.50",NURSERY ED GRANT 3 YEAR OLD,GRANTS,2102918021,1000080643
06.02.2019,CHILDREN'S SERVICES,JULIA KERRIGAN,"2,142.00",NURSERY ED GRANT 3 YEAR OLD,GRANTS,2102917968,1000080973
06.02.2019,CHILDREN'S SERVICES,SUNSHINE FRUITS NURSERY LTD,"12,365.10",NURSERY ED GRANT 3 YEAR OLD,GRANTS,2102918026,1000081059
06.02.2019,CHILDREN'S SERVICES,RACHEL GAFFIKIN,562.5,NURSERY ED GRANT 3 YEAR OLD,GRANTS,2102918009,1000081377
06.02.2019,CHILDREN'S SERVICES,DEBORAH COX,"1,071.00",NURSERY ED GRANT 3 YEAR OLD,GRANTS,2102917930,1000081550
06.02.2019,CHILDREN'S SERVICES,LONDON EARLY YEARS FOUNDATION,"14,248.20",NURSERY ED GRANT 3 YEAR OLD,GRANTS,2102917920,1000081575
06.02.2019,CHILDREN'S SERVICES,PERNILLE SCHULZ,306,NURSERY ED GRANT 3 YEAR OLD,GRANTS,2102918003,1000081650
06.02.2019,CHILDREN'S SERVICES,HAPPYGEMS DAYCARE LTD,"4,191.30",NURSERY ED GRANT 3 YEAR OLD,GRANTS,2102917959,1000081758
06.02.2019,CHILDREN'S SERVICES,AYA KAN MARIE REINE FRONDO,"1,294.20",NURSERY ED GRANT 3 YEAR OLD,GRANTS,2102917908,1000082015
06.02.2019,CHILDREN'S SERVICES,REDACTED PERSONAL DATA,"2,543.62",NURSERY ED GRANT 3 YEAR OLD,GRANTS,REDACTED,REDACTED
06.02.2019,CHILDREN'S SERVICES,REDACTED PERSONAL DATA,"1,071.00",NURSERY ED GRANT 3 YEAR OLD,GRANTS,REDACTED,REDACTED
06.02.2019,CHILDREN'S SERVICES,DULWICH VILLAGE PRE-SCHOOL,"39,214.80",NURSERY ED GRANT 3 YEAR OLD,GRANTS,2102917937,11171932
06.02.2019,CHILDREN'S SERVICES,MUSTARD SEED PRE-SCHOOL,"7,192.62",NURSERY ED GRANT 3 YEAR OLD,GRANTS,2102917992,11210829
06.02.2019,CHILDREN'S SERVICES,ST MARY'S PRE-SCHOOL,"9,441.00",NURSERY ED GRANT 3 YEAR OLD,GRANTS,2102918025,11223522
06.02.2019,CHILDREN'S SERVICES,DYASON PRE-SCHOOL,"12,968.10",NURSERY ED GRANT 3 YEAR OLD,GRANTS,2102917938,11255736
06.02.2019,CHILDREN'S SERVICES,ST JOHNS PRE SCHOOL,"21,859.20",NURSERY ED GRANT 3 YEAR OLD,GRANTS,2102918024,1000013380
06.02.2019,CHILDREN'S SERVICES,ALLEYNS JUNIOR SCHOOL,"3,687.00",NURSERY ED GRANT 3 YEAR OLD,GRANTS,2102917906,1000020848
06.02.2019,CHILDREN'S SERVICES,DULWICH MONTESSORI NURSERY SCHOOL,"26,712.00",NURSERY ED GRANT 3 YEAR OLD,GRANTS,2102917934,1000020859
06.02.2019,CHILDREN'S SERVICES,REDRIFF PRIMARY SCHOOL,"84,301.20",NURSERY ED GRANT 3 YEAR OLD,GRANTS,2102918011,1000067877
06.02.2019,CHILDREN'S SERVICES,HARRIS PRIMARY ACADEMY PECKHAM PARK,"24,897.60",NURSERY ED GRANT 3 YEAR OLD,GRANTS,2102917960,1000068029
06.02.2019,CHILDREN'S SERVICES,DULWICH OAKS MONTESSORI NURSERY SCHOOL,"62,574.00",NURSERY ED GRANT 3 YEAR OLD,GRANTS,2102917936,1000070726
06.02.2019,CHILDREN'S SERVICES,JOHN DONNE PRIMARY SCHOOL,"52,572.60",NURSERY ED GRANT 3 YEAR OLD,GRANTS,2102917965,1000073253
06.02.2019,CHILDREN'S SERVICES,ROTHERHITHE PRIMARY SCHOOL,"32,850.18",NURSERY ED GRANT 3 YEAR OLD,GRANTS,2102918014,5001000058
06.02.2019,CHILDREN'S SERVICES,WESTLANDS SCHOOL,"1,500.00",PUPIL PREMIUM CURRENT YEAR,SCHOOLS CAPITATION,2102917863,1000075375
06.02.2019,CHILDREN'S SERVICES,WESTLANDS SCHOOL,"1,500.00",PUPIL PREMIUM CURRENT YEAR,SCHOOLS CAPITATION,2102917864,1000075375
06.02.2019,CHILDREN'S SERVICES,FOREST HILL SCHOOL,530,PUPIL PREMIUM CURRENT YEAR,SCHOOLS CAPITATION,2102917867,1000078512
06.02.2019,CHILDREN'S SERVICES,REDACTED PERSONAL DATA,269.08,RESIDENCE ORDERS,PAYMENTS TO CARERS,REDACTED,REDACTED
06.02.2019,CHILDREN'S SERVICES,REDACTED PERSONAL DATA,269.08,RESIDENCE ORDERS,PAYMENTS TO CARERS,REDACTED,REDACTED
06.02.2019,CHILDREN'S SERVICES,REDACTED PERSONAL DATA,276.1,RESIDENCE ORDERS,PAYMENTS TO CARERS,REDACTED,REDACTED
06.02.2019,CHILDREN'S SERVICES,REDACTED PERSONAL DATA,263.96,RESIDENCE ORDERS,PAYMENTS TO CARERS,REDACTED,REDACTED
06.02.2019,CHILDREN'S SERVICES,ACCESS MOBILITY TRANSPORT LTD,"11,955.00",SCH TRANS - CONTRACT COST,CAB FARES,5902342595,1000074637
06.02.2019,CHILDREN'S SERVICES,ACCESS MOBILITY TRANSPORT LTD,"13,925.00",SCH TRANS - CONTRACT COST,CAB FARES,5902342595,1000074637
06.02.2019,CHILDREN'S SERVICES,REDACTED PERSONAL DATA,360,SEMI INDEPENDENT,OTHER PAYMENTS FOR CLIENTS,REDACTED,REDACTED
06.02.2019,CHILDREN'S SERVICES,REDACTED PERSONAL DATA,269.08,SPECIAL GUARDIANSHIP,PAYMENTS TO CARERS,REDACTED,REDACTED
06.02.2019,CHILDREN'S SERVICES,REDACTED PERSONAL DATA,388.04,SPECIAL GUARDIANSHIP,PAYMENTS TO CARERS,REDACTED,REDACTED
06.02.2019,CHILDREN'S SERVICES,REDACTED PERSONAL DATA,342.45,SPECIAL GUARDIANSHIP,PAYMENTS TO CARERS,REDACTED,REDACTED
06.02.2019,CHILDREN'S SERVICES,REDACTED PERSONAL DATA,389.34,SPECIAL GUARDIANSHIP,PAYMENTS TO CARERS,REDACTED,REDACTED
06.02.2019,CHILDREN'S SERVICES,REDACTED PERSONAL DATA,269.08,SPECIAL GUARDIANSHIP,PAYMENTS TO CARERS,REDACTED,REDACTED
06.02.2019,CHILDREN'S SERVICES,REDACTED PERSONAL DATA,356.15,SPECIAL GUARDIANSHIP,PAYMENTS TO CARERS,REDACTED,REDACTED
06.02.2019,CHILDREN'S SERVICES,REDACTED PERSONAL DATA,403.04,SPECIAL GUARDIANSHIP,PAYMENTS TO CARERS,REDACTED,REDACTED
06.02.2019,CHILDREN'S SERVICES,REDACTED PERSONAL DATA,269.08,SPECIAL GUARDIANSHIP,PAYMENTS TO CARERS,REDACTED,REDACTED
06.02.2019,CHILDREN'S SERVICES,REDACTED PERSONAL DATA,269.08,SPECIAL GUARDIANSHIP,PAYMENTS TO CARERS,REDACTED,REDACTED
06.02.2019,CHILDREN'S SERVICES,REDACTED PERSONAL DATA,343.05,SPECIAL GUARDIANSHIP,PAYMENTS TO CARERS,REDACTED,REDACTED
06.02.2019,CHILDREN'S SERVICES,REDACTED PERSONAL DATA,525,SPECIAL GUARDIANSHIP,PAYMENTS TO CARERS,REDACTED,REDACTED
06.02.2019,CHILDREN'S SERVICES,REDACTED PERSONAL DATA,525,SPECIAL GUARDIANSHIP,PAYMENTS TO CARERS,REDACTED,REDACTED
06.02.2019,CHILDREN'S SERVICES,REDACTED PERSONAL DATA,525,SPECIAL GUARDIANSHIP,PAYMENTS TO CARERS,REDACTED,REDACTED
06.02.2019,CHILDREN'S SERVICES,REDACTED PERSONAL DATA,301.18,UASC SECTION 24,OTHER PAYMENTS FOR CLIENTS,REDACTED,REDACTED
06.02.2019,CHILDREN'S SERVICES,REDACTED PERSONAL DATA,350,UNIVERSITY SUPPORT,OTHER PAYMENTS FOR CLIENTS,REDACTED,REDACTED
06.02.2019,COMMISSIONING & CENTRAL,OXFORD BROOKES ENTERPRISES LTD,"10,800.00",ASW - PROFESSIONAL DEVELOPMENT,TRAINING,5902342542,1000076102
06.02.2019,COMMISSIONING & CENTRAL,RAHANA HUSSAIN,550,CHILDREN'S MULTI-AGENCY SAFEGUARDING TRA,TRAINING,5902342553,1000052067
06.02.2019,COMMUNITIES,WILLIAM BOOTH COLLEGE,500,HOMEOWNER FUND,EXTERNAL AGENCIES AND BODIES,5902342456,1000037085
06.02.2019,COMMUNITIES,WILLIAM BOOTH COLLEGE,"7,002.08",HOMEOWNER FUND,EXTERNAL AGENCIES AND BODIES,5902342456,1000037085
06.02.2019,COMMUNITIES,EMS EVENTS LTD,592.5,MAYORAL SUPPORT,MISCELLANEOUS EXPENSES,5902341817,1000057494
06.02.2019,COMMUNITIES,CARE UNLIMITED GROUP LTD,"5,952.11",NO RECOURSE TO PUBLIC FUNDS,RESIDENTIAL CARE,5902342605,11172617
06.02.2019,CUSTOMER EXPERIENCE,HENRY TRUMPINGTON,300,COMPLAINTS,PROFESSIONAL FEES,5902342481,1000020175
06.02.2019,CUSTOMER EXPERIENCE HGF,EASYMOVE EA LIMITED,"2,805.50",NIGHTLY TA (NSC),EXTERNAL AGENCIES AND BODIES,5902342606,1000066859
06.02.2019,CUSTOMER EXPERIENCE HGF,OAK HOUSING LTD,"3,496.18",PSL PLACEMENTS,EXTERNAL AGENCIES AND BODIES,5902342591,1000079310
06.02.2019,CUSTOMER EXPERIENCE HGF,LODGISTICS ESTATES,"2,510.97",PSL PLACEMENTS,EXTERNAL AGENCIES AND BODIES,5902342582,1000080324
06.02.2019,ENVIRONMENT AND LEISURE,PROJECT CENTRE LTD,347,CAPITAL PS (LEISURE),CONSTR'N SUB CONTRACT - NON CERTIFICATED,5902342478,1000072621
06.02.2019,ENVIRONMENT AND LEISURE,PROJECT CENTRE LTD,"2,393.00",CAPITAL PS (LEISURE),CONSTR'N SUB CONTRACT - NON CERTIFICATED,5902342478,1000072621
06.02.2019,ENVIRONMENT AND LEISURE,CONWAY AECOM LTD,"4,917.49",CAPITAL PS (LEISURE),CONSTR'N SUB CONTRACT - NON CERTIFICATED,2102917852,3000001595
06.02.2019,ENVIRONMENT AND LEISURE,CONWAY AECOM LTD,"5,348.94",CAPITAL PS (LEISURE),CONSTR'N SUB CONTRACT - NON CERTIFICATED,2102917851,3000001595
06.02.2019,ENVIRONMENT AND LEISURE,CONWAY AECOM LTD,"12,011.83",CAPITAL PS (LEISURE),CONSTR'N SUB CONTRACT - NON CERTIFICATED,2102917849,3000001595
06.02.2019,ENVIRONMENT AND LEISURE,CONWAY AECOM LTD,"13,940.75",CAPITAL PS (LEISURE),CONSTR'N SUB CONTRACT - NON CERTIFICATED,2102917852,3000001595
06.02.2019,ENVIRONMENT AND LEISURE,CONWAY AECOM LTD,"22,739.57",CAPITAL PS (LEISURE),CONSTR'N SUB CONTRACT - NON CERTIFICATED,2102917850,3000001595
06.02.2019,ENVIRONMENT AND LEISURE,FACULTATIEVE TECHNOLOGIES LTD,"6,817.65",CAPITAL PS (LEISURE),CONSTRUCTION FEES  - EXTERNAL,2102917880,3000001925
06.02.2019,ENVIRONMENT DIRECTORATE,VOLKSWAGEN FINANCIAL SERVICES (UK),257.62,CAR LEASING CTRL A/C,VEHICLE LEASING CHARGES,5902342528,1000079245
06.02.2019,ENVIRONMENT DIRECTORATE,VOLKSWAGEN FINANCIAL SERVICES (UK),313.28,CAR LEASING CTRL A/C,VEHICLE LEASING CHARGES,5902342528,1000079245
06.02.2019,ENVIRONMENT DIRECTORATE,SCOT GROUP LIMITED,350.56,COMMERCIAL VEH CTRL A/C,HIRED VEHICLES,5902342577,1709512
06.02.2019,ENVIRONMENT DIRECTORATE,SCOT GROUP LIMITED,385.56,COMMERCIAL VEH CTRL A/C,HIRED VEHICLES,5902342571,1709512
06.02.2019,ENVIRONMENT DIRECTORATE,SCOT GROUP LIMITED,385.56,COMMERCIAL VEH CTRL A/C,HIRED VEHICLES,5902342593,1709512
06.02.2019,ENVIRONMENT DIRECTORATE,RYGOR COMMERCIALS LIMITED,"4,416.00",COMMERCIAL VEH CTRL A/C,HIRED VEHICLES,5902342120,1000063262
06.02.2019,ENVIRONMENT DIRECTORATE,LONDON HIRE LIMITED,"1,068.51",COMMERCIAL VEH CTRL A/C,VEHICLE REPAIRS & MAINTENANCE,5902342522,1383812
06.02.2019,ENVIRONMENT DIRECTORATE,LONDON TOOLS LIMITED,269,ENGINEERING CRAFTS,MATERIALS,5902342435,1000003017
06.02.2019,ENVIRONMENT DIRECTORATE,THE T.P. PARTNERSHIP,445,ESTATE CLEANING-GENERAL,OTHER CONTRACTORS,5902342538,1000045906
06.02.2019,ENVIRONMENT DIRECTORATE,THE T.P. PARTNERSHIP,455,ESTATE CLEANING-GENERAL,OTHER CONTRACTORS,5902342539,1000045906
06.02.2019,ENVIRONMENT DIRECTORATE,QUARTERMAN WINDSCREENS LTD,328.5,FLEET INSURANCE WORKS,TRANSPORT INSURANCE COSTS,5902342556,1043709
06.02.2019,ENVIRONMENT DIRECTORATE,M H COACHWORKS & SONS LTD,644.03,FLEET INSURANCE WORKS,TRANSPORT INSURANCE COSTS,5902342470,1000033495
06.02.2019,ENVIRONMENT DIRECTORATE,M H COACHWORKS & SONS LTD,803.44,FLEET INSURANCE WORKS,TRANSPORT INSURANCE COSTS,5902342461,1000033495
06.02.2019,ENVIRONMENT DIRECTORATE,M H COACHWORKS & SONS LTD,879.64,FLEET INSURANCE WORKS,TRANSPORT INSURANCE COSTS,5902342475,1000033495
06.02.2019,ENVIRONMENT DIRECTORATE,M H COACHWORKS & SONS LTD,980.31,FLEET INSURANCE WORKS,TRANSPORT INSURANCE COSTS,5902342459,1000033495
06.02.2019,ENVIRONMENT DIRECTORATE,M H COACHWORKS & SONS LTD,"1,036.00",FLEET INSURANCE WORKS,TRANSPORT INSURANCE COSTS,5902342457,1000033495
06.02.2019,ENVIRONMENT DIRECTORATE,LONDON HIRE T/A R J MOTORS,"1,028.85",FLEET INSURANCE WORKS,TRANSPORT INSURANCE COSTS,5902342497,1000047106
06.02.2019,ENVIRONMENT DIRECTORATE,LEX AUTOLEASE,269,FLEET INSURANCE WORKS,TRANSPORT INSURANCE COSTS,5902342495,1000069462
06.02.2019,ENVIRONMENT DIRECTORATE,LEX AUTOLEASE,"19,658.33",FLEET INSURANCE WORKS,TRANSPORT INSURANCE COSTS,5902342494,1000069462
06.02.2019,ENVIRONMENT DIRECTORATE,PACE ACCIDENT REPAIRS CENTRE LTD,547.5,FLEET INSURANCE WORKS,TRANSPORT INSURANCE COSTS,5902342446,1000069899
06.02.2019,ENVIRONMENT DIRECTORATE,PACE ACCIDENT REPAIRS CENTRE LTD,976.02,FLEET INSURANCE WORKS,TRANSPORT INSURANCE COSTS,5902342445,1000069899
06.02.2019,ENVIRONMENT DIRECTORATE,PACE ACCIDENT REPAIRS CENTRE LTD,"1,096.99",FLEET INSURANCE WORKS,TRANSPORT INSURANCE COSTS,5902342451,1000069899
06.02.2019,ENVIRONMENT DIRECTORATE,PACE ACCIDENT REPAIRS CENTRE LTD,"1,185.38",FLEET INSURANCE WORKS,TRANSPORT INSURANCE COSTS,5902342449,1000069899
06.02.2019,ENVIRONMENT DIRECTORATE,PACE ACCIDENT REPAIRS CENTRE LTD,"1,332.44",FLEET INSURANCE WORKS,TRANSPORT INSURANCE COSTS,5902342443,1000069899
06.02.2019,ENVIRONMENT DIRECTORATE,PACE ACCIDENT REPAIRS CENTRE LTD,"2,067.62",FLEET INSURANCE WORKS,TRANSPORT INSURANCE COSTS,5902342447,1000069899
06.02.2019,ENVIRONMENT DIRECTORATE,ARVAL UK LTD,390,FLEET SERVICES MANAGEMENT,TRANSPORT INSURANCE COSTS,5902342500,1000079802
06.02.2019,ENVIRONMENT DIRECTORATE,COMPLETE TREE CARE LTD,"1,840.02",NON HOUSING GROUNDS,AGENCY STAFF,5902342575,1000041410
06.02.2019,ENVIRONMENT DIRECTORATE,LONDON TOOLS LIMITED,570,PUBLIC LIGHTING,MATERIALS,5902342434,1000003017
06.02.2019,F & C S EXCLUDING CORPORATE BUDGETS,POSTURITE (UK) LTD,529.19,ADMINISTRATIVE SUPPORT,FURNITURE PURCHASE & REPAIR,5902342524,11015468
06.02.2019,F & C S EXCLUDING CORPORATE BUDGETS,NORTHGATE PUBLIC SERVICES (UK) LTD,304.73,ADMINISTRATIVE SUPPORT,POSTAGES,5902342531,1000037405
06.02.2019,F & C S EXCLUDING CORPORATE BUDGETS,INSTITUTE OF LICENCE (EVENTS) LTD,600,LEGAL SVCES MANAGEMENT,SUBSCRIPTIONS,5902342515,1000054694
06.02.2019,F & C S EXCLUDING CORPORATE BUDGETS,VALUEADDING.COM LTD,"5,500.00",PROJECTS,OTHER CONTRACTORS,5902342499,1000066730
06.02.2019,HOUSING GENERAL FUND,ENGIE REGENERATION (APOLLO) LTD,"33,081.25",CAPITAL PS (HOUSING GF),CONSTRUCTION,2102917855,4000449
06.02.2019,HOUSING GENERAL FUND,ENGIE REGENERATION (APOLLO) LTD,"136,039.33",CAPITAL PS (HOUSING GF),CONSTRUCTION,2102917855,4000449
06.02.2019,HOUSING GENERAL FUND,ENGIE REGENERATION (APOLLO) LTD,"481,167.52",CAPITAL PS (HOUSING GF),CONSTRUCTION,2102917856,4000449
06.02.2019,HOUSING GENERAL FUND,WHEELERS MOBILE HOME & CARAVAN TRANSPORT,"12,450.00",CAPITAL PS (HOUSING GF),CONSTRUCTION FEES - INTERNAL,5902342607,1000081034
06.02.2019,HOUSING HRA,C&C BUILDERS LTD,"6,925.00",CAPITAL PS (HRA),CONST'N MAIN CONTRACT - NON CERTIFICATED,2102917882,3000001986
06.02.2019,HOUSING HRA,C&C BUILDERS LTD,"7,435.00",CAPITAL PS (HRA),CONST'N MAIN CONTRACT - NON CERTIFICATED,2102917883,3000001986
06.02.2019,HOUSING HRA,MORGAN SINDALL PLC,"36,732.00",CAPITAL PS (HRA),CONSTR'N SUB CONTRACT - NON CERTIFICATED,2102917869,3000001556
06.02.2019,HOUSING HRA,VPS (UK) LTD,565.44,CAPITAL PS (HRA),CONSTRUCTION FEES  - EXTERNAL,5902342548,1000040614
06.02.2019,HOUSING HRA,MORGAN SINDALL PLC,"169,389.00",CAPITAL PS (HRA),CONSTRUCTION MAIN CONTRACT -CERTIFICATED,2102917868,3000001556
06.02.2019,LEISURE DIRECTORATE,BEDE HOUSE ASSOCIATION,"7,167.00",GRANTS COMMISSIONING,GRANTS,5902342552,11265073
06.02.2019,LEISURE DIRECTORATE,COMPLETE TREE CARE LTD,731.25,TREES O'HEADS,CONSULTANTS SERVICES,5902342485,1000041410
06.02.2019,LEISURE DIRECTORATE,COMPLETE TREE CARE LTD,907.5,TREES O'HEADS,CONSULTANTS SERVICES,5902342483,1000041410
06.02.2019,MODERNISATION HGF,SODEXHO PASS LTD,705.39,CHILDCARE VOUCHERS,OTHER EMPLOYEE EXPENSES,5902342599,1000048650
06.02.2019,MODERNISATION HGF,SODEXHO PASS LTD,"23,513.04",CHILDCARE VOUCHERS,OTHER EMPLOYEE EXPENSES,5902342599,1000048650
06.02.2019,PROPERTY SERVICES,STANBURY BUILDING SERVICES LTD,695,VCS MANAGED MSC BUILDILNGS,BUILDING R&M,2102917878,3000001967
06.02.2019,RESIDENT SERVICES,RELIANCE HIGH-TECH LTD,397.5,OPERATIONS/OFFICES ACCOMMODATION,MEDICAL / HEALTH & SAFETY SERVICES,5902342603,1000079374
06.02.2019,RESIDENT SERVICES,TFL TELESALES / OYSTER FULFILMENT,"3,155.00",OPERATIONS/OFFICES ACCOMMODATION,PUBLIC TRANSPORT,5902342526,1000059727
06.02.2019,RESIDENT SERVICES,A & M PROPERTY AND CONSTRUCTION LTD,"1,085.00",TA PLACEMENTS,EXTERNAL AGENCIES AND BODIES,5902342540,1000014564
06.02.2019,RESIDENT SERVICES,CROWN HOUSING LTD,"1,658.50",TA PLACEMENTS,EXTERNAL AGENCIES AND BODIES,5902342551,1000075070
06.02.2019,SOUTHWARK BUILDING SERVICES,A & E ELKINS LTD,"5,289.43",BUSINESS SUPPORT,OTHER CONTRACTORS,2102917895,4012501
06.02.2019,SOUTHWARK BUILDING SERVICES,MULTI-INSTALLATIONS LTD,"7,127.88",BUSINESS SUPPORT,OTHER CONTRACTORS,2102917896,3000000595
06.02.2019,SOUTHWARK BUILDING SERVICES,MASHER BROTHERS LTD,"35,606.45",BUSINESS SUPPORT,OTHER CONTRACTORS,2102917889,3000001100
06.02.2019,SOUTHWARK BUILDING SERVICES,E & E BUILDING SERVICES LTD,"45,348.13",BUSINESS SUPPORT,OTHER CONTRACTORS,2102917890,3000001176
06.02.2019,SOUTHWARK BUILDING SERVICES,FRANKLYN SHAW ASSOCIATES LTD,"20,356.33",BUSINESS SUPPORT,OTHER CONTRACTORS,2102917887,3000001465
06.02.2019,SOUTHWARK BUILDING SERVICES,EMPIRE BUILDERS,"3,190.93",BUSINESS SUPPORT,OTHER CONTRACTORS,2102917891,3000001466
06.02.2019,SOUTHWARK BUILDING SERVICES,DIAMOND SCAFFOLDING (SOUTH EAST),"4,449.68",BUSINESS SUPPORT,OTHER CONTRACTORS,2102917893,3000001625
06.02.2019,SOUTHWARK BUILDING SERVICES,1st ACTIVE PROPERTY SERVICES LTD,"34,723.92",BUSINESS SUPPORT,OTHER CONTRACTORS,2102917888,3000001655
06.02.2019,SOUTHWARK BUILDING SERVICES,DEREK BUILDING SERVICES LTD,"20,276.13",BUSINESS SUPPORT,OTHER CONTRACTORS,2102917886,3000001751
06.02.2019,SOUTHWARK BUILDING SERVICES,BUDMAX CONSTRUCTION LTD,"4,393.87",BUSINESS SUPPORT,OTHER CONTRACTORS,2102917892,3000001936
06.02.2019,SOUTHWARK BUILDING SERVICES,GMS ELECTRICAL LTD,"5,239.00",BUSINESS SUPPORT,OTHER CONTRACTORS,2102917894,3000002085
06.02.2019,SOUTHWARK BUILDING SERVICES,TRAVIS PERKINS,436.9,R & M OVERHEADS,MATERIALS,5902342489,1514319
06.02.2019,SOUTHWARK BUILDING SERVICES,TRAVIS PERKINS,500.77,R & M OVERHEADS,MATERIALS,5902342430,1514319
06.02.2019,SOUTHWARK BUILDING SERVICES,LONDON TOOLS LIMITED,750,STORES/LOGISTICS,CREDITORS -GR/IR CLEARING ACCOUNT,5902342436,1000003017
06.02.2019,SOUTHWARK BUILDING SERVICES,LONDON TOOLS LIMITED,"2,225.00",STORES/LOGISTICS,CREDITORS -GR/IR CLEARING ACCOUNT,5902342436,1000003017
07.02.2019,ADULT SOCIAL CARE,GROVE HOTEL LTD,"1,260.00",APPOINTEESHIPS,OTHER PAYMENTS FOR CLIENTS,5902342664,1000043663
07.02.2019,ADULT SOCIAL CARE,GROVE HOTEL LTD,"1,302.00",APPOINTEESHIPS,OTHER PAYMENTS FOR CLIENTS,5902342662,1000043663
07.02.2019,ADULT SOCIAL CARE,GROVE HOTEL LTD,"1,302.00",APPOINTEESHIPS,OTHER PAYMENTS FOR CLIENTS,5902342663,1000043663
07.02.2019,ADULT SOCIAL CARE,THE RIVERSIDE GROUP LTD,674.73,APPOINTEESHIPS,OTHER PAYMENTS FOR CLIENTS,5902341303,1000069625
07.02.2019,ADULT SOCIAL CARE,REDACTED PERSONAL DATA,400,APPOINTEESHIPS,OTHER PAYMENTS FOR CLIENTS,REDACTED,REDACTED
07.02.2019,ADULT SOCIAL CARE,REDACTED PERSONAL DATA,880,RESPITE FOSTERCARERS,PAYMENTS TO CARERS,REDACTED,REDACTED
07.02.2019,ADULT SOCIAL CARE,REDACTED PERSONAL DATA,564,RESPITE FOSTERCARERS,PAYMENTS TO CARERS,REDACTED,REDACTED
07.02.2019,ADULT SOCIAL CARE,REDACTED PERSONAL DATA,320,RESPITE FOSTERCARERS,PAYMENTS TO CARERS,REDACTED,REDACTED
07.02.2019,ADULT SOCIAL CARE,INTERSERVE HEALTHCARE,575.15,SPECIALIST CARE,SECTION 17 PAYMENTS TO AGENCIES/CARERS,2102918133,1000049612
07.02.2019,ADULT SOCIAL CARE,METRO HOMECARE LTD,306.9,SPECIALIST CARE,SECTION 17 PAYMENTS TO AGENCIES/CARERS,2102918146,1000070695
07.02.2019,ADULT SOCIAL CARE,METRO HOMECARE LTD,334.8,SPECIALIST CARE,SECTION 17 PAYMENTS TO AGENCIES/CARERS,2102918135,1000070695
07.02.2019,ADULT SOCIAL CARE,METRO HOMECARE LTD,336,SPECIALIST CARE,SECTION 17 PAYMENTS TO AGENCIES/CARERS,2102918144,1000070695
07.02.2019,ADULT SOCIAL CARE,METRO HOMECARE LTD,418.5,SPECIALIST CARE,SECTION 17 PAYMENTS TO AGENCIES/CARERS,2102918139,1000070695
07.02.2019,ADULT SOCIAL CARE,METRO HOMECARE LTD,502.2,SPECIALIST CARE,SECTION 17 PAYMENTS TO AGENCIES/CARERS,2102918137,1000070695
07.02.2019,ADULT SOCIAL CARE,METRO HOMECARE LTD,530.1,SPECIALIST CARE,SECTION 17 PAYMENTS TO AGENCIES/CARERS,2102918147,1000070695
07.02.2019,ADULT SOCIAL CARE,METRO HOMECARE LTD,725.4,SPECIALIST CARE,SECTION 17 PAYMENTS TO AGENCIES/CARERS,2102918138,1000070695
07.02.2019,ADULT SOCIAL CARE,PECULIAR CARE HOMES LTD,359,SPECIALIST CARE,SECTION 17 PAYMENTS TO AGENCIES/CARERS,2102918136,1000076991
07.02.2019,ADULT SOCIAL CARE,PECULIAR CARE HOMES LTD,430.8,SPECIALIST CARE,SECTION 17 PAYMENTS TO AGENCIES/CARERS,2102918142,1000076991
07.02.2019,ADULT SOCIAL CARE,PECULIAR CARE HOMES LTD,"3,338.70",SPECIALIST CARE,SECTION 17 PAYMENTS TO AGENCIES/CARERS,2102918131,1000076991
07.02.2019,ADULT SOCIAL CARE,INTERSERVE HEALTHCARE,479.02,TRANSITIONS 14-18YRS,SECTION 17 PAYMENTS TO AGENCIES/CARERS,2102918129,1000049612
07.02.2019,ADULT SOCIAL CARE,METRO HOMECARE LTD,809.1,TRANSITIONS 14-18YRS,SECTION 17 PAYMENTS TO AGENCIES/CARERS,2102918140,1000070695
07.02.2019,ADULT SOCIAL CARE,PECULIAR CARE HOMES LTD,287.2,TRANSITIONS 14-18YRS,SECTION 17 PAYMENTS TO AGENCIES/CARERS,2102918143,1000076991
07.02.2019,ADULT SOCIAL CARE,PECULIAR CARE HOMES LTD,"1,292.40",TRANSITIONS 14-18YRS,SECTION 17 PAYMENTS TO AGENCIES/CARERS,2102918145,1000076991
07.02.2019,ASSET MANAGEMENT,FRANKHAM CONSULTANCY GROUP LTD,564.03,ADAPTATIONS,BUILDING R&M,5902342771,1000043952
07.02.2019,ASSET MANAGEMENT,BELSHAW & CURTIN SOLICITORS,"7,000.00",DISREPAIR,BUILDING R&M,5902341355,1767379
07.02.2019,ASSET MANAGEMENT,BUREAU VERITAS UK,"1,620.00",ENG CONTRACTS (SOUTH),HEATING - DISTRICT SYSTEM SERVICE,5902342683,1000052275
07.02.2019,ASSET MANAGEMENT,BUREAU VERITAS UK,"2,744.00",ENG CONTRACTS (SOUTH),HEATING - DISTRICT SYSTEM SERVICE,5902342686,1000052275
07.02.2019,ASSET MANAGEMENT,SGN CONNECTIONS LTD,532.8,ENG CONTRACTS (SOUTH),OTHER R&M,5902342689,1000055428
07.02.2019,ASSET MANAGEMENT,PRB ESTATES LTD,"11,349.23",FIRE PROTECTION,BUILDING R&M,2102918195,3000001691
07.02.2019,ASSET MANAGEMENT,BRIDGEWATER ROOFING CONTRACTORS LTD,"113,518.48",VISIBLE DIFFERENCE (NORTH),BUILDING R&M,2102918196,3000001482
07.02.2019,CENTRAL FUNCTIONS,ACTION SHUTTERS LTD,"1,295.00",COMMERCIAL PROPERTIES,BUILDING R&M,5902342685,1788172
07.02.2019,CENTRAL FUNCTIONS,STANBURY BUILDING SERVICES LTD,950,COMMERCIAL PROPERTIES,BUILDING R&M,2102918200,3000001967
07.02.2019,CENTRAL FUNCTIONS,STANBURY BUILDING SERVICES LTD,"1,395.00",COMMERCIAL PROPERTIES,BUILDING R&M,2102918203,3000001967
07.02.2019,CENTRAL FUNCTIONS,STANBURY BUILDING SERVICES LTD,"1,795.00",COMMERCIAL PROPERTIES,BUILDING R&M,2102918204,3000001967
07.02.2019,CENTRAL FUNCTIONS,STANBURY BUILDING SERVICES LTD,"2,395.00",COMMERCIAL PROPERTIES,BUILDING R&M,2102918202,3000001967
07.02.2019,CENTRAL FUNCTIONS,STANBURY BUILDING SERVICES LTD,"4,895.00",COMMERCIAL PROPERTIES,BUILDING R&M,2102918201,3000001967
07.02.2019,CENTRAL FUNCTIONS,SILK & MACKMAN SERVICES LTD,"2,490.00",GARAGE REPAIRS,BUILDING R&M,5902342788,1000035282
07.02.2019,CENTRAL FUNCTIONS,KENT COUNTY COUNCIL - LASER,-613.45,HEATING ACCOUNT,ELECTRICITY,2102918104,1000012926
07.02.2019,CENTRAL FUNCTIONS,KENT COUNTY COUNCIL - LASER,"5,031.64",HEATING ACCOUNT,ELECTRICITY,5902342793,1000012926
07.02.2019,CENTRAL FUNCTIONS,KENT COUNTY COUNCIL - LASER,"17,689.60",HEATING ACCOUNT,ELECTRICITY,5902342727,1000012926
07.02.2019,CENTRAL FUNCTIONS,KENT COUNTY COUNCIL - LASER,"51,372.03",HEATING ACCOUNT,ELECTRICITY,5902342727,1000012926
07.02.2019,CENTRAL FUNCTIONS,KENT COUNTY COUNCIL - LASER,"74,109.21",HEATING ACCOUNT,ELECTRICITY,5902342793,1000012926
07.02.2019,CENTRAL FUNCTIONS,NPOWER LTD,709.8,HEATING ACCOUNT,ELECTRICITY,5902342651,1000078994
07.02.2019,CENTRAL FUNCTIONS,KENT COUNTY COUNCIL - LASER,"21,324.99",HEATING ACCOUNT,GAS,5902342734,1000012926
07.02.2019,CENTRAL FUNCTIONS,KENT COUNTY COUNCIL - LASER,"672,919.98",HEATING ACCOUNT,GAS,5902342734,1000012926
07.02.2019,CENTRAL FUNCTIONS,HMCTS,-335,HOME OWNERSHIP,LEGAL FEES & COURT COSTS,5902343020,11259243
07.02.2019,CENTRAL FUNCTIONS,HMCTS,335,HOME OWNERSHIP,LEGAL FEES & COURT COSTS,5902287268,11259243
07.02.2019,CHIEF EXECUTIVE'S OFFICE,PECAN LTD,"31,489.00",CHIEF EXEC'S OFFICE,GRANTS,5902342749,11263114
07.02.2019,CHIEF EXECUTIVE'S OFFICE,HERNE HILL FORUM,"5,000.00",HERNE HILL,GRANTS,5902342725,1000046111
07.02.2019,CHILDREN'S SERVICES,DIVERSITY FOSTER CARE LTD,"4,108.69",AGENCY FOSTERING,EXTERNAL AGENCIES AND BODIES,2102918152,1000081399
07.02.2019,CHILDREN'S SERVICES,DIVERSITY FOSTER CARE LTD,"4,108.69",AGENCY FOSTERING,EXTERNAL AGENCIES AND BODIES,2102918153,1000081399
07.02.2019,CHILDREN'S SERVICES,BROMLEY TRUST ACADEMY,"3,600.00",ALTERNATIVE PROVISION,EXTERNAL AGENCIES AND BODIES,5902342659,1000077097
07.02.2019,CHILDREN'S SERVICES,BROMLEY TRUST ACADEMY,"3,600.00",ALTERNATIVE PROVISION,EXTERNAL AGENCIES AND BODIES,5902342661,1000077097
07.02.2019,CHILDREN'S SERVICES,LONDON BOROUGH OF TOWER HAMLETS,"6,481.80",ALTERNATIVE PROVISION,EXTERNAL AGENCIES AND BODIES,5902342732,1000054528
07.02.2019,CHILDREN'S SERVICES,ISABELLE GRAVENSTEIN T/A REVIVAL,"1,160.00",CENTRAL SUPPORT,MEDICAL / HEALTH & SAFETY SERVICES,5902342720,1000027424
07.02.2019,CHILDREN'S SERVICES,AIDHOUR LIMITED,318.05,CLA TEAM SAFEGUARDING,PROFESSIONAL FEES,5902341856,1000057345
07.02.2019,CHILDREN'S SERVICES,AIDHOUR LIMITED,690.9,CLA TEAM SAFEGUARDING,PROFESSIONAL FEES,5902341854,1000057345
07.02.2019,CHILDREN'S SERVICES,AIDHOUR LIMITED,"1,033.50",CLA TEAM SAFEGUARDING,PROFESSIONAL FEES,5902341855,1000057345
07.02.2019,CHILDREN'S SERVICES,AIDHOUR LIMITED,"1,275.65",CLA TEAM SAFEGUARDING,PROFESSIONAL FEES,5902341853,1000057345
07.02.2019,CHILDREN'S SERVICES,MARTINS UPHOLSTERY SUPPLIES LTD,345.7,DIRECT DELIVERY,MATERIALS,5902342649,1000049444
07.02.2019,CHILDREN'S SERVICES,SOFTWARE SOLUTIONS (WARWICK) LTD,925,DIRECT DELIVERY,SOFTWARE,5902342541,11013313
07.02.2019,CHILDREN'S SERVICES,REDACTED PERSONAL DATA,800,DISABILITY & HIV,ADDITIONAL PAYMENTS TO AGENCIES/CARERS,REDACTED,REDACTED
07.02.2019,CHILDREN'S SERVICES,REDACTED PERSONAL DATA,708.01,DISABILITY & HIV,PAYMENTS TO CARERS,REDACTED,REDACTED
07.02.2019,CHILDREN'S SERVICES,REDACTED PERSONAL DATA,684.72,DISABILITY & HIV,PAYMENTS TO CARERS,REDACTED,REDACTED
07.02.2019,CHILDREN'S SERVICES,REDACTED PERSONAL DATA,857.45,DISABILITY & HIV,PAYMENTS TO CARERS,REDACTED,REDACTED
07.02.2019,CHILDREN'S SERVICES,REDACTED PERSONAL DATA,814.77,DISABILITY & HIV,PAYMENTS TO CARERS,REDACTED,REDACTED
07.02.2019,CHILDREN'S SERVICES,REDACTED PERSONAL DATA,"2,290.55",DISABILITY & HIV,PAYMENTS TO CARERS,REDACTED,REDACTED
07.02.2019,CHILDREN'S SERVICES,REDACTED PERSONAL DATA,589.96,DISABILITY & HIV,PAYMENTS TO CARERS,REDACTED,REDACTED
07.02.2019,CHILDREN'S SERVICES,REDACTED PERSONAL DATA,-345.46,DISABILITY & HIV,PAYMENTS TO CARERS,REDACTED,REDACTED
07.02.2019,CHILDREN'S SERVICES,REDACTED PERSONAL DATA,345.46,DISABILITY & HIV,PAYMENTS TO CARERS,REDACTED,REDACTED
07.02.2019,CHILDREN'S SERVICES,REDACTED PERSONAL DATA,699.87,DISABILITY & HIV,PAYMENTS TO CARERS,REDACTED,REDACTED
07.02.2019,CHILDREN'S SERVICES,REDACTED PERSONAL DATA,-487.36,DISABILITY & HIV,PAYMENTS TO CARERS,REDACTED,REDACTED
07.02.2019,CHILDREN'S SERVICES,REDACTED PERSONAL DATA,619.35,DISABILITY & HIV,PAYMENTS TO CARERS,REDACTED,REDACTED
07.02.2019,CHILDREN'S SERVICES,REDACTED PERSONAL DATA,699.87,DISABILITY & HIV,PAYMENTS TO CARERS,REDACTED,REDACTED
07.02.2019,CHILDREN'S SERVICES,LONDON EARLY YEARS FOUNDATION,"48,032.10",NURSERY ED GRANT 3 YEAR OLD,GRANTS,2102917912,1000074303
07.02.2019,CHILDREN'S SERVICES,KEYS CHILDCARE LTD,885.72,RESIDENTIAL,OTHER PAYMENTS FOR CLIENTS,2102918117,1000081582
07.02.2019,CHILDREN'S SERVICES,THE DRIVE CARE HOMES LTD,"13,176.24",RESIDENTIAL,RESIDENTIAL CARE,2102918111,1000003889
07.02.2019,CHILDREN'S SERVICES,CASTLE HOMES LIMITED,"16,889.51",RESIDENTIAL,RESIDENTIAL CARE,2102918114,1000019388
07.02.2019,CHILDREN'S SERVICES,FOOTSTEPS CARE LTD,"19,623.70",RESIDENTIAL,RESIDENTIAL CARE,2102918112,1000045464
07.02.2019,CHILDREN'S SERVICES,CAMBIAN CHILDCARE LTD,"21,257.01",RESIDENTIAL,RESIDENTIAL CARE,2102918109,1000075351
07.02.2019,CHILDREN'S SERVICES,HORIZON CARE & EDUCATION GROUP LTD,"14,835.67",RESIDENTIAL,RESIDENTIAL CARE,2102918126,1000075467
07.02.2019,CHILDREN'S SERVICES,CHILDHOOD FIRST,"22,200.43",RESIDENTIAL,RESIDENTIAL CARE,2102918113,1000076330
07.02.2019,CHILDREN'S SERVICES,CREATING CARE CHOICES LTD,"15,500.00",RESIDENTIAL,RESIDENTIAL CARE,2102918115,1000076738
07.02.2019,CHILDREN'S SERVICES,INMIND CHILDRENS SERVICES LTD,"32,992.99",RESIDENTIAL,RESIDENTIAL CARE,2102918110,1000078280
07.02.2019,CHILDREN'S SERVICES,THE AMICUS COMMUNITY (ARUNDEL) LTD,"20,570.67",RESIDENTIAL,RESIDENTIAL CARE,2102918118,1000079012
07.02.2019,CHILDREN'S SERVICES,KISIMUL GROUP LTD,"37,522.95",RESIDENTIAL,RESIDENTIAL CARE,2102918120,1000079657
07.02.2019,CHILDREN'S SERVICES,KEYS CHILDCARE LTD,"16,607.14",RESIDENTIAL,RESIDENTIAL CARE,2102918116,1000081582
07.02.2019,CHILDREN'S SERVICES,KEYS SPECIALIST RESIDENTIAL CHILDREN'S SERVICES,"21,921.34",RESIDENTIAL,RESIDENTIAL CARE,2102918119,1000081606
07.02.2019,CHILDREN'S SERVICES,CONTACT PROFESSIONALS,380,RESOURCE PANEL,SECTION 17 PAYMENTS TO AGENCIES/CARERS,2102918125,1000057263
07.02.2019,CHILDREN'S SERVICES,READY STEADY MOVE LTD,547.5,S & FAM SUPP - PRAC GRP B SET 17-19,OTHER PAYMENTS FOR CLIENTS,5902342724,1000060084
07.02.2019,CHILDREN'S SERVICES,FAMILY FOSTERING LTD,"1,771.34",S24 CLA,EXTERNAL AGENCIES AND BODIES,2102918124,1000075179
07.02.2019,CHILDREN'S SERVICES,SILVER BIRCH CARE LTD,"2,475.00",S24 CLA,EXTERNAL AGENCIES AND BODIES,2102918123,1000076525
07.02.2019,CHILDREN'S SERVICES,IDEAL CARE SOLUTIONS LTD,"1,948.57",S24 CLA,EXTERNAL AGENCIES AND BODIES,2102918154,1000080804
07.02.2019,CHILDREN'S SERVICES,HOLIBROOK HOUSE LTD,"7,905.00",SEMI INDEPENDENT,EXTERNAL AGENCIES AND BODIES,2102918121,1000067873
07.02.2019,CHILDREN'S SERVICES,SILVER BIRCH CARE LTD,"2,710.71",SEMI INDEPENDENT,EXTERNAL AGENCIES AND BODIES,2102918122,1000076525
07.02.2019,CHILDREN'S SERVICES,PATHWAY LTD,"4,040.00",SEMI INDEPENDENT,EXTERNAL AGENCIES AND BODIES,2102918127,1000080564
07.02.2019,CHILDREN'S SERVICES,SYDNEY CARE LTD,"13,263.57",SEMI INDEPENDENT,EXTERNAL AGENCIES AND BODIES,2102918156,1000081598
07.02.2019,CHILDREN'S SERVICES,SYDNEY CARE LTD,256.41,SEMI INDEPENDENT,OTHER PAYMENTS FOR CLIENTS,2102918157,1000081598
07.02.2019,CHILDREN'S SERVICES,REDACTED PERSONAL DATA,300,UASC FURTHER EDUCATION SUPPORT,CLIENT TRANSPORT,REDACTED,REDACTED
07.02.2019,CHILDREN'S SERVICES,REDACTED PERSONAL DATA,400,UASC FURTHER EDUCATION SUPPORT,OTHER PAYMENTS FOR CLIENTS,REDACTED,REDACTED
07.02.2019,CHILDREN'S SERVICES,ISABELLE GRAVENSTEIN T/A REVIVAL,522,YOS SUPPORT,MEDICAL / HEALTH & SAFETY SERVICES,5902342717,1000027424
07.02.2019,COMMISSIONING & CENTRAL,TRAVERSE PROCUREMENT LTD,"5,880.00",COMMISSIONING TEAM,CONSULTANTS SERVICES,5902342611,1000081883
07.02.2019,COMMUNITIES,NHS SOUTHWARK CCG,"14,509.80",ADULT SM S75 (INSTEAD OF PHARMACY SM),EXTERNAL AGENCIES AND BODIES,5902342792,1000073431
07.02.2019,COMMUNITIES,NHS SOUTHWARK CCG,"23,110.00",ADULT SM S75 (INSTEAD OF PHARMACY SM),EXTERNAL AGENCIES AND BODIES,5902342769,1000073431
07.02.2019,COMMUNITIES,TURNING POINT,"1,293.00",NO RECOURSE TO PUBLIC FUNDS,ACCOMMODATION CHARGES,5902342629,11321523
07.02.2019,COMMUNITIES,TURNING POINT,"1,293.00",NO RECOURSE TO PUBLIC FUNDS,ACCOMMODATION CHARGES,5902342641,11321523
07.02.2019,COMMUNITIES,METROPOLITAN SUPPORT TRUST,939.48,NO RECOURSE TO PUBLIC FUNDS,ACCOMMODATION CHARGES,5902342758,1000047547
07.02.2019,COMMUNITIES,METROPOLITAN SUPPORT TRUST,939.48,NO RECOURSE TO PUBLIC FUNDS,ACCOMMODATION CHARGES,5902342763,1000047547
07.02.2019,COMMUNITIES,CROMWOOD HOUSING,"9,951.00",NO RECOURSE TO PUBLIC FUNDS,ACCOMMODATION CHARGES,5902342679,1000071450
07.02.2019,COMMUNITIES,SOUTH OF THE RIVER INVESTMENTS LTD,"4,572.50",NO RECOURSE TO PUBLIC FUNDS,ACCOMMODATION CHARGES,5902342770,1000073638
07.02.2019,COMMUNITIES,TAAKSVALE HOUSING LTD,"24,226.90",NO RECOURSE TO PUBLIC FUNDS,ACCOMMODATION CHARGES,5902342650,1000073665
07.02.2019,COMMUNITIES,STENFORD PROPERTY LTD,807,NO RECOURSE TO PUBLIC FUNDS,ACCOMMODATION CHARGES,5902342698,1000074759
07.02.2019,COMMUNITIES,STENFORD PROPERTY LTD,"1,425.00",NO RECOURSE TO PUBLIC FUNDS,ACCOMMODATION CHARGES,5902342698,1000074759
07.02.2019,COMMUNITIES,CROWN HOUSING LTD,"4,328.00",NO RECOURSE TO PUBLIC FUNDS,ACCOMMODATION CHARGES,5902342665,1000075070
07.02.2019,COMMUNITIES,FINEFAIR LTD,"1,461.34",NO RECOURSE TO PUBLIC FUNDS,ACCOMMODATION CHARGES,5902342654,1000075570
07.02.2019,COMMUNITIES,NATIONWIDE ACCOMMODATION,"7,665.50",NO RECOURSE TO PUBLIC FUNDS,ACCOMMODATION CHARGES,5902342674,1000076112
07.02.2019,COMMUNITIES,PHIL MORGAN LTD,"1,070.50",RESIDENT INVOLVEMENT TEAM,PROFESSIONAL FEES,5902342657,1000081732
07.02.2019,COMMUNITIES,STYLES HOUSE TMO,580.96,STYLES HOUSE TMO,M&M ALLOWANCE CO-OPS,5902342628,1000072012
07.02.2019,CUSTOMER EXPERIENCE,PARIS SMITH AND RANDALL SOLICITORS,333.26,SALES & ACQUISITIONS,LEGAL FEES & COURT COSTS,5902342634,1000008059
07.02.2019,CUSTOMER EXPERIENCE,PARIS SMITH AND RANDALL SOLICITORS,334.26,SALES & ACQUISITIONS,LEGAL FEES & COURT COSTS,5902342635,1000008059
07.02.2019,CUSTOMER EXPERIENCE,PARIS SMITH AND RANDALL SOLICITORS,363.06,SALES & ACQUISITIONS,LEGAL FEES & COURT COSTS,5902342656,1000008059
07.02.2019,CUSTOMER EXPERIENCE HGF,ACCESS INDEPENDENT LTD,"1,519.25",BLUE BADGES,PROFESSIONAL FEES,5902342576,1000059141
07.02.2019,CUSTOMER EXPERIENCE HGF,KINGS COLLEGE NHS FOUNDATION TRUST,-595.9,CORONER'S,PROFESSIONAL FEES,5902342904,11255665
07.02.2019,CUSTOMER EXPERIENCE HGF,KINGS COLLEGE NHS FOUNDATION TRUST,595.9,CORONER'S,PROFESSIONAL FEES,5902334391,11255665
07.02.2019,CUSTOMER EXPERIENCE HGF,EDEN ESTATES LONDON LTD,"26,239.00",NIGHTLY TA (NSC),EXTERNAL AGENCIES AND BODIES,5902342755,1000061217
07.02.2019,CUSTOMER EXPERIENCE HGF,FINEFAIR LTD,"41,284.56",NIGHTLY TA (NSC),EXTERNAL AGENCIES AND BODIES,5902342681,1000075570
07.02.2019,CUSTOMER EXPERIENCE HGF,FINEFAIR LTD,"4,593.10",PSL PLACEMENTS,EXTERNAL AGENCIES AND BODIES,5902342760,1000075570
07.02.2019,ENVIRONMENT AND LEISURE,RH WROUGHT IRON,"-2,000.00",CAPITAL PS (LEISURE),CONST'N MAIN CONTRACT - NON CERTIFICATED,5902342960,3000000680
07.02.2019,ENVIRONMENT AND LEISURE,RH WROUGHT IRON,"2,000.00",CAPITAL PS (LEISURE),CONST'N MAIN CONTRACT - NON CERTIFICATED,5902342908,3000000680
07.02.2019,ENVIRONMENT AND LEISURE,CONWAY AECOM LTD,"21,907.62",CAPITAL PS (LEISURE),CONSTR'N SUB CONTRACT - NON CERTIFICATED,5902342678,1000071205
07.02.2019,ENVIRONMENT AND LEISURE,BREEZE LANDSCAPE ARCHITECTS LTD,"1,500.00",CAPITAL PS (LEISURE),CONSTRUCTION FEES  - EXTERNAL,5902342617,1000078053
07.02.2019,ENVIRONMENT AND LEISURE,RH WROUGHT IRON,"2,000.00",CAPITAL PS (LEISURE),CONSTRUCTION FEES - INTERNAL,2102918205,3000000680
07.02.2019,ENVIRONMENT DIRECTORATE,ACCESS HIRE NATIONWIDE LTD,"2,084.73",COMMERCIAL VEH CTRL A/C,HIRED VEHICLES,5902342644,1000048527
07.02.2019,ENVIRONMENT DIRECTORATE,RISK & SAFETY MANAGEMENT SERVICES LTD,"1,399.00",EH & TS MANAGER,TRAINING,5902342721,1000081701
07.02.2019,ENVIRONMENT DIRECTORATE,PERFORMANCE CHEMICALS LTD,793.5,ESTATE CLEANING-GENERAL,MATERIALS,5902341519,1000037129
07.02.2019,ENVIRONMENT DIRECTORATE,GRISTWOOD & TOMS LTD,"43,780.00",NON HOUSING GROUNDS,OTHER CONTRACTORS,5902342750,1000028580
07.02.2019,ENVIRONMENT DIRECTORATE,APCOA PARKING (UK) LTD,"94,423.38",PARKING OVERHEADS,OTHER CONTRACTORS,5902342648,1718645
07.02.2019,ENVIRONMENT DIRECTORATE,APCOA PARKING (UK) LTD,"256,817.17",PARKING OVERHEADS,OTHER CONTRACTORS,5902342646,1718645
07.02.2019,ENVIRONMENT DIRECTORATE,ETC VENUES LTD,"1,119.80",PARKING OVERHEADS,OTHER EMPLOYEE EXPENSES,5902342783,1000045226
07.02.2019,ENVIRONMENT DIRECTORATE,LONDON BOROUGH OF HAVERING,"5,000.00",TRADING STANDARDS,EQUIPMENT PURCHASE & REPAIR,5902342747,1000002681
07.02.2019,ENVIRONMENT DIRECTORATE,KENT COUNTY COUNCIL,"2,350.00",TRADING STANDARDS,PROFESSIONAL FEES,5902341413,1000028346
07.02.2019,F & C S EXCLUDING CORPORATE BUDGETS,CIPFA BUSINESS LTD,"3,620.00",FINANCIAL GOVERNANCE,SUBSCRIPTIONS,5902342624,1000024688
07.02.2019,F & C S EXCLUDING CORPORATE BUDGETS,BUDGET CARPETS,354.17,SESS,OTHER PAYMENTS FOR CLIENTS,5902342737,11319076
07.02.2019,HOUSING GENERAL FUND,L H BRIDGE LTD,"7,675.00",CAPITAL PS (HOUSING GF),CAPITAL GRANTS,5902342714,1000056928
07.02.2019,HOUSING GENERAL FUND,L H BRIDGE LTD,"8,385.00",CAPITAL PS (HOUSING GF),CAPITAL GRANTS,5902342782,1000056928
07.02.2019,HOUSING GENERAL FUND,L H BRIDGE LTD,"11,750.00",CAPITAL PS (HOUSING GF),CAPITAL GRANTS,5902342690,1000056928
07.02.2019,HOUSING GENERAL FUND,PORTAKABIN LIMITED,"-1,412.04",CAPITAL PS (HOUSING GF),LAND & BUILDINGS ACQUISITION,5902342642,1000015195
07.02.2019,HOUSING GENERAL FUND,PORTAKABIN LIMITED,600,CAPITAL PS (HOUSING GF),LAND & BUILDINGS ACQUISITION,5902342632,1000015195
07.02.2019,HOUSING GENERAL FUND,PORTAKABIN LIMITED,"3,080.00",CAPITAL PS (HOUSING GF),LAND & BUILDINGS ACQUISITION,5902342636,1000015195
07.02.2019,HOUSING HRA,TRINITY CONSTRUCTION SERVICES LTD,"10,658.00",CAPITAL PS (HRA),CONST'N MAIN CONTRACT - NON CERTIFICATED,2102918191,3000001416
07.02.2019,HOUSING HRA,PRB ESTATES LTD,"8,439.00",CAPITAL PS (HRA),CONST'N MAIN CONTRACT - NON CERTIFICATED,2102918206,3000001691
07.02.2019,HOUSING HRA,PRB ESTATES LTD,"8,849.41",CAPITAL PS (HRA),CONST'N MAIN CONTRACT - NON CERTIFICATED,2102918207,3000001691
07.02.2019,HOUSING HRA,PRB ESTATES LTD,"9,398.38",CAPITAL PS (HRA),CONST'N MAIN CONTRACT - NON CERTIFICATED,2102918199,3000001691
07.02.2019,HOUSING HRA,C&C BUILDERS LTD,"7,050.40",CAPITAL PS (HRA),CONST'N MAIN CONTRACT - NON CERTIFICATED,2102918198,3000001986
07.02.2019,HOUSING HRA,C&C BUILDERS LTD,"7,129.55",CAPITAL PS (HRA),CONST'N MAIN CONTRACT - NON CERTIFICATED,2102918197,3000001986
07.02.2019,HOUSING HRA,C&C BUILDERS LTD,"7,733.35",CAPITAL PS (HRA),CONST'N MAIN CONTRACT - NON CERTIFICATED,2102918108,3000001986
07.02.2019,HOUSING HRA,WATERSLADE LTD,"1,700.00",CAPITAL PS (HRA),CONSTRUCTION FEES  - EXTERNAL,5902342671,1000075795
07.02.2019,HOUSING HRA,WATERSLADE LTD,"2,950.00",CAPITAL PS (HRA),CONSTRUCTION FEES  - EXTERNAL,5902342673,1000075795
07.02.2019,HOUSING HRA,SALTASH ENTERPRISES LTD,"24,909.94",CAPITAL PS (HRA),CONSTRUCTION MAIN CONTRACT -CERTIFICATED,2102918193,4013605
07.02.2019,HOUSING HRA,SALTASH ENTERPRISES LTD,"44,024.15",CAPITAL PS (HRA),CONSTRUCTION MAIN CONTRACT -CERTIFICATED,2102918192,4013605
07.02.2019,HOUSING HRA,CARTER JONAS LLP,"1,400.00",CAPITAL PS (HRA),LAND & BUILDINGS ACQUISITION FEES,5902341943,1000073124
07.02.2019,HOUSING HRA,LIFTEC LIFTS LTD,"60,304.32",PAYMENTS CONTROL ACCOUNT - LIFTEC,MANUAL CREDITORS,5902342633,1000057278
07.02.2019,HOUSING HRA,LIFTEC LIFTS LTD,"86,967.00",PAYMENTS CONTROL ACCOUNT - LIFTEC,MANUAL CREDITORS,5902342626,1000057278
07.02.2019,HOUSING HRA,OCO LIMITED,"348,423.19",PAYMENTS CONTROL ACCOUNT - OCO,MANUAL CREDITORS,5902342688,1006066
07.02.2019,HOUSING HRA,SMITH & BYFORD LTD,"444,906.04",SMITH AND BYFORD,MANUAL CREDITORS,2102918194,3000000520
07.02.2019,HOUSING STRATEGY AND OPTIONS,CLARKE BARNES SOLICITORS LLP,"9,500.00",HOMELESS & HOUSING OPTIONS MGT,LEGAL FEES & COURT COSTS,2102918057,1000078090
07.02.2019,HOUSING STRATEGY AND OPTIONS,CHOICELET LTD,"1,252.39",HOMELESS PROJECTS,GRANTS,5902342791,1000081073
07.02.2019,HOUSING STRATEGY AND OPTIONS,SHELTER TRAINING LTD,"4,500.00",HOMELESSNESS TRAINING ACADEMY,TRAINING,5902341389,1000033177
07.02.2019,LEISURE DIRECTORATE,R GRAY & SON,"1,152.75",CEMETERIES,OTHER R&M,5902342708,11096273
07.02.2019,LEISURE DIRECTORATE,QUADRON SERVICES LIMITED,750,CREMATORIUM,BUILDING R&M,5902342151,1000066528
07.02.2019,LEISURE DIRECTORATE,LOCATION MEDICAL SERVICES LTD,438,DULWICH EVENTS,MEDICAL / HEALTH & SAFETY SERVICES,5902342753,1000039961
07.02.2019,LEISURE DIRECTORATE,PHS GROUP PLC,"1,364.71",SDM BUDGET,PREMISES CLEANING,5902342630,1851993
07.02.2019,LEISURE DIRECTORATE,ASKEWS & HOLTS LIBRARY SERVICES LTD,596.35,STOCK SERVICES,BOOKS & PUBLICATIONS,5902342695,1494168
07.02.2019,LEISURE DIRECTORATE,ASKEWS & HOLTS LIBRARY SERVICES LTD,"3,394.39",STOCK SERVICES,BOOKS & PUBLICATIONS,5902342692,1494168
07.02.2019,LEISURE DIRECTORATE,TGL GROUP LTD,"2,075.00",TREES PRINCIPAL ROADS,EQUIPMENT PURCHASE & REPAIR,5902341395,1000081990
07.02.2019,MODERNISATION HGF,ROYAL MAIL GROUP LTD,"4,337.75",160 TOOLEY ST.,POSTAGES,5902342137,1000008168
07.02.2019,MODERNISATION HGF,RCA BUSINESS PSYCHOLOGISTS LTD,"4,500.00",HR PAYROLL COSTS,CONSULTANTS SERVICES,5902341908,1000080957
07.02.2019,MODERNISATION HGF,TWELVE EXECUTIVE COACHING  & MEDIATION,"2,400.00",MEMBER DEVELOPMENT,MEMBERS' TRAINING,5902342618,1000058306
07.02.2019,MODERNISATION HGF,COMENSURA LTD,"496,911.72",WEEKLY PAYMENTS,AGENCY STAFF,5902342696,1000051261
07.02.2019,PUBLIC HEALTH,KERRY LEMON LTD,"2,666.67",MASTER PLAN-H/WAY & TRANS INTERCHANGE,PROFESSIONAL FEES,5902342613,1000080930
07.02.2019,RESIDENT SERVICES,CARLISLE SECURITY SERVICES LTD,"12,126.72",CAMBERWELL,SECURITY SERVICES,5902342462,11212342
07.02.2019,RESIDENT SERVICES,EDF ENERGY PLC,"1,888.04",OPERATIONS/OFFICES ACCOMMODATION,ELECTRICITY,5902342733,1008746
07.02.2019,RESIDENT SERVICES,BRITISH GAS TRADING LTD,295.45,OPERATIONS/OFFICES ACCOMMODATION,ELECTRICITY,5902342621,1000055977
07.02.2019,RESIDENT SERVICES,EDEN SPRINGS (UK) LTD,539.1,OPERATIONS/OFFICES ACCOMMODATION,WATER,5902342680,1000037350
07.02.2019,RESIDENT SERVICES,BTCV,"3,600.00",PECKHAM,GROUNDS MAINTENANCE,5902342035,1000057628
07.02.2019,RESIDENT SERVICES,NEWINGTON BUTTS MANAGEMENT LTD,"54,523.08",PRIVATE SERVICE CHARGES,SERVICE CHARGES,5902342658,1000081298
07.02.2019,RESIDENT SERVICES,HSBC INVOICE FINANCE (UK) LIMITED,"-11,340.00",SPECIAL INVESTIGATIONS,LEGAL FEES & COURT COSTS,2102919171,11247592
07.02.2019,RESIDENT SERVICES,HSBC INVOICE FINANCE (UK) LIMITED,"11,340.00",SPECIAL INVESTIGATIONS,LEGAL FEES & COURT COSTS,2102899904,11247592
07.02.2019,RESIDENT SERVICES,KINDLY PROPERTIES LTD,700,TA PLACEMENTS,EXTERNAL AGENCIES AND BODIES,5902342780,1000060734
07.02.2019,RESIDENT SERVICES,KINDLY PROPERTIES LTD,"1,050.00",TA PLACEMENTS,EXTERNAL AGENCIES AND BODIES,5902342778,1000060734
07.02.2019,RESIDENT SERVICES,KINDLY PROPERTIES LTD,"1,470.00",TA PLACEMENTS,EXTERNAL AGENCIES AND BODIES,5902342776,1000060734
07.02.2019,RESIDENT SERVICES,KINDLY PROPERTIES LTD,"1,820.00",TA PLACEMENTS,EXTERNAL AGENCIES AND BODIES,5902342779,1000060734
07.02.2019,RESIDENT SERVICES,EDEN ESTATES LONDON LTD,"2,080.00",TA PLACEMENTS,EXTERNAL AGENCIES AND BODIES,5902342746,1000061217
07.02.2019,RESIDENT SERVICES,EDEN ESTATES LONDON LTD,"4,452.00",TA PLACEMENTS,EXTERNAL AGENCIES AND BODIES,5902342764,1000061217
07.02.2019,RESIDENT SERVICES,EDEN ESTATES LONDON LTD,"5,031.00",TA PLACEMENTS,EXTERNAL AGENCIES AND BODIES,5902342765,1000061217
07.02.2019,RESIDENT SERVICES,STENFORD PROPERTY LTD,"3,524.70",TA PLACEMENTS,EXTERNAL AGENCIES AND BODIES,5902342767,1000074759
07.02.2019,RESIDENT SERVICES HGF,KENT COUNTY COUNCIL - LASER,"1,104.82",DEVONSHIRE ROAD,ELECTRICITY,5902342756,1000012926
07.02.2019,RESIDENT SERVICES HGF,KENT COUNTY COUNCIL - LASER,"1,344.55",DEVONSHIRE ROAD,ELECTRICITY,5902342754,1000012926
07.02.2019,RESIDENT SERVICES HGF,KENT COUNTY COUNCIL - LASER,"1,399.55",DEVONSHIRE ROAD,ELECTRICITY,5902342751,1000012926
07.02.2019,SOUTHWARK BUILDING SERVICES,CLOSOMAT LTD,295,BERMONDSEY DAY-DAY SPECIALIST SUB-CONTR,OTHER CONTRACTORS,5902342781,1793628
07.02.2019,SOUTHWARK BUILDING SERVICES,C BREWER & SONS LTD,309.2,ROTHERHITHE DAY TO DAY - CARPENTER,MATERIALS,5902342712,1056028
08.02.2019,ADULT SOCIAL CARE,REDACTED PERSONAL DATA,488,APPOINTEESHIPS,OTHER PAYMENTS FOR CLIENTS,REDACTED,REDACTED
08.02.2019,ADULT SOCIAL CARE,THE CAMDEN SOCIETY (SOCIAL CARE),384,LD LTS 18-64,DAYCARE,2102919139,1000036369
08.02.2019,ADULT SOCIAL CARE,THE CAMDEN SOCIETY (SOCIAL CARE),425.1,LD LTS 18-64,DAYCARE,2102919105,1000036369
08.02.2019,ADULT SOCIAL CARE,THE CAMDEN SOCIETY (SOCIAL CARE),465.6,LD LTS 18-64,DAYCARE,2102919122,1000036369
08.02.2019,ADULT SOCIAL CARE,THE CAMDEN SOCIETY (SOCIAL CARE),465.6,LD LTS 18-64,DAYCARE,2102919138,1000036369
08.02.2019,ADULT SOCIAL CARE,THE CAMDEN SOCIETY (SOCIAL CARE),480.57,LD LTS 18-64,DAYCARE,2102919114,1000036369
08.02.2019,ADULT SOCIAL CARE,THE CAMDEN SOCIETY (SOCIAL CARE),582,LD LTS 18-64,DAYCARE,2102919104,1000036369
08.02.2019,ADULT SOCIAL CARE,THE CAMDEN SOCIETY (SOCIAL CARE),609.6,LD LTS 18-64,DAYCARE,2102919134,1000036369
08.02.2019,ADULT SOCIAL CARE,THE CAMDEN SOCIETY (SOCIAL CARE),676.8,LD LTS 18-64,DAYCARE,2102919124,1000036369
08.02.2019,ADULT SOCIAL CARE,THE CAMDEN SOCIETY (SOCIAL CARE),705.6,LD LTS 18-64,DAYCARE,2102919133,1000036369
08.02.2019,ADULT SOCIAL CARE,THE CAMDEN SOCIETY (SOCIAL CARE),753.6,LD LTS 18-64,DAYCARE,2102919127,1000036369
08.02.2019,ADULT SOCIAL CARE,THE CAMDEN SOCIETY (SOCIAL CARE),753.6,LD LTS 18-64,DAYCARE,2102919144,1000036369
08.02.2019,ADULT SOCIAL CARE,THE CAMDEN SOCIETY (SOCIAL CARE),753.6,LD LTS 18-64,DAYCARE,2102919146,1000036369
08.02.2019,ADULT SOCIAL CARE,THE CAMDEN SOCIETY (SOCIAL CARE),753.6,LD LTS 18-64,DAYCARE,2102919147,1000036369
08.02.2019,ADULT SOCIAL CARE,THE CAMDEN SOCIETY (SOCIAL CARE),765,LD LTS 18-64,DAYCARE,2102919106,1000036369
08.02.2019,ADULT SOCIAL CARE,THE CAMDEN SOCIETY (SOCIAL CARE),842.7,LD LTS 18-64,DAYCARE,2102919131,1000036369
08.02.2019,ADULT SOCIAL CARE,THE CAMDEN SOCIETY (SOCIAL CARE),880,LD LTS 18-64,DAYCARE,2102919112,1000036369
08.02.2019,ADULT SOCIAL CARE,THE CAMDEN SOCIETY (SOCIAL CARE),882,LD LTS 18-64,DAYCARE,2102919149,1000036369
08.02.2019,ADULT SOCIAL CARE,THE CAMDEN SOCIETY (SOCIAL CARE),960,LD LTS 18-64,DAYCARE,2102919108,1000036369
08.02.2019,ADULT SOCIAL CARE,THE CAMDEN SOCIETY (SOCIAL CARE),988,LD LTS 18-64,DAYCARE,2102919125,1000036369
08.02.2019,ADULT SOCIAL CARE,THE CAMDEN SOCIETY (SOCIAL CARE),988,LD LTS 18-64,DAYCARE,2102919135,1000036369
08.02.2019,ADULT SOCIAL CARE,THE CAMDEN SOCIETY (SOCIAL CARE),"1,056.00",LD LTS 18-64,DAYCARE,2102919123,1000036369
08.02.2019,ADULT SOCIAL CARE,THE CAMDEN SOCIETY (SOCIAL CARE),"1,122.00",LD LTS 18-64,DAYCARE,2102919119,1000036369
08.02.2019,ADULT SOCIAL CARE,THE CAMDEN SOCIETY (SOCIAL CARE),"1,128.00",LD LTS 18-64,DAYCARE,2102919116,1000036369
08.02.2019,ADULT SOCIAL CARE,THE CAMDEN SOCIETY (SOCIAL CARE),"1,128.00",LD LTS 18-64,DAYCARE,2102919150,1000036369
08.02.2019,ADULT SOCIAL CARE,THE CAMDEN SOCIETY (SOCIAL CARE),"1,129.50",LD LTS 18-64,DAYCARE,2102919113,1000036369
08.02.2019,ADULT SOCIAL CARE,THE CAMDEN SOCIETY (SOCIAL CARE),"1,200.00",LD LTS 18-64,DAYCARE,2102919141,1000036369
08.02.2019,ADULT SOCIAL CARE,THE CAMDEN SOCIETY (SOCIAL CARE),"1,408.00",LD LTS 18-64,DAYCARE,2102919121,1000036369
08.02.2019,ADULT SOCIAL CARE,THE CAMDEN SOCIETY (SOCIAL CARE),"1,451.52",LD LTS 18-64,DAYCARE,2102919115,1000036369
08.02.2019,ADULT SOCIAL CARE,THE CAMDEN SOCIETY (SOCIAL CARE),"1,473.60",LD LTS 18-64,DAYCARE,2102919129,1000036369
08.02.2019,ADULT SOCIAL CARE,THE CAMDEN SOCIETY (SOCIAL CARE),"1,500.00",LD LTS 18-64,DAYCARE,2102919107,1000036369
08.02.2019,ADULT SOCIAL CARE,THE CAMDEN SOCIETY (SOCIAL CARE),"1,536.00",LD LTS 18-64,DAYCARE,2102919117,1000036369
08.02.2019,ADULT SOCIAL CARE,THE CAMDEN SOCIETY (SOCIAL CARE),"1,634.76",LD LTS 18-64,DAYCARE,2102919142,1000036369
08.02.2019,ADULT SOCIAL CARE,THE CAMDEN SOCIETY (SOCIAL CARE),"1,760.00",LD LTS 18-64,DAYCARE,2102919111,1000036369
08.02.2019,ADULT SOCIAL CARE,THE CAMDEN SOCIETY (SOCIAL CARE),"1,760.00",LD LTS 18-64,DAYCARE,2102919137,1000036369
08.02.2019,ADULT SOCIAL CARE,THE CAMDEN SOCIETY (SOCIAL CARE),"1,848.00",LD LTS 18-64,DAYCARE,2102919120,1000036369
08.02.2019,ADULT SOCIAL CARE,THE CAMDEN SOCIETY (SOCIAL CARE),"1,848.00",LD LTS 18-64,DAYCARE,2102919130,1000036369
08.02.2019,ADULT SOCIAL CARE,THE CAMDEN SOCIETY (SOCIAL CARE),"2,085.00",LD LTS 18-64,DAYCARE,2102919132,1000036369
08.02.2019,ADULT SOCIAL CARE,THE CAMDEN SOCIETY (SOCIAL CARE),"2,280.50",LD LTS 18-64,DAYCARE,2102919143,1000036369
08.02.2019,ADULT SOCIAL CARE,THE CAMDEN SOCIETY (SOCIAL CARE),"2,374.00",LD LTS 18-64,DAYCARE,2102919136,1000036369
08.02.2019,ADULT SOCIAL CARE,THE CAMDEN SOCIETY (SOCIAL CARE),"2,448.00",LD LTS 18-64,DAYCARE,2102919110,1000036369
08.02.2019,ADULT SOCIAL CARE,THE CAMDEN SOCIETY (SOCIAL CARE),"2,489.68",LD LTS 18-64,DAYCARE,2102919140,1000036369
08.02.2019,ADULT SOCIAL CARE,THE CAMDEN SOCIETY (SOCIAL CARE),"2,555.00",LD LTS 18-64,DAYCARE,2102919118,1000036369
08.02.2019,ADULT SOCIAL CARE,THE CAMDEN SOCIETY (SOCIAL CARE),"2,700.00",LD LTS 18-64,DAYCARE,2102919126,1000036369
08.02.2019,ADULT SOCIAL CARE,THE CAMDEN SOCIETY (SOCIAL CARE),"2,760.48",LD LTS 18-64,DAYCARE,2102919145,1000036369
08.02.2019,ADULT SOCIAL CARE,SUPREME CARE SERVICES LTD,367.4,LD LTS 18-64,HOMECARE - C&V,2102918643,1000059416
08.02.2019,ADULT SOCIAL CARE,SUPREME CARE SERVICES LTD,467.6,LD LTS 18-64,HOMECARE - C&V,2102918815,1000059416
08.02.2019,ADULT SOCIAL CARE,PEOPLEPLUS ILS,454.46,LD LTS 18-64,PAYMENTS TO CLIENTS (DIRECT PAYMENTS),2102919155,1000061886
08.02.2019,ADULT SOCIAL CARE,THE CAMDEN SOCIETY (SOCIAL CARE),897.6,LD LTS 65+,DAYCARE,2102919109,1000036369
08.02.2019,ADULT SOCIAL CARE,LONDON CARE LTD,"6,227.38",LD LTS 65+,HOMECARE - C&V,2102918397,1000003398
08.02.2019,ADULT SOCIAL CARE,SUPREME CARE SERVICES LTD,751.5,LD LTS 65+,HOMECARE - C&V,2102918772,1000059416
08.02.2019,ADULT SOCIAL CARE,TFL TELESALES / OYSTER FULFILMENT,380,LD MGMT & SUPPORT,PUBLIC TRANSPORT,5902342950,1000059727
08.02.2019,ADULT SOCIAL CARE,LONDON CARE LTD,374.76,MEM LTS 18-64,HOMECARE - C&V,2102919036,1000003398
08.02.2019,ADULT SOCIAL CARE,LONDON CARE LTD,699.44,MEM LTS 18-64,HOMECARE - C&V,2102918969,1000003398
08.02.2019,ADULT SOCIAL CARE,PEOPLEPLUS ILS,392.79,MEM LTS 18-64,PAYMENTS TO CLIENTS (DIRECT PAYMENTS),2102919157,1000061886
08.02.2019,ADULT SOCIAL CARE,PEOPLEPLUS ILS,509.22,MEM LTS 18-64,PAYMENTS TO CLIENTS (DIRECT PAYMENTS),2102919162,1000061886
08.02.2019,ADULT SOCIAL CARE,LONDON CARE LTD,266.56,MEM LTS 65+,HOMECARE - C&V,2102918455,1000003398
08.02.2019,ADULT SOCIAL CARE,LONDON CARE LTD,532.8,MEM LTS 65+,HOMECARE - C&V,2102919082,1000003398
08.02.2019,ADULT SOCIAL CARE,LONDON CARE LTD,595.29,MEM LTS 65+,HOMECARE - C&V,2102919054,1000003398
08.02.2019,ADULT SOCIAL CARE,LONDON CARE LTD,708.03,MEM LTS 65+,HOMECARE - C&V,2102919018,1000003398
08.02.2019,ADULT SOCIAL CARE,LONDON CARE LTD,732.6,MEM LTS 65+,HOMECARE - C&V,2102918438,1000003398
08.02.2019,ADULT SOCIAL CARE,LONDON CARE LTD,952.39,MEM LTS 65+,HOMECARE - C&V,2102918980,1000003398
08.02.2019,ADULT SOCIAL CARE,LONDON CARE LTD,966.04,MEM LTS 65+,HOMECARE - C&V,2102919031,1000003398
08.02.2019,ADULT SOCIAL CARE,LONDON CARE LTD,"1,036.53",MEM LTS 65+,HOMECARE - C&V,2102918406,1000003398
08.02.2019,ADULT SOCIAL CARE,LONDON CARE LTD,"1,049.44",MEM LTS 65+,HOMECARE - C&V,2102918985,1000003398
08.02.2019,ADULT SOCIAL CARE,LONDON CARE LTD,"1,986.43",MEM LTS 65+,HOMECARE - C&V,2102918928,1000003398
08.02.2019,ADULT SOCIAL CARE,LONDON CARE LTD,"3,276.17",MEM LTS 65+,HOMECARE - C&V,2102918347,1000003398
08.02.2019,ADULT SOCIAL CARE,SUPREME CARE SERVICES LTD,283.92,MEM LTS 65+,HOMECARE - C&V,2102918875,1000059416
08.02.2019,ADULT SOCIAL CARE,SUPREME CARE SERVICES LTD,283.92,MEM LTS 65+,HOMECARE - C&V,2102918889,1000059416
08.02.2019,ADULT SOCIAL CARE,SUPREME CARE SERVICES LTD,300.6,MEM LTS 65+,HOMECARE - C&V,2102918597,1000059416
08.02.2019,ADULT SOCIAL CARE,SUPREME CARE SERVICES LTD,434.2,MEM LTS 65+,HOMECARE - C&V,2102918791,1000059416
08.02.2019,ADULT SOCIAL CARE,SUPREME CARE SERVICES LTD,467.6,MEM LTS 65+,HOMECARE - C&V,2102918793,1000059416
08.02.2019,ADULT SOCIAL CARE,SUPREME CARE SERVICES LTD,584.5,MEM LTS 65+,HOMECARE - C&V,2102918478,1000059416
08.02.2019,ADULT SOCIAL CARE,SUPREME CARE SERVICES LTD,601.2,MEM LTS 65+,HOMECARE - C&V,2102918540,1000059416
08.02.2019,ADULT SOCIAL CARE,SUPREME CARE SERVICES LTD,851.72,MEM LTS 65+,HOMECARE - C&V,2102918835,1000059416
08.02.2019,ADULT SOCIAL CARE,SUPREME CARE SERVICES LTD,851.72,MEM LTS 65+,HOMECARE - C&V,2102918842,1000059416
08.02.2019,ADULT SOCIAL CARE,SUPREME CARE SERVICES LTD,"1,068.80",MEM LTS 65+,HOMECARE - C&V,2102918859,1000059416
08.02.2019,ADULT SOCIAL CARE,SUPREME CARE SERVICES LTD,"1,068.80",MEM LTS 65+,HOMECARE - C&V,2102918890,1000059416
08.02.2019,ADULT SOCIAL CARE,SUPREME CARE SERVICES LTD,"1,160.65",MEM LTS 65+,HOMECARE - C&V,2102918530,1000059416
08.02.2019,ADULT SOCIAL CARE,SUPREME CARE SERVICES LTD,"1,169.00",MEM LTS 65+,HOMECARE - C&V,2102918547,1000059416
08.02.2019,ADULT SOCIAL CARE,SUPREME CARE SERVICES LTD,"2,171.00",MEM LTS 65+,HOMECARE - C&V,2102918680,1000059416
08.02.2019,ADULT SOCIAL CARE,SUPREME CARE SERVICES LTD,"2,722.10",MEM LTS 65+,HOMECARE - C&V,2102918636,1000059416
08.02.2019,ADULT SOCIAL CARE,LONDON CARE LTD,266.4,MH LTS 18-64,HOMECARE - C&V,2102919027,1000003398
08.02.2019,ADULT SOCIAL CARE,LONDON CARE LTD,982.42,MH LTS 18-64,HOMECARE - C&V,2102918428,1000003398
08.02.2019,ADULT SOCIAL CARE,SUPREME CARE SERVICES LTD,267.2,MH LTS 18-64,HOMECARE - C&V,2102918655,1000059416
08.02.2019,ADULT SOCIAL CARE,SUPREME CARE SERVICES LTD,400.8,MH LTS 18-64,HOMECARE - C&V,2102918716,1000059416
08.02.2019,ADULT SOCIAL CARE,SUPREME CARE SERVICES LTD,467.6,MH LTS 18-64,HOMECARE - C&V,2102918803,1000059416
08.02.2019,ADULT SOCIAL CARE,SUPREME CARE SERVICES LTD,551.7,MH LTS 18-64,HOMECARE - C&V,2102918679,1000059416
08.02.2019,ADULT SOCIAL CARE,SUPREME CARE SERVICES LTD,567.8,MH LTS 18-64,HOMECARE - C&V,2102918759,1000059416
08.02.2019,ADULT SOCIAL CARE,SUPREME CARE SERVICES LTD,668,MH LTS 18-64,HOMECARE - C&V,2102918500,1000059416
08.02.2019,ADULT SOCIAL CARE,SUPREME CARE SERVICES LTD,951.9,MH LTS 18-64,HOMECARE - C&V,2102918521,1000059416
08.02.2019,ADULT SOCIAL CARE,SUPREME CARE SERVICES LTD,997.83,MH LTS 18-64,HOMECARE - C&V,2102918641,1000059416
08.02.2019,ADULT SOCIAL CARE,REDACTED PERSONAL DATA,"2,440.29",MH LTS 18-64,HOMECARE - SPOT,REDACTED,REDACTED
08.02.2019,ADULT SOCIAL CARE,PEOPLEPLUS ILS,318,MH LTS 18-64,PAYMENTS TO CLIENTS (DIRECT PAYMENTS),2102919167,1000061886
08.02.2019,ADULT SOCIAL CARE,LONDON CARE LTD,333,MH LTS 65+,HOMECARE - C&V,2102918416,1000003398
08.02.2019,ADULT SOCIAL CARE,LONDON CARE LTD,478.87,MH LTS 65+,HOMECARE - C&V,2102918983,1000003398
08.02.2019,ADULT SOCIAL CARE,LONDON CARE LTD,666,MH LTS 65+,HOMECARE - C&V,2102918938,1000003398
08.02.2019,ADULT SOCIAL CARE,SUPREME CARE SERVICES LTD,267.2,MH LTS 65+,HOMECARE - C&V,2102918620,1000059416
08.02.2019,ADULT SOCIAL CARE,SUPREME CARE SERVICES LTD,292.25,MH LTS 65+,HOMECARE - C&V,2102918688,1000059416
08.02.2019,ADULT SOCIAL CARE,SUPREME CARE SERVICES LTD,334,MH LTS 65+,HOMECARE - C&V,2102918546,1000059416
08.02.2019,ADULT SOCIAL CARE,SUPREME CARE SERVICES LTD,350.7,MH LTS 65+,HOMECARE - C&V,2102918697,1000059416
08.02.2019,ADULT SOCIAL CARE,SUPREME CARE SERVICES LTD,400.8,MH LTS 65+,HOMECARE - C&V,2102918710,1000059416
08.02.2019,ADULT SOCIAL CARE,SUPREME CARE SERVICES LTD,467.6,MH LTS 65+,HOMECARE - C&V,2102918648,1000059416
08.02.2019,ADULT SOCIAL CARE,SUPREME CARE SERVICES LTD,534.4,MH LTS 65+,HOMECARE - C&V,2102918747,1000059416
08.02.2019,ADULT SOCIAL CARE,SUPREME CARE SERVICES LTD,601.2,MH LTS 65+,HOMECARE - C&V,2102918827,1000059416
08.02.2019,ADULT SOCIAL CARE,SUPREME CARE SERVICES LTD,601.2,MH LTS 65+,HOMECARE - C&V,2102918852,1000059416
08.02.2019,ADULT SOCIAL CARE,SUPREME CARE SERVICES LTD,768.2,MH LTS 65+,HOMECARE - C&V,2102918516,1000059416
08.02.2019,ADULT SOCIAL CARE,PEGGY ETIEBET,"-1,535.00",OLDER PEOPLE MGMT,LEGAL FEES & COURT COSTS,2102919805,1000057487
08.02.2019,ADULT SOCIAL CARE,PEGGY ETIEBET,"1,535.00",OLDER PEOPLE MGMT,LEGAL FEES & COURT COSTS,2102807548,1000057487
08.02.2019,ADULT SOCIAL CARE,PEOPLEPLUS ILS,"1,679.61",PHB- SOUTHWARK CCG,RECOVERABLE COSTS INCL. HEALTH,2102919161,1000061886
08.02.2019,ADULT SOCIAL CARE,THE CAMDEN SOCIETY (SOCIAL CARE),705.6,PHY LTS 18-64,DAYCARE,2102919148,1000036369
08.02.2019,ADULT SOCIAL CARE,LONDON CARE LTD,283.08,PHY LTS 18-64,HOMECARE - C&V,2102918395,1000003398
08.02.2019,ADULT SOCIAL CARE,LONDON CARE LTD,287.27,PHY LTS 18-64,HOMECARE - C&V,2102918959,1000003398
08.02.2019,ADULT SOCIAL CARE,LONDON CARE LTD,291.41,PHY LTS 18-64,HOMECARE - C&V,2102918440,1000003398
08.02.2019,ADULT SOCIAL CARE,LONDON CARE LTD,291.52,PHY LTS 18-64,HOMECARE - C&V,2102918964,1000003398
08.02.2019,ADULT SOCIAL CARE,LONDON CARE LTD,329.03,PHY LTS 18-64,HOMECARE - C&V,2102918407,1000003398
08.02.2019,ADULT SOCIAL CARE,LONDON CARE LTD,349.68,PHY LTS 18-64,HOMECARE - C&V,2102919005,1000003398
08.02.2019,ADULT SOCIAL CARE,LONDON CARE LTD,349.72,PHY LTS 18-64,HOMECARE - C&V,2102918452,1000003398
08.02.2019,ADULT SOCIAL CARE,LONDON CARE LTD,349.72,PHY LTS 18-64,HOMECARE - C&V,2102918464,1000003398
08.02.2019,ADULT SOCIAL CARE,LONDON CARE LTD,349.72,PHY LTS 18-64,HOMECARE - C&V,2102918978,1000003398
08.02.2019,ADULT SOCIAL CARE,LONDON CARE LTD,366.34,PHY LTS 18-64,HOMECARE - C&V,2102919028,1000003398
08.02.2019,ADULT SOCIAL CARE,LONDON CARE LTD,370.58,PHY LTS 18-64,HOMECARE - C&V,2102918356,1000003398
08.02.2019,ADULT SOCIAL CARE,LONDON CARE LTD,370.67,PHY LTS 18-64,HOMECARE - C&V,2102918447,1000003398
08.02.2019,ADULT SOCIAL CARE,LONDON CARE LTD,383,PHY LTS 18-64,HOMECARE - C&V,2102918934,1000003398
08.02.2019,ADULT SOCIAL CARE,LONDON CARE LTD,391.84,PHY LTS 18-64,HOMECARE - C&V,2102918401,1000003398
08.02.2019,ADULT SOCIAL CARE,LONDON CARE LTD,395.58,PHY LTS 18-64,HOMECARE - C&V,2102918949,1000003398
08.02.2019,ADULT SOCIAL CARE,LONDON CARE LTD,420.52,PHY LTS 18-64,HOMECARE - C&V,2102919040,1000003398
08.02.2019,ADULT SOCIAL CARE,LONDON CARE LTD,437.11,PHY LTS 18-64,HOMECARE - C&V,2102919034,1000003398
08.02.2019,ADULT SOCIAL CARE,LONDON CARE LTD,449.56,PHY LTS 18-64,HOMECARE - C&V,2102918394,1000003398
08.02.2019,ADULT SOCIAL CARE,LONDON CARE LTD,466.26,PHY LTS 18-64,HOMECARE - C&V,2102918371,1000003398
08.02.2019,ADULT SOCIAL CARE,LONDON CARE LTD,466.28,PHY LTS 18-64,HOMECARE - C&V,2102918418,1000003398
08.02.2019,ADULT SOCIAL CARE,LONDON CARE LTD,470.47,PHY LTS 18-64,HOMECARE - C&V,2102918925,1000003398
08.02.2019,ADULT SOCIAL CARE,LONDON CARE LTD,482.85,PHY LTS 18-64,HOMECARE - C&V,2102918952,1000003398
08.02.2019,ADULT SOCIAL CARE,LONDON CARE LTD,508.09,PHY LTS 18-64,HOMECARE - C&V,2102919006,1000003398
08.02.2019,ADULT SOCIAL CARE,LONDON CARE LTD,516.15,PHY LTS 18-64,HOMECARE - C&V,2102918420,1000003398
08.02.2019,ADULT SOCIAL CARE,LONDON CARE LTD,516.22,PHY LTS 18-64,HOMECARE - C&V,2102918380,1000003398
08.02.2019,ADULT SOCIAL CARE,LONDON CARE LTD,545.34,PHY LTS 18-64,HOMECARE - C&V,2102919097,1000003398
08.02.2019,ADULT SOCIAL CARE,LONDON CARE LTD,549.54,PHY LTS 18-64,HOMECARE - C&V,2102919052,1000003398
08.02.2019,ADULT SOCIAL CARE,LONDON CARE LTD,555.14,PHY LTS 18-64,HOMECARE - C&V,2102918994,1000003398
08.02.2019,ADULT SOCIAL CARE,LONDON CARE LTD,607.93,PHY LTS 18-64,HOMECARE - C&V,2102918936,1000003398
08.02.2019,ADULT SOCIAL CARE,LONDON CARE LTD,616.24,PHY LTS 18-64,HOMECARE - C&V,2102918910,1000003398
08.02.2019,ADULT SOCIAL CARE,LONDON CARE LTD,620.44,PHY LTS 18-64,HOMECARE - C&V,2102919057,1000003398
08.02.2019,ADULT SOCIAL CARE,LONDON CARE LTD,682.88,PHY LTS 18-64,HOMECARE - C&V,2102919044,1000003398
08.02.2019,ADULT SOCIAL CARE,LONDON CARE LTD,699.44,PHY LTS 18-64,HOMECARE - C&V,2102918369,1000003398
08.02.2019,ADULT SOCIAL CARE,LONDON CARE LTD,699.44,PHY LTS 18-64,HOMECARE - C&V,2102918944,1000003398
08.02.2019,ADULT SOCIAL CARE,LONDON CARE LTD,728.5,PHY LTS 18-64,HOMECARE - C&V,2102918971,1000003398
08.02.2019,ADULT SOCIAL CARE,LONDON CARE LTD,807.87,PHY LTS 18-64,HOMECARE - C&V,2102918908,1000003398
08.02.2019,ADULT SOCIAL CARE,LONDON CARE LTD,812.1,PHY LTS 18-64,HOMECARE - C&V,2102918900,1000003398
08.02.2019,ADULT SOCIAL CARE,LONDON CARE LTD,815.92,PHY LTS 18-64,HOMECARE - C&V,2102918926,1000003398
08.02.2019,ADULT SOCIAL CARE,LONDON CARE LTD,828.5,PHY LTS 18-64,HOMECARE - C&V,2102918462,1000003398
08.02.2019,ADULT SOCIAL CARE,LONDON CARE LTD,832.64,PHY LTS 18-64,HOMECARE - C&V,2102919022,1000003398
08.02.2019,ADULT SOCIAL CARE,LONDON CARE LTD,874.14,PHY LTS 18-64,HOMECARE - C&V,2102918375,1000003398
08.02.2019,ADULT SOCIAL CARE,LONDON CARE LTD,916.12,PHY LTS 18-64,HOMECARE - C&V,2102919007,1000003398
08.02.2019,ADULT SOCIAL CARE,LONDON CARE LTD,932.4,PHY LTS 18-64,HOMECARE - C&V,2102919093,1000003398
08.02.2019,ADULT SOCIAL CARE,LONDON CARE LTD,932.68,PHY LTS 18-64,HOMECARE - C&V,2102918427,1000003398
08.02.2019,ADULT SOCIAL CARE,LONDON CARE LTD,999.18,PHY LTS 18-64,HOMECARE - C&V,2102919041,1000003398
08.02.2019,ADULT SOCIAL CARE,LONDON CARE LTD,"1,065.88",PHY LTS 18-64,HOMECARE - C&V,2102918423,1000003398
08.02.2019,ADULT SOCIAL CARE,LONDON CARE LTD,"1,116.04",PHY LTS 18-64,HOMECARE - C&V,2102918449,1000003398
08.02.2019,ADULT SOCIAL CARE,LONDON CARE LTD,"1,482.00",PHY LTS 18-64,HOMECARE - C&V,2102918996,1000003398
08.02.2019,ADULT SOCIAL CARE,LONDON CARE LTD,"1,565.51",PHY LTS 18-64,HOMECARE - C&V,2102918905,1000003398
08.02.2019,ADULT SOCIAL CARE,LONDON CARE LTD,"1,832.04",PHY LTS 18-64,HOMECARE - C&V,2102918430,1000003398
08.02.2019,ADULT SOCIAL CARE,LONDON CARE LTD,"2,044.75",PHY LTS 18-64,HOMECARE - C&V,2102918467,1000003398
08.02.2019,ADULT SOCIAL CARE,LONDON CARE LTD,"2,119.05",PHY LTS 18-64,HOMECARE - C&V,2102918454,1000003398
08.02.2019,ADULT SOCIAL CARE,LONDON CARE LTD,"2,148.66",PHY LTS 18-64,HOMECARE - C&V,2102918986,1000003398
08.02.2019,ADULT SOCIAL CARE,LONDON CARE LTD,"2,157.15",PHY LTS 18-64,HOMECARE - C&V,2102918460,1000003398
08.02.2019,ADULT SOCIAL CARE,SUPREME CARE SERVICES LTD,250.5,PHY LTS 18-64,HOMECARE - C&V,2102918585,1000059416
08.02.2019,ADULT SOCIAL CARE,SUPREME CARE SERVICES LTD,258.85,PHY LTS 18-64,HOMECARE - C&V,2102918513,1000059416
08.02.2019,ADULT SOCIAL CARE,SUPREME CARE SERVICES LTD,263.03,PHY LTS 18-64,HOMECARE - C&V,2102918794,1000059416
08.02.2019,ADULT SOCIAL CARE,SUPREME CARE SERVICES LTD,267.2,PHY LTS 18-64,HOMECARE - C&V,2102918526,1000059416
08.02.2019,ADULT SOCIAL CARE,SUPREME CARE SERVICES LTD,267.2,PHY LTS 18-64,HOMECARE - C&V,2102918651,1000059416
08.02.2019,ADULT SOCIAL CARE,SUPREME CARE SERVICES LTD,283.9,PHY LTS 18-64,HOMECARE - C&V,2102918469,1000059416
08.02.2019,ADULT SOCIAL CARE,SUPREME CARE SERVICES LTD,300.53,PHY LTS 18-64,HOMECARE - C&V,2102918745,1000059416
08.02.2019,ADULT SOCIAL CARE,SUPREME CARE SERVICES LTD,300.6,PHY LTS 18-64,HOMECARE - C&V,2102918883,1000059416
08.02.2019,ADULT SOCIAL CARE,SUPREME CARE SERVICES LTD,350.7,PHY LTS 18-64,HOMECARE - C&V,2102918589,1000059416
08.02.2019,ADULT SOCIAL CARE,SUPREME CARE SERVICES LTD,350.7,PHY LTS 18-64,HOMECARE - C&V,2102918613,1000059416
08.02.2019,ADULT SOCIAL CARE,SUPREME CARE SERVICES LTD,350.7,PHY LTS 18-64,HOMECARE - C&V,2102918631,1000059416
08.02.2019,ADULT SOCIAL CARE,SUPREME CARE SERVICES LTD,367.4,PHY LTS 18-64,HOMECARE - C&V,2102918853,1000059416
08.02.2019,ADULT SOCIAL CARE,SUPREME CARE SERVICES LTD,367.4,PHY LTS 18-64,HOMECARE - C&V,2102918856,1000059416
08.02.2019,ADULT SOCIAL CARE,SUPREME CARE SERVICES LTD,392.45,PHY LTS 18-64,HOMECARE - C&V,2102918560,1000059416
08.02.2019,ADULT SOCIAL CARE,SUPREME CARE SERVICES LTD,434.2,PHY LTS 18-64,HOMECARE - C&V,2102918606,1000059416
08.02.2019,ADULT SOCIAL CARE,SUPREME CARE SERVICES LTD,434.2,PHY LTS 18-64,HOMECARE - C&V,2102918658,1000059416
08.02.2019,ADULT SOCIAL CARE,SUPREME CARE SERVICES LTD,442.55,PHY LTS 18-64,HOMECARE - C&V,2102918699,1000059416
08.02.2019,ADULT SOCIAL CARE,SUPREME CARE SERVICES LTD,450.9,PHY LTS 18-64,HOMECARE - C&V,2102918762,1000059416
08.02.2019,ADULT SOCIAL CARE,SUPREME CARE SERVICES LTD,455.08,PHY LTS 18-64,HOMECARE - C&V,2102918717,1000059416
08.02.2019,ADULT SOCIAL CARE,SUPREME CARE SERVICES LTD,467.6,PHY LTS 18-64,HOMECARE - C&V,2102918509,1000059416
08.02.2019,ADULT SOCIAL CARE,SUPREME CARE SERVICES LTD,467.6,PHY LTS 18-64,HOMECARE - C&V,2102918628,1000059416
08.02.2019,ADULT SOCIAL CARE,SUPREME CARE SERVICES LTD,467.6,PHY LTS 18-64,HOMECARE - C&V,2102918766,1000059416
08.02.2019,ADULT SOCIAL CARE,SUPREME CARE SERVICES LTD,484.3,PHY LTS 18-64,HOMECARE - C&V,2102918711,1000059416
08.02.2019,ADULT SOCIAL CARE,SUPREME CARE SERVICES LTD,501,PHY LTS 18-64,HOMECARE - C&V,2102918661,1000059416
08.02.2019,ADULT SOCIAL CARE,SUPREME CARE SERVICES LTD,501,PHY LTS 18-64,HOMECARE - C&V,2102918784,1000059416
08.02.2019,ADULT SOCIAL CARE,SUPREME CARE SERVICES LTD,509.35,PHY LTS 18-64,HOMECARE - C&V,2102918741,1000059416
08.02.2019,ADULT SOCIAL CARE,SUPREME CARE SERVICES LTD,534.4,PHY LTS 18-64,HOMECARE - C&V,2102918718,1000059416
08.02.2019,ADULT SOCIAL CARE,SUPREME CARE SERVICES LTD,542.75,PHY LTS 18-64,HOMECARE - C&V,2102918663,1000059416
08.02.2019,ADULT SOCIAL CARE,SUPREME CARE SERVICES LTD,584.52,PHY LTS 18-64,HOMECARE - C&V,2102918834,1000059416
08.02.2019,ADULT SOCIAL CARE,SUPREME CARE SERVICES LTD,634.6,PHY LTS 18-64,HOMECARE - C&V,2102918811,1000059416
08.02.2019,ADULT SOCIAL CARE,SUPREME CARE SERVICES LTD,634.6,PHY LTS 18-64,HOMECARE - C&V,2102918824,1000059416
08.02.2019,ADULT SOCIAL CARE,SUPREME CARE SERVICES LTD,642.95,PHY LTS 18-64,HOMECARE - C&V,2102918493,1000059416
08.02.2019,ADULT SOCIAL CARE,SUPREME CARE SERVICES LTD,684.7,PHY LTS 18-64,HOMECARE - C&V,2102918627,1000059416
08.02.2019,ADULT SOCIAL CARE,SUPREME CARE SERVICES LTD,684.7,PHY LTS 18-64,HOMECARE - C&V,2102918678,1000059416
08.02.2019,ADULT SOCIAL CARE,SUPREME CARE SERVICES LTD,688.88,PHY LTS 18-64,HOMECARE - C&V,2102918670,1000059416
08.02.2019,ADULT SOCIAL CARE,SUPREME CARE SERVICES LTD,701.4,PHY LTS 18-64,HOMECARE - C&V,2102918761,1000059416
08.02.2019,ADULT SOCIAL CARE,SUPREME CARE SERVICES LTD,705.58,PHY LTS 18-64,HOMECARE - C&V,2102918736,1000059416
08.02.2019,ADULT SOCIAL CARE,SUPREME CARE SERVICES LTD,751.52,PHY LTS 18-64,HOMECARE - C&V,2102918810,1000059416
08.02.2019,ADULT SOCIAL CARE,SUPREME CARE SERVICES LTD,759.85,PHY LTS 18-64,HOMECARE - C&V,2102918775,1000059416
08.02.2019,ADULT SOCIAL CARE,SUPREME CARE SERVICES LTD,759.85,PHY LTS 18-64,HOMECARE - C&V,2102918788,1000059416
08.02.2019,ADULT SOCIAL CARE,SUPREME CARE SERVICES LTD,768.2,PHY LTS 18-64,HOMECARE - C&V,2102918800,1000059416
08.02.2019,ADULT SOCIAL CARE,SUPREME CARE SERVICES LTD,776.55,PHY LTS 18-64,HOMECARE - C&V,2102918482,1000059416
08.02.2019,ADULT SOCIAL CARE,SUPREME CARE SERVICES LTD,784.9,PHY LTS 18-64,HOMECARE - C&V,2102918519,1000059416
08.02.2019,ADULT SOCIAL CARE,SUPREME CARE SERVICES LTD,793.25,PHY LTS 18-64,HOMECARE - C&V,2102918528,1000059416
08.02.2019,ADULT SOCIAL CARE,SUPREME CARE SERVICES LTD,801.6,PHY LTS 18-64,HOMECARE - C&V,2102918645,1000059416
08.02.2019,ADULT SOCIAL CARE,SUPREME CARE SERVICES LTD,818.3,PHY LTS 18-64,HOMECARE - C&V,2102918719,1000059416
08.02.2019,ADULT SOCIAL CARE,SUPREME CARE SERVICES LTD,818.3,PHY LTS 18-64,HOMECARE - C&V,2102918804,1000059416
08.02.2019,ADULT SOCIAL CARE,SUPREME CARE SERVICES LTD,847.53,PHY LTS 18-64,HOMECARE - C&V,2102918786,1000059416
08.02.2019,ADULT SOCIAL CARE,SUPREME CARE SERVICES LTD,868.4,PHY LTS 18-64,HOMECARE - C&V,2102918494,1000059416
08.02.2019,ADULT SOCIAL CARE,SUPREME CARE SERVICES LTD,868.4,PHY LTS 18-64,HOMECARE - C&V,2102918498,1000059416
08.02.2019,ADULT SOCIAL CARE,SUPREME CARE SERVICES LTD,918.5,PHY LTS 18-64,HOMECARE - C&V,2102918488,1000059416
08.02.2019,ADULT SOCIAL CARE,SUPREME CARE SERVICES LTD,926.85,PHY LTS 18-64,HOMECARE - C&V,2102918735,1000059416
08.02.2019,ADULT SOCIAL CARE,SUPREME CARE SERVICES LTD,935.2,PHY LTS 18-64,HOMECARE - C&V,2102918581,1000059416
08.02.2019,ADULT SOCIAL CARE,SUPREME CARE SERVICES LTD,951.92,PHY LTS 18-64,HOMECARE - C&V,2102918879,1000059416
08.02.2019,ADULT SOCIAL CARE,SUPREME CARE SERVICES LTD,968.6,PHY LTS 18-64,HOMECARE - C&V,2102918473,1000059416
08.02.2019,ADULT SOCIAL CARE,SUPREME CARE SERVICES LTD,"1,052.10",PHY LTS 18-64,HOMECARE - C&V,2102918533,1000059416
08.02.2019,ADULT SOCIAL CARE,SUPREME CARE SERVICES LTD,"1,096.21",PHY LTS 18-64,HOMECARE - C&V,2102918816,1000059416
08.02.2019,ADULT SOCIAL CARE,SUPREME CARE SERVICES LTD,"1,118.90",PHY LTS 18-64,HOMECARE - C&V,2102918471,1000059416
08.02.2019,ADULT SOCIAL CARE,SUPREME CARE SERVICES LTD,"1,118.90",PHY LTS 18-64,HOMECARE - C&V,2102918484,1000059416
08.02.2019,ADULT SOCIAL CARE,SUPREME CARE SERVICES LTD,"1,152.30",PHY LTS 18-64,HOMECARE - C&V,2102918602,1000059416
08.02.2019,ADULT SOCIAL CARE,SUPREME CARE SERVICES LTD,"1,239.98",PHY LTS 18-64,HOMECARE - C&V,2102918604,1000059416
08.02.2019,ADULT SOCIAL CARE,SUPREME CARE SERVICES LTD,"1,291.24",PHY LTS 18-64,HOMECARE - C&V,2102918481,1000059416
08.02.2019,ADULT SOCIAL CARE,SUPREME CARE SERVICES LTD,"1,302.60",PHY LTS 18-64,HOMECARE - C&V,2102918749,1000059416
08.02.2019,ADULT SOCIAL CARE,SUPREME CARE SERVICES LTD,"1,336.00",PHY LTS 18-64,HOMECARE - C&V,2102918781,1000059416
08.02.2019,ADULT SOCIAL CARE,SUPREME CARE SERVICES LTD,"1,636.60",PHY LTS 18-64,HOMECARE - C&V,2102918779,1000059416
08.02.2019,ADULT SOCIAL CARE,SUPREME CARE SERVICES LTD,"2,346.35",PHY LTS 18-64,HOMECARE - C&V,2102918544,1000059416
08.02.2019,ADULT SOCIAL CARE,SUPREME CARE SERVICES LTD,"2,939.20",PHY LTS 18-64,HOMECARE - C&V,2102918821,1000059416
08.02.2019,ADULT SOCIAL CARE,SUPREME CARE SERVICES LTD,"2,939.20",PHY LTS 18-64,HOMECARE - C&V,2102918877,1000059416
08.02.2019,ADULT SOCIAL CARE,SUPREME CARE SERVICES LTD,"3,740.80",PHY LTS 18-64,HOMECARE - C&V,2102918510,1000059416
08.02.2019,ADULT SOCIAL CARE,REDACTED PERSONAL DATA,"-1,320.43",PHY LTS 18-64,HOMECARE - C&V,REDACTED,REDACTED
08.02.2019,ADULT SOCIAL CARE,LONDON CARE LTD,349.72,PHY LTS 18-64,HOMECARE - SPOT,2102919102,1000003398
08.02.2019,ADULT SOCIAL CARE,LONDON CARE LTD,649.56,PHY LTS 18-64,HOMECARE - SPOT,2102918951,1000003398
08.02.2019,ADULT SOCIAL CARE,LONDON CARE LTD,"2,523.06",PHY LTS 18-64,HOMECARE - SPOT,2102918458,1000003398
08.02.2019,ADULT SOCIAL CARE,LONDON CARE LTD,253.95,PHY LTS 65+,HOMECARE - C&V,2102919003,1000003398
08.02.2019,ADULT SOCIAL CARE,LONDON CARE LTD,299.76,PHY LTS 65+,HOMECARE - C&V,2102918923,1000003398
08.02.2019,ADULT SOCIAL CARE,LONDON CARE LTD,299.76,PHY LTS 65+,HOMECARE - C&V,2102919046,1000003398
08.02.2019,ADULT SOCIAL CARE,LONDON CARE LTD,312.25,PHY LTS 65+,HOMECARE - C&V,2102918947,1000003398
08.02.2019,ADULT SOCIAL CARE,LONDON CARE LTD,312.25,PHY LTS 65+,HOMECARE - C&V,2102919039,1000003398
08.02.2019,ADULT SOCIAL CARE,LONDON CARE LTD,316.4,PHY LTS 65+,HOMECARE - C&V,2102918373,1000003398
08.02.2019,ADULT SOCIAL CARE,LONDON CARE LTD,324.81,PHY LTS 65+,HOMECARE - C&V,2102918350,1000003398
08.02.2019,ADULT SOCIAL CARE,LONDON CARE LTD,324.81,PHY LTS 65+,HOMECARE - C&V,2102918902,1000003398
08.02.2019,ADULT SOCIAL CARE,LONDON CARE LTD,333,PHY LTS 65+,HOMECARE - C&V,2102918408,1000003398
08.02.2019,ADULT SOCIAL CARE,LONDON CARE LTD,333,PHY LTS 65+,HOMECARE - C&V,2102918911,1000003398
08.02.2019,ADULT SOCIAL CARE,LONDON CARE LTD,333,PHY LTS 65+,HOMECARE - C&V,2102918958,1000003398
08.02.2019,ADULT SOCIAL CARE,LONDON CARE LTD,333.12,PHY LTS 65+,HOMECARE - C&V,2102918411,1000003398
08.02.2019,ADULT SOCIAL CARE,LONDON CARE LTD,333.2,PHY LTS 65+,HOMECARE - C&V,2102919038,1000003398
08.02.2019,ADULT SOCIAL CARE,LONDON CARE LTD,337.23,PHY LTS 65+,HOMECARE - C&V,2102918442,1000003398
08.02.2019,ADULT SOCIAL CARE,LONDON CARE LTD,341.38,PHY LTS 65+,HOMECARE - C&V,2102919086,1000003398
08.02.2019,ADULT SOCIAL CARE,LONDON CARE LTD,349.72,PHY LTS 65+,HOMECARE - C&V,2102918432,1000003398
08.02.2019,ADULT SOCIAL CARE,LONDON CARE LTD,349.72,PHY LTS 65+,HOMECARE - C&V,2102918921,1000003398
08.02.2019,ADULT SOCIAL CARE,LONDON CARE LTD,349.72,PHY LTS 65+,HOMECARE - C&V,2102918991,1000003398
08.02.2019,ADULT SOCIAL CARE,LONDON CARE LTD,358.17,PHY LTS 65+,HOMECARE - C&V,2102919101,1000003398
08.02.2019,ADULT SOCIAL CARE,LONDON CARE LTD,366.3,PHY LTS 65+,HOMECARE - C&V,2102918988,1000003398
08.02.2019,ADULT SOCIAL CARE,LONDON CARE LTD,374.85,PHY LTS 65+,HOMECARE - C&V,2102918927,1000003398
08.02.2019,ADULT SOCIAL CARE,LONDON CARE LTD,391.51,PHY LTS 65+,HOMECARE - C&V,2102918465,1000003398
08.02.2019,ADULT SOCIAL CARE,LONDON CARE LTD,395.49,PHY LTS 65+,HOMECARE - C&V,2102919079,1000003398
08.02.2019,ADULT SOCIAL CARE,LONDON CARE LTD,395.58,PHY LTS 65+,HOMECARE - C&V,2102919064,1000003398
08.02.2019,ADULT SOCIAL CARE,LONDON CARE LTD,399.6,PHY LTS 65+,HOMECARE - C&V,2102919023,1000003398
08.02.2019,ADULT SOCIAL CARE,LONDON CARE LTD,403.88,PHY LTS 65+,HOMECARE - C&V,2102918384,1000003398
08.02.2019,ADULT SOCIAL CARE,LONDON CARE LTD,407.98,PHY LTS 65+,HOMECARE - C&V,2102918389,1000003398
08.02.2019,ADULT SOCIAL CARE,LONDON CARE LTD,412.17,PHY LTS 65+,HOMECARE - C&V,2102919019,1000003398
08.02.2019,ADULT SOCIAL CARE,LONDON CARE LTD,416.5,PHY LTS 65+,HOMECARE - C&V,2102918355,1000003398
08.02.2019,ADULT SOCIAL CARE,LONDON CARE LTD,424.71,PHY LTS 65+,HOMECARE - C&V,2102918448,1000003398
08.02.2019,ADULT SOCIAL CARE,LONDON CARE LTD,424.73,PHY LTS 65+,HOMECARE - C&V,2102918444,1000003398
08.02.2019,ADULT SOCIAL CARE,LONDON CARE LTD,424.8,PHY LTS 65+,HOMECARE - C&V,2102918434,1000003398
08.02.2019,ADULT SOCIAL CARE,LONDON CARE LTD,449.64,PHY LTS 65+,HOMECARE - C&V,2102918367,1000003398
08.02.2019,ADULT SOCIAL CARE,LONDON CARE LTD,449.64,PHY LTS 65+,HOMECARE - C&V,2102918445,1000003398
08.02.2019,ADULT SOCIAL CARE,LONDON CARE LTD,457.89,PHY LTS 65+,HOMECARE - C&V,2102918919,1000003398
08.02.2019,ADULT SOCIAL CARE,LONDON CARE LTD,458.15,PHY LTS 65+,HOMECARE - C&V,2102918970,1000003398
08.02.2019,ADULT SOCIAL CARE,LONDON CARE LTD,466.2,PHY LTS 65+,HOMECARE - C&V,2102918963,1000003398
08.02.2019,ADULT SOCIAL CARE,LONDON CARE LTD,466.44,PHY LTS 65+,HOMECARE - C&V,2102919084,1000003398
08.02.2019,ADULT SOCIAL CARE,LONDON CARE LTD,466.48,PHY LTS 65+,HOMECARE - C&V,2102918929,1000003398
08.02.2019,ADULT SOCIAL CARE,LONDON CARE LTD,478.9,PHY LTS 65+,HOMECARE - C&V,2102918916,1000003398
08.02.2019,ADULT SOCIAL CARE,LONDON CARE LTD,482.92,PHY LTS 65+,HOMECARE - C&V,2102919010,1000003398
08.02.2019,ADULT SOCIAL CARE,LONDON CARE LTD,482.92,PHY LTS 65+,HOMECARE - C&V,2102919042,1000003398
08.02.2019,ADULT SOCIAL CARE,LONDON CARE LTD,487.19,PHY LTS 65+,HOMECARE - C&V,2102919094,1000003398
08.02.2019,ADULT SOCIAL CARE,LONDON CARE LTD,512.14,PHY LTS 65+,HOMECARE - C&V,2102918977,1000003398
08.02.2019,ADULT SOCIAL CARE,LONDON CARE LTD,516.15,PHY LTS 65+,HOMECARE - C&V,2102918990,1000003398
08.02.2019,ADULT SOCIAL CARE,LONDON CARE LTD,524.75,PHY LTS 65+,HOMECARE - C&V,2102918393,1000003398
08.02.2019,ADULT SOCIAL CARE,LONDON CARE LTD,528.82,PHY LTS 65+,HOMECARE - C&V,2102918372,1000003398
08.02.2019,ADULT SOCIAL CARE,LONDON CARE LTD,533.08,PHY LTS 65+,HOMECARE - C&V,2102918957,1000003398
08.02.2019,ADULT SOCIAL CARE,LONDON CARE LTD,549.74,PHY LTS 65+,HOMECARE - C&V,2102919085,1000003398
08.02.2019,ADULT SOCIAL CARE,LONDON CARE LTD,562.14,PHY LTS 65+,HOMECARE - C&V,2102918459,1000003398
08.02.2019,ADULT SOCIAL CARE,LONDON CARE LTD,566.28,PHY LTS 65+,HOMECARE - C&V,2102919089,1000003398
08.02.2019,ADULT SOCIAL CARE,LONDON CARE LTD,566.3,PHY LTS 65+,HOMECARE - C&V,2102918960,1000003398
08.02.2019,ADULT SOCIAL CARE,LONDON CARE LTD,577.46,PHY LTS 65+,HOMECARE - C&V,2102918962,1000003398
08.02.2019,ADULT SOCIAL CARE,LONDON CARE LTD,582.96,PHY LTS 65+,HOMECARE - C&V,2102918342,1000003398
08.02.2019,ADULT SOCIAL CARE,LONDON CARE LTD,582.96,PHY LTS 65+,HOMECARE - C&V,2102918899,1000003398
08.02.2019,ADULT SOCIAL CARE,LONDON CARE LTD,582.96,PHY LTS 65+,HOMECARE - C&V,2102918901,1000003398
08.02.2019,ADULT SOCIAL CARE,LONDON CARE LTD,582.96,PHY LTS 65+,HOMECARE - C&V,2102919011,1000003398
08.02.2019,ADULT SOCIAL CARE,LONDON CARE LTD,582.96,PHY LTS 65+,HOMECARE - C&V,2102919083,1000003398
08.02.2019,ADULT SOCIAL CARE,LONDON CARE LTD,583.06,PHY LTS 65+,HOMECARE - C&V,2102919020,1000003398
08.02.2019,ADULT SOCIAL CARE,LONDON CARE LTD,591.28,PHY LTS 65+,HOMECARE - C&V,2102918461,1000003398
08.02.2019,ADULT SOCIAL CARE,LONDON CARE LTD,599.4,PHY LTS 65+,HOMECARE - C&V,2102919087,1000003398
08.02.2019,ADULT SOCIAL CARE,LONDON CARE LTD,599.49,PHY LTS 65+,HOMECARE - C&V,2102918935,1000003398
08.02.2019,ADULT SOCIAL CARE,LONDON CARE LTD,607.91,PHY LTS 65+,HOMECARE - C&V,2102918403,1000003398
08.02.2019,ADULT SOCIAL CARE,LONDON CARE LTD,616.25,PHY LTS 65+,HOMECARE - C&V,2102918989,1000003398
08.02.2019,ADULT SOCIAL CARE,LONDON CARE LTD,624.75,PHY LTS 65+,HOMECARE - C&V,2102918385,1000003398
08.02.2019,ADULT SOCIAL CARE,LONDON CARE LTD,628.8,PHY LTS 65+,HOMECARE - C&V,2102918941,1000003398
08.02.2019,ADULT SOCIAL CARE,LONDON CARE LTD,632.81,PHY LTS 65+,HOMECARE - C&V,2102918358,1000003398
08.02.2019,ADULT SOCIAL CARE,LONDON CARE LTD,632.91,PHY LTS 65+,HOMECARE - C&V,2102919099,1000003398
08.02.2019,ADULT SOCIAL CARE,LONDON CARE LTD,641.23,PHY LTS 65+,HOMECARE - C&V,2102918341,1000003398
08.02.2019,ADULT SOCIAL CARE,LONDON CARE LTD,641.23,PHY LTS 65+,HOMECARE - C&V,2102919077,1000003398
08.02.2019,ADULT SOCIAL CARE,LONDON CARE LTD,649.48,PHY LTS 65+,HOMECARE - C&V,2102918348,1000003398
08.02.2019,ADULT SOCIAL CARE,LONDON CARE LTD,662.06,PHY LTS 65+,HOMECARE - C&V,2102919075,1000003398
08.02.2019,ADULT SOCIAL CARE,LONDON CARE LTD,666.4,PHY LTS 65+,HOMECARE - C&V,2102918368,1000003398
08.02.2019,ADULT SOCIAL CARE,LONDON CARE LTD,674.36,PHY LTS 65+,HOMECARE - C&V,2102918424,1000003398
08.02.2019,ADULT SOCIAL CARE,LONDON CARE LTD,678.78,PHY LTS 65+,HOMECARE - C&V,2102918391,1000003398
08.02.2019,ADULT SOCIAL CARE,LONDON CARE LTD,682.78,PHY LTS 65+,HOMECARE - C&V,2102919095,1000003398
08.02.2019,ADULT SOCIAL CARE,LONDON CARE LTD,682.83,PHY LTS 65+,HOMECARE - C&V,2102918966,1000003398
08.02.2019,ADULT SOCIAL CARE,LONDON CARE LTD,699.44,PHY LTS 65+,HOMECARE - C&V,2102918954,1000003398
08.02.2019,ADULT SOCIAL CARE,LONDON CARE LTD,716.16,PHY LTS 65+,HOMECARE - C&V,2102919021,1000003398
08.02.2019,ADULT SOCIAL CARE,LONDON CARE LTD,745.37,PHY LTS 65+,HOMECARE - C&V,2102918968,1000003398
08.02.2019,ADULT SOCIAL CARE,LONDON CARE LTD,749.64,PHY LTS 65+,HOMECARE - C&V,2102918396,1000003398
08.02.2019,ADULT SOCIAL CARE,LONDON CARE LTD,757.9,PHY LTS 65+,HOMECARE - C&V,2102918436,1000003398
08.02.2019,ADULT SOCIAL CARE,LONDON CARE LTD,757.95,PHY LTS 65+,HOMECARE - C&V,2102918346,1000003398
08.02.2019,ADULT SOCIAL CARE,LONDON CARE LTD,766.05,PHY LTS 65+,HOMECARE - C&V,2102918457,1000003398
08.02.2019,ADULT SOCIAL CARE,LONDON CARE LTD,766.22,PHY LTS 65+,HOMECARE - C&V,2102918386,1000003398
08.02.2019,ADULT SOCIAL CARE,LONDON CARE LTD,766.32,PHY LTS 65+,HOMECARE - C&V,2102919017,1000003398
08.02.2019,ADULT SOCIAL CARE,LONDON CARE LTD,778.7,PHY LTS 65+,HOMECARE - C&V,2102918940,1000003398
08.02.2019,ADULT SOCIAL CARE,LONDON CARE LTD,786.78,PHY LTS 65+,HOMECARE - C&V,2102918898,1000003398
08.02.2019,ADULT SOCIAL CARE,LONDON CARE LTD,795.38,PHY LTS 65+,HOMECARE - C&V,2102918446,1000003398
08.02.2019,ADULT SOCIAL CARE,LONDON CARE LTD,799.36,PHY LTS 65+,HOMECARE - C&V,2102918946,1000003398
08.02.2019,ADULT SOCIAL CARE,LONDON CARE LTD,799.54,PHY LTS 65+,HOMECARE - C&V,2102918435,1000003398
08.02.2019,ADULT SOCIAL CARE,LONDON CARE LTD,799.62,PHY LTS 65+,HOMECARE - C&V,2102918906,1000003398
08.02.2019,ADULT SOCIAL CARE,LONDON CARE LTD,807.87,PHY LTS 65+,HOMECARE - C&V,2102918909,1000003398
08.02.2019,ADULT SOCIAL CARE,LONDON CARE LTD,807.87,PHY LTS 65+,HOMECARE - C&V,2102919103,1000003398
08.02.2019,ADULT SOCIAL CARE,LONDON CARE LTD,807.91,PHY LTS 65+,HOMECARE - C&V,2102918374,1000003398
08.02.2019,ADULT SOCIAL CARE,LONDON CARE LTD,816.09,PHY LTS 65+,HOMECARE - C&V,2102918409,1000003398
08.02.2019,ADULT SOCIAL CARE,LONDON CARE LTD,816.2,PHY LTS 65+,HOMECARE - C&V,2102919032,1000003398
08.02.2019,ADULT SOCIAL CARE,LONDON CARE LTD,828.75,PHY LTS 65+,HOMECARE - C&V,2102919004,1000003398
08.02.2019,ADULT SOCIAL CARE,LONDON CARE LTD,832.64,PHY LTS 65+,HOMECARE - C&V,2102919080,1000003398
08.02.2019,ADULT SOCIAL CARE,LONDON CARE LTD,841.16,PHY LTS 65+,HOMECARE - C&V,2102918381,1000003398
08.02.2019,ADULT SOCIAL CARE,LONDON CARE LTD,853.71,PHY LTS 65+,HOMECARE - C&V,2102918392,1000003398
08.02.2019,ADULT SOCIAL CARE,LONDON CARE LTD,866.16,PHY LTS 65+,HOMECARE - C&V,2102918429,1000003398
08.02.2019,ADULT SOCIAL CARE,LONDON CARE LTD,874.47,PHY LTS 65+,HOMECARE - C&V,2102919090,1000003398
08.02.2019,ADULT SOCIAL CARE,LONDON CARE LTD,878.7,PHY LTS 65+,HOMECARE - C&V,2102918433,1000003398
08.02.2019,ADULT SOCIAL CARE,LONDON CARE LTD,882.45,PHY LTS 65+,HOMECARE - C&V,2102918425,1000003398
08.02.2019,ADULT SOCIAL CARE,LONDON CARE LTD,882.8,PHY LTS 65+,HOMECARE - C&V,2102918431,1000003398
08.02.2019,ADULT SOCIAL CARE,LONDON CARE LTD,899.37,PHY LTS 65+,HOMECARE - C&V,2102919000,1000003398
08.02.2019,ADULT SOCIAL CARE,LONDON CARE LTD,899.37,PHY LTS 65+,HOMECARE - C&V,2102919061,1000003398
08.02.2019,ADULT SOCIAL CARE,LONDON CARE LTD,911.96,PHY LTS 65+,HOMECARE - C&V,2102919013,1000003398
08.02.2019,ADULT SOCIAL CARE,LONDON CARE LTD,916.12,PHY LTS 65+,HOMECARE - C&V,2102919014,1000003398
08.02.2019,ADULT SOCIAL CARE,LONDON CARE LTD,916.12,PHY LTS 65+,HOMECARE - C&V,2102919048,1000003398
08.02.2019,ADULT SOCIAL CARE,LONDON CARE LTD,924.51,PHY LTS 65+,HOMECARE - C&V,2102918360,1000003398
08.02.2019,ADULT SOCIAL CARE,LONDON CARE LTD,925.95,PHY LTS 65+,HOMECARE - C&V,2102919050,1000003398
08.02.2019,ADULT SOCIAL CARE,LONDON CARE LTD,928.58,PHY LTS 65+,HOMECARE - C&V,2102918453,1000003398
08.02.2019,ADULT SOCIAL CARE,LONDON CARE LTD,932.4,PHY LTS 65+,HOMECARE - C&V,2102919051,1000003398
08.02.2019,ADULT SOCIAL CARE,LONDON CARE LTD,932.64,PHY LTS 65+,HOMECARE - C&V,2102918939,1000003398
08.02.2019,ADULT SOCIAL CARE,LONDON CARE LTD,945.27,PHY LTS 65+,HOMECARE - C&V,2102918353,1000003398
08.02.2019,ADULT SOCIAL CARE,LONDON CARE LTD,949.4,PHY LTS 65+,HOMECARE - C&V,2102918340,1000003398
08.02.2019,ADULT SOCIAL CARE,LONDON CARE LTD,949.4,PHY LTS 65+,HOMECARE - C&V,2102918984,1000003398
08.02.2019,ADULT SOCIAL CARE,LONDON CARE LTD,957.64,PHY LTS 65+,HOMECARE - C&V,2102918904,1000003398
08.02.2019,ADULT SOCIAL CARE,LONDON CARE LTD,970.15,PHY LTS 65+,HOMECARE - C&V,2102919009,1000003398
08.02.2019,ADULT SOCIAL CARE,LONDON CARE LTD,982.44,PHY LTS 65+,HOMECARE - C&V,2102919060,1000003398
08.02.2019,ADULT SOCIAL CARE,LONDON CARE LTD,990.8,PHY LTS 65+,HOMECARE - C&V,2102919016,1000003398
08.02.2019,ADULT SOCIAL CARE,LONDON CARE LTD,999.28,PHY LTS 65+,HOMECARE - C&V,2102919026,1000003398
08.02.2019,ADULT SOCIAL CARE,LONDON CARE LTD,"1,032.60",PHY LTS 65+,HOMECARE - C&V,2102919065,1000003398
08.02.2019,ADULT SOCIAL CARE,LONDON CARE LTD,"1,041.05",PHY LTS 65+,HOMECARE - C&V,2102919081,1000003398
08.02.2019,ADULT SOCIAL CARE,LONDON CARE LTD,"1,049.16",PHY LTS 65+,HOMECARE - C&V,2102918351,1000003398
08.02.2019,ADULT SOCIAL CARE,LONDON CARE LTD,"1,049.44",PHY LTS 65+,HOMECARE - C&V,2102919029,1000003398
08.02.2019,ADULT SOCIAL CARE,LONDON CARE LTD,"1,057.75",PHY LTS 65+,HOMECARE - C&V,2102918410,1000003398
08.02.2019,ADULT SOCIAL CARE,LONDON CARE LTD,"1,107.62",PHY LTS 65+,HOMECARE - C&V,2102918932,1000003398
08.02.2019,ADULT SOCIAL CARE,LONDON CARE LTD,"1,124.13",PHY LTS 65+,HOMECARE - C&V,2102919059,1000003398
08.02.2019,ADULT SOCIAL CARE,LONDON CARE LTD,"1,136.67",PHY LTS 65+,HOMECARE - C&V,2102919091,1000003398
08.02.2019,ADULT SOCIAL CARE,LONDON CARE LTD,"1,157.34",PHY LTS 65+,HOMECARE - C&V,2102918972,1000003398
08.02.2019,ADULT SOCIAL CARE,LONDON CARE LTD,"1,165.98",PHY LTS 65+,HOMECARE - C&V,2102918364,1000003398
08.02.2019,ADULT SOCIAL CARE,LONDON CARE LTD,"1,215.87",PHY LTS 65+,HOMECARE - C&V,2102918920,1000003398
08.02.2019,ADULT SOCIAL CARE,LONDON CARE LTD,"1,228.19",PHY LTS 65+,HOMECARE - C&V,2102919025,1000003398
08.02.2019,ADULT SOCIAL CARE,LONDON CARE LTD,"1,265.84",PHY LTS 65+,HOMECARE - C&V,2102918942,1000003398
08.02.2019,ADULT SOCIAL CARE,LONDON CARE LTD,"1,273.89",PHY LTS 65+,HOMECARE - C&V,2102919002,1000003398
08.02.2019,ADULT SOCIAL CARE,LONDON CARE LTD,"1,303.21",PHY LTS 65+,HOMECARE - C&V,2102919024,1000003398
08.02.2019,ADULT SOCIAL CARE,LONDON CARE LTD,"1,515.47",PHY LTS 65+,HOMECARE - C&V,2102918999,1000003398
08.02.2019,ADULT SOCIAL CARE,LONDON CARE LTD,"1,607.42",PHY LTS 65+,HOMECARE - C&V,2102919070,1000003398
08.02.2019,ADULT SOCIAL CARE,LONDON CARE LTD,"1,615.74",PHY LTS 65+,HOMECARE - C&V,2102918398,1000003398
08.02.2019,ADULT SOCIAL CARE,LONDON CARE LTD,"1,777.68",PHY LTS 65+,HOMECARE - C&V,2102919030,1000003398
08.02.2019,ADULT SOCIAL CARE,LONDON CARE LTD,"1,827.87",PHY LTS 65+,HOMECARE - C&V,2102918995,1000003398
08.02.2019,ADULT SOCIAL CARE,LONDON CARE LTD,"1,865.08",PHY LTS 65+,HOMECARE - C&V,2102918979,1000003398
08.02.2019,ADULT SOCIAL CARE,LONDON CARE LTD,"2,019.76",PHY LTS 65+,HOMECARE - C&V,2102918965,1000003398
08.02.2019,ADULT SOCIAL CARE,LONDON CARE LTD,"2,089.99",PHY LTS 65+,HOMECARE - C&V,2102919067,1000003398
08.02.2019,ADULT SOCIAL CARE,LONDON CARE LTD,"2,177.98",PHY LTS 65+,HOMECARE - C&V,2102918466,1000003398
08.02.2019,ADULT SOCIAL CARE,LONDON CARE LTD,"2,186.31",PHY LTS 65+,HOMECARE - C&V,2102918998,1000003398
08.02.2019,ADULT SOCIAL CARE,LONDON CARE LTD,"2,318.79",PHY LTS 65+,HOMECARE - C&V,2102919053,1000003398
08.02.2019,ADULT SOCIAL CARE,LONDON CARE LTD,"2,331.84",PHY LTS 65+,HOMECARE - C&V,2102918981,1000003398
08.02.2019,ADULT SOCIAL CARE,LONDON CARE LTD,"2,385.96",PHY LTS 65+,HOMECARE - C&V,2102919069,1000003398
08.02.2019,ADULT SOCIAL CARE,LONDON CARE LTD,"2,423.43",PHY LTS 65+,HOMECARE - C&V,2102918931,1000003398
08.02.2019,ADULT SOCIAL CARE,LONDON CARE LTD,"2,448.32",PHY LTS 65+,HOMECARE - C&V,2102918956,1000003398
08.02.2019,ADULT SOCIAL CARE,LONDON CARE LTD,"2,517.68",PHY LTS 65+,HOMECARE - C&V,2102918924,1000003398
08.02.2019,ADULT SOCIAL CARE,LONDON CARE LTD,"2,543.98",PHY LTS 65+,HOMECARE - C&V,2102918400,1000003398
08.02.2019,ADULT SOCIAL CARE,LONDON CARE LTD,"2,552.31",PHY LTS 65+,HOMECARE - C&V,2102919066,1000003398
08.02.2019,ADULT SOCIAL CARE,LONDON CARE LTD,"2,556.47",PHY LTS 65+,HOMECARE - C&V,2102918344,1000003398
08.02.2019,ADULT SOCIAL CARE,LONDON CARE LTD,"2,594.00",PHY LTS 65+,HOMECARE - C&V,2102918426,1000003398
08.02.2019,ADULT SOCIAL CARE,LONDON CARE LTD,"2,623.10",PHY LTS 65+,HOMECARE - C&V,2102918974,1000003398
08.02.2019,ADULT SOCIAL CARE,LONDON CARE LTD,"2,639.64",PHY LTS 65+,HOMECARE - C&V,2102918343,1000003398
08.02.2019,ADULT SOCIAL CARE,LONDON CARE LTD,"2,648.16",PHY LTS 65+,HOMECARE - C&V,2102918443,1000003398
08.02.2019,ADULT SOCIAL CARE,LONDON CARE LTD,"2,810.32",PHY LTS 65+,HOMECARE - C&V,2102918953,1000003398
08.02.2019,ADULT SOCIAL CARE,LONDON CARE LTD,"3,426.29",PHY LTS 65+,HOMECARE - C&V,2102918897,1000003398
08.02.2019,ADULT SOCIAL CARE,LONDON CARE LTD,"3,497.20",PHY LTS 65+,HOMECARE - C&V,2102919058,1000003398
08.02.2019,ADULT SOCIAL CARE,SUPREME CARE SERVICES LTD,250.5,PHY LTS 65+,HOMECARE - C&V,2102918537,1000059416
08.02.2019,ADULT SOCIAL CARE,SUPREME CARE SERVICES LTD,250.5,PHY LTS 65+,HOMECARE - C&V,2102918787,1000059416
08.02.2019,ADULT SOCIAL CARE,SUPREME CARE SERVICES LTD,263.03,PHY LTS 65+,HOMECARE - C&V,2102918646,1000059416
08.02.2019,ADULT SOCIAL CARE,SUPREME CARE SERVICES LTD,267.2,PHY LTS 65+,HOMECARE - C&V,2102918551,1000059416
08.02.2019,ADULT SOCIAL CARE,SUPREME CARE SERVICES LTD,275.55,PHY LTS 65+,HOMECARE - C&V,2102918520,1000059416
08.02.2019,ADULT SOCIAL CARE,SUPREME CARE SERVICES LTD,279.73,PHY LTS 65+,HOMECARE - C&V,2102918792,1000059416
08.02.2019,ADULT SOCIAL CARE,SUPREME CARE SERVICES LTD,283.9,PHY LTS 65+,HOMECARE - C&V,2102918492,1000059416
08.02.2019,ADULT SOCIAL CARE,SUPREME CARE SERVICES LTD,283.9,PHY LTS 65+,HOMECARE - C&V,2102918553,1000059416
08.02.2019,ADULT SOCIAL CARE,SUPREME CARE SERVICES LTD,288.08,PHY LTS 65+,HOMECARE - C&V,2102918726,1000059416
08.02.2019,ADULT SOCIAL CARE,SUPREME CARE SERVICES LTD,300.6,PHY LTS 65+,HOMECARE - C&V,2102918511,1000059416
08.02.2019,ADULT SOCIAL CARE,SUPREME CARE SERVICES LTD,300.6,PHY LTS 65+,HOMECARE - C&V,2102918654,1000059416
08.02.2019,ADULT SOCIAL CARE,SUPREME CARE SERVICES LTD,300.6,PHY LTS 65+,HOMECARE - C&V,2102918748,1000059416
08.02.2019,ADULT SOCIAL CARE,SUPREME CARE SERVICES LTD,300.6,PHY LTS 65+,HOMECARE - C&V,2102918866,1000059416
08.02.2019,ADULT SOCIAL CARE,SUPREME CARE SERVICES LTD,300.6,PHY LTS 65+,HOMECARE - C&V,2102918868,1000059416
08.02.2019,ADULT SOCIAL CARE,SUPREME CARE SERVICES LTD,317.3,PHY LTS 65+,HOMECARE - C&V,2102918623,1000059416
08.02.2019,ADULT SOCIAL CARE,SUPREME CARE SERVICES LTD,334,PHY LTS 65+,HOMECARE - C&V,2102918505,1000059416
08.02.2019,ADULT SOCIAL CARE,SUPREME CARE SERVICES LTD,334,PHY LTS 65+,HOMECARE - C&V,2102918666,1000059416
08.02.2019,ADULT SOCIAL CARE,SUPREME CARE SERVICES LTD,334,PHY LTS 65+,HOMECARE - C&V,2102918728,1000059416
08.02.2019,ADULT SOCIAL CARE,SUPREME CARE SERVICES LTD,342.35,PHY LTS 65+,HOMECARE - C&V,2102918477,1000059416
08.02.2019,ADULT SOCIAL CARE,SUPREME CARE SERVICES LTD,350.7,PHY LTS 65+,HOMECARE - C&V,2102918479,1000059416
08.02.2019,ADULT SOCIAL CARE,SUPREME CARE SERVICES LTD,350.7,PHY LTS 65+,HOMECARE - C&V,2102918532,1000059416
08.02.2019,ADULT SOCIAL CARE,SUPREME CARE SERVICES LTD,350.7,PHY LTS 65+,HOMECARE - C&V,2102918607,1000059416
08.02.2019,ADULT SOCIAL CARE,SUPREME CARE SERVICES LTD,350.7,PHY LTS 65+,HOMECARE - C&V,2102918612,1000059416
08.02.2019,ADULT SOCIAL CARE,SUPREME CARE SERVICES LTD,350.7,PHY LTS 65+,HOMECARE - C&V,2102918619,1000059416
08.02.2019,ADULT SOCIAL CARE,SUPREME CARE SERVICES LTD,350.7,PHY LTS 65+,HOMECARE - C&V,2102918660,1000059416
08.02.2019,ADULT SOCIAL CARE,SUPREME CARE SERVICES LTD,350.7,PHY LTS 65+,HOMECARE - C&V,2102918674,1000059416
08.02.2019,ADULT SOCIAL CARE,SUPREME CARE SERVICES LTD,350.7,PHY LTS 65+,HOMECARE - C&V,2102918704,1000059416
08.02.2019,ADULT SOCIAL CARE,SUPREME CARE SERVICES LTD,350.7,PHY LTS 65+,HOMECARE - C&V,2102918733,1000059416
08.02.2019,ADULT SOCIAL CARE,SUPREME CARE SERVICES LTD,350.7,PHY LTS 65+,HOMECARE - C&V,2102918767,1000059416
08.02.2019,ADULT SOCIAL CARE,SUPREME CARE SERVICES LTD,350.7,PHY LTS 65+,HOMECARE - C&V,2102918801,1000059416
08.02.2019,ADULT SOCIAL CARE,SUPREME CARE SERVICES LTD,354.88,PHY LTS 65+,HOMECARE - C&V,2102918596,1000059416
08.02.2019,ADULT SOCIAL CARE,SUPREME CARE SERVICES LTD,363.23,PHY LTS 65+,HOMECARE - C&V,2102918768,1000059416
08.02.2019,ADULT SOCIAL CARE,SUPREME CARE SERVICES LTD,367.4,PHY LTS 65+,HOMECARE - C&V,2102918591,1000059416
08.02.2019,ADULT SOCIAL CARE,SUPREME CARE SERVICES LTD,367.4,PHY LTS 65+,HOMECARE - C&V,2102918639,1000059416
08.02.2019,ADULT SOCIAL CARE,SUPREME CARE SERVICES LTD,367.4,PHY LTS 65+,HOMECARE - C&V,2102918644,1000059416
08.02.2019,ADULT SOCIAL CARE,SUPREME CARE SERVICES LTD,367.4,PHY LTS 65+,HOMECARE - C&V,2102918851,1000059416
08.02.2019,ADULT SOCIAL CARE,SUPREME CARE SERVICES LTD,367.4,PHY LTS 65+,HOMECARE - C&V,2102918891,1000059416
08.02.2019,ADULT SOCIAL CARE,SUPREME CARE SERVICES LTD,379.93,PHY LTS 65+,HOMECARE - C&V,2102918489,1000059416
08.02.2019,ADULT SOCIAL CARE,SUPREME CARE SERVICES LTD,379.93,PHY LTS 65+,HOMECARE - C&V,2102918525,1000059416
08.02.2019,ADULT SOCIAL CARE,SUPREME CARE SERVICES LTD,400.8,PHY LTS 65+,HOMECARE - C&V,2102918557,1000059416
08.02.2019,ADULT SOCIAL CARE,SUPREME CARE SERVICES LTD,400.8,PHY LTS 65+,HOMECARE - C&V,2102918563,1000059416
08.02.2019,ADULT SOCIAL CARE,SUPREME CARE SERVICES LTD,409.15,PHY LTS 65+,HOMECARE - C&V,2102918738,1000059416
08.02.2019,ADULT SOCIAL CARE,SUPREME CARE SERVICES LTD,417.5,PHY LTS 65+,HOMECARE - C&V,2102918656,1000059416
08.02.2019,ADULT SOCIAL CARE,SUPREME CARE SERVICES LTD,417.5,PHY LTS 65+,HOMECARE - C&V,2102918700,1000059416
08.02.2019,ADULT SOCIAL CARE,SUPREME CARE SERVICES LTD,417.52,PHY LTS 65+,HOMECARE - C&V,2102918830,1000059416
08.02.2019,ADULT SOCIAL CARE,SUPREME CARE SERVICES LTD,425.85,PHY LTS 65+,HOMECARE - C&V,2102918682,1000059416
08.02.2019,ADULT SOCIAL CARE,SUPREME CARE SERVICES LTD,425.85,PHY LTS 65+,HOMECARE - C&V,2102918739,1000059416
08.02.2019,ADULT SOCIAL CARE,SUPREME CARE SERVICES LTD,434.2,PHY LTS 65+,HOMECARE - C&V,2102918472,1000059416
08.02.2019,ADULT SOCIAL CARE,SUPREME CARE SERVICES LTD,446.73,PHY LTS 65+,HOMECARE - C&V,2102918512,1000059416
08.02.2019,ADULT SOCIAL CARE,SUPREME CARE SERVICES LTD,450.9,PHY LTS 65+,HOMECARE - C&V,2102918609,1000059416
08.02.2019,ADULT SOCIAL CARE,SUPREME CARE SERVICES LTD,450.9,PHY LTS 65+,HOMECARE - C&V,2102918880,1000059416
08.02.2019,ADULT SOCIAL CARE,SUPREME CARE SERVICES LTD,467.6,PHY LTS 65+,HOMECARE - C&V,2102918579,1000059416
08.02.2019,ADULT SOCIAL CARE,SUPREME CARE SERVICES LTD,467.6,PHY LTS 65+,HOMECARE - C&V,2102918647,1000059416
08.02.2019,ADULT SOCIAL CARE,SUPREME CARE SERVICES LTD,501,PHY LTS 65+,HOMECARE - C&V,2102918760,1000059416
08.02.2019,ADULT SOCIAL CARE,SUPREME CARE SERVICES LTD,509.35,PHY LTS 65+,HOMECARE - C&V,2102918598,1000059416
08.02.2019,ADULT SOCIAL CARE,SUPREME CARE SERVICES LTD,526.05,PHY LTS 65+,HOMECARE - C&V,2102918632,1000059416
08.02.2019,ADULT SOCIAL CARE,SUPREME CARE SERVICES LTD,534.4,PHY LTS 65+,HOMECARE - C&V,2102918621,1000059416
08.02.2019,ADULT SOCIAL CARE,SUPREME CARE SERVICES LTD,534.4,PHY LTS 65+,HOMECARE - C&V,2102918822,1000059416
08.02.2019,ADULT SOCIAL CARE,SUPREME CARE SERVICES LTD,534.4,PHY LTS 65+,HOMECARE - C&V,2102918867,1000059416
08.02.2019,ADULT SOCIAL CARE,SUPREME CARE SERVICES LTD,538.58,PHY LTS 65+,HOMECARE - C&V,2102918665,1000059416
08.02.2019,ADULT SOCIAL CARE,SUPREME CARE SERVICES LTD,551.1,PHY LTS 65+,HOMECARE - C&V,2102918843,1000059416
08.02.2019,ADULT SOCIAL CARE,SUPREME CARE SERVICES LTD,559.45,PHY LTS 65+,HOMECARE - C&V,2102918757,1000059416
08.02.2019,ADULT SOCIAL CARE,SUPREME CARE SERVICES LTD,559.45,PHY LTS 65+,HOMECARE - C&V,2102918798,1000059416
08.02.2019,ADULT SOCIAL CARE,SUPREME CARE SERVICES LTD,563.63,PHY LTS 65+,HOMECARE - C&V,2102918633,1000059416
08.02.2019,ADULT SOCIAL CARE,SUPREME CARE SERVICES LTD,567.74,PHY LTS 65+,HOMECARE - C&V,2102918869,1000059416
08.02.2019,ADULT SOCIAL CARE,SUPREME CARE SERVICES LTD,567.8,PHY LTS 65+,HOMECARE - C&V,2102918558,1000059416
08.02.2019,ADULT SOCIAL CARE,SUPREME CARE SERVICES LTD,571.98,PHY LTS 65+,HOMECARE - C&V,2102918615,1000059416
08.02.2019,ADULT SOCIAL CARE,SUPREME CARE SERVICES LTD,576.15,PHY LTS 65+,HOMECARE - C&V,2102918683,1000059416
08.02.2019,ADULT SOCIAL CARE,SUPREME CARE SERVICES LTD,584.5,PHY LTS 65+,HOMECARE - C&V,2102918713,1000059416
08.02.2019,ADULT SOCIAL CARE,SUPREME CARE SERVICES LTD,584.5,PHY LTS 65+,HOMECARE - C&V,2102918727,1000059416
08.02.2019,ADULT SOCIAL CARE,SUPREME CARE SERVICES LTD,584.5,PHY LTS 65+,HOMECARE - C&V,2102918769,1000059416
08.02.2019,ADULT SOCIAL CARE,SUPREME CARE SERVICES LTD,584.52,PHY LTS 65+,HOMECARE - C&V,2102918845,1000059416
08.02.2019,ADULT SOCIAL CARE,SUPREME CARE SERVICES LTD,634.6,PHY LTS 65+,HOMECARE - C&V,2102918887,1000059416
08.02.2019,ADULT SOCIAL CARE,SUPREME CARE SERVICES LTD,642.95,PHY LTS 65+,HOMECARE - C&V,2102918592,1000059416
08.02.2019,ADULT SOCIAL CARE,SUPREME CARE SERVICES LTD,651.3,PHY LTS 65+,HOMECARE - C&V,2102918483,1000059416
08.02.2019,ADULT SOCIAL CARE,SUPREME CARE SERVICES LTD,651.3,PHY LTS 65+,HOMECARE - C&V,2102918593,1000059416
08.02.2019,ADULT SOCIAL CARE,SUPREME CARE SERVICES LTD,651.32,PHY LTS 65+,HOMECARE - C&V,2102918813,1000059416
08.02.2019,ADULT SOCIAL CARE,SUPREME CARE SERVICES LTD,651.32,PHY LTS 65+,HOMECARE - C&V,2102918850,1000059416
08.02.2019,ADULT SOCIAL CARE,SUPREME CARE SERVICES LTD,659.65,PHY LTS 65+,HOMECARE - C&V,2102918517,1000059416
08.02.2019,ADULT SOCIAL CARE,SUPREME CARE SERVICES LTD,668,PHY LTS 65+,HOMECARE - C&V,2102918582,1000059416
08.02.2019,ADULT SOCIAL CARE,SUPREME CARE SERVICES LTD,668,PHY LTS 65+,HOMECARE - C&V,2102918689,1000059416
08.02.2019,ADULT SOCIAL CARE,SUPREME CARE SERVICES LTD,668,PHY LTS 65+,HOMECARE - C&V,2102918783,1000059416
08.02.2019,ADULT SOCIAL CARE,SUPREME CARE SERVICES LTD,668,PHY LTS 65+,HOMECARE - C&V,2102918806,1000059416
08.02.2019,ADULT SOCIAL CARE,SUPREME CARE SERVICES LTD,668,PHY LTS 65+,HOMECARE - C&V,2102918808,1000059416
08.02.2019,ADULT SOCIAL CARE,SUPREME CARE SERVICES LTD,676.35,PHY LTS 65+,HOMECARE - C&V,2102918675,1000059416
08.02.2019,ADULT SOCIAL CARE,SUPREME CARE SERVICES LTD,684.7,PHY LTS 65+,HOMECARE - C&V,2102918538,1000059416
08.02.2019,ADULT SOCIAL CARE,SUPREME CARE SERVICES LTD,684.7,PHY LTS 65+,HOMECARE - C&V,2102918588,1000059416
08.02.2019,ADULT SOCIAL CARE,SUPREME CARE SERVICES LTD,684.7,PHY LTS 65+,HOMECARE - C&V,2102918677,1000059416
08.02.2019,ADULT SOCIAL CARE,SUPREME CARE SERVICES LTD,687.09,PHY LTS 65+,HOMECARE - C&V,2102918874,1000059416
08.02.2019,ADULT SOCIAL CARE,SUPREME CARE SERVICES LTD,697.23,PHY LTS 65+,HOMECARE - C&V,2102918740,1000059416
08.02.2019,ADULT SOCIAL CARE,SUPREME CARE SERVICES LTD,701.4,PHY LTS 65+,HOMECARE - C&V,2102918795,1000059416
08.02.2019,ADULT SOCIAL CARE,SUPREME CARE SERVICES LTD,701.4,PHY LTS 65+,HOMECARE - C&V,2102918828,1000059416
08.02.2019,ADULT SOCIAL CARE,SUPREME CARE SERVICES LTD,701.4,PHY LTS 65+,HOMECARE - C&V,2102918857,1000059416
08.02.2019,ADULT SOCIAL CARE,SUPREME CARE SERVICES LTD,701.4,PHY LTS 65+,HOMECARE - C&V,2102918885,1000059416
08.02.2019,ADULT SOCIAL CARE,SUPREME CARE SERVICES LTD,701.4,PHY LTS 65+,HOMECARE - C&V,2102918893,1000059416
08.02.2019,ADULT SOCIAL CARE,SUPREME CARE SERVICES LTD,705.58,PHY LTS 65+,HOMECARE - C&V,2102918476,1000059416
08.02.2019,ADULT SOCIAL CARE,SUPREME CARE SERVICES LTD,705.58,PHY LTS 65+,HOMECARE - C&V,2102918669,1000059416
08.02.2019,ADULT SOCIAL CARE,SUPREME CARE SERVICES LTD,713.93,PHY LTS 65+,HOMECARE - C&V,2102918571,1000059416
08.02.2019,ADULT SOCIAL CARE,SUPREME CARE SERVICES LTD,718.1,PHY LTS 65+,HOMECARE - C&V,2102918490,1000059416
08.02.2019,ADULT SOCIAL CARE,SUPREME CARE SERVICES LTD,718.1,PHY LTS 65+,HOMECARE - C&V,2102918600,1000059416
08.02.2019,ADULT SOCIAL CARE,SUPREME CARE SERVICES LTD,718.1,PHY LTS 65+,HOMECARE - C&V,2102918708,1000059416
08.02.2019,ADULT SOCIAL CARE,SUPREME CARE SERVICES LTD,718.1,PHY LTS 65+,HOMECARE - C&V,2102918807,1000059416
08.02.2019,ADULT SOCIAL CARE,SUPREME CARE SERVICES LTD,726.45,PHY LTS 65+,HOMECARE - C&V,2102918504,1000059416
08.02.2019,ADULT SOCIAL CARE,SUPREME CARE SERVICES LTD,730.63,PHY LTS 65+,HOMECARE - C&V,2102918802,1000059416
08.02.2019,ADULT SOCIAL CARE,SUPREME CARE SERVICES LTD,734.8,PHY LTS 65+,HOMECARE - C&V,2102918624,1000059416
08.02.2019,ADULT SOCIAL CARE,SUPREME CARE SERVICES LTD,751.5,PHY LTS 65+,HOMECARE - C&V,2102918886,1000059416
08.02.2019,ADULT SOCIAL CARE,SUPREME CARE SERVICES LTD,768.2,PHY LTS 65+,HOMECARE - C&V,2102918523,1000059416
08.02.2019,ADULT SOCIAL CARE,SUPREME CARE SERVICES LTD,768.2,PHY LTS 65+,HOMECARE - C&V,2102918664,1000059416
08.02.2019,ADULT SOCIAL CARE,SUPREME CARE SERVICES LTD,776.55,PHY LTS 65+,HOMECARE - C&V,2102918629,1000059416
08.02.2019,ADULT SOCIAL CARE,SUPREME CARE SERVICES LTD,784.92,PHY LTS 65+,HOMECARE - C&V,2102918861,1000059416
08.02.2019,ADULT SOCIAL CARE,SUPREME CARE SERVICES LTD,801.6,PHY LTS 65+,HOMECARE - C&V,2102918642,1000059416
08.02.2019,ADULT SOCIAL CARE,SUPREME CARE SERVICES LTD,809.95,PHY LTS 65+,HOMECARE - C&V,2102918569,1000059416
08.02.2019,ADULT SOCIAL CARE,SUPREME CARE SERVICES LTD,818.3,PHY LTS 65+,HOMECARE - C&V,2102918474,1000059416
08.02.2019,ADULT SOCIAL CARE,SUPREME CARE SERVICES LTD,818.3,PHY LTS 65+,HOMECARE - C&V,2102918568,1000059416
08.02.2019,ADULT SOCIAL CARE,SUPREME CARE SERVICES LTD,818.3,PHY LTS 65+,HOMECARE - C&V,2102918672,1000059416
08.02.2019,ADULT SOCIAL CARE,SUPREME CARE SERVICES LTD,818.3,PHY LTS 65+,HOMECARE - C&V,2102918758,1000059416
08.02.2019,ADULT SOCIAL CARE,SUPREME CARE SERVICES LTD,818.3,PHY LTS 65+,HOMECARE - C&V,2102918770,1000059416
08.02.2019,ADULT SOCIAL CARE,SUPREME CARE SERVICES LTD,818.32,PHY LTS 65+,HOMECARE - C&V,2102918840,1000059416
08.02.2019,ADULT SOCIAL CARE,SUPREME CARE SERVICES LTD,818.32,PHY LTS 65+,HOMECARE - C&V,2102918872,1000059416
08.02.2019,ADULT SOCIAL CARE,SUPREME CARE SERVICES LTD,835,PHY LTS 65+,HOMECARE - C&V,2102918499,1000059416
08.02.2019,ADULT SOCIAL CARE,SUPREME CARE SERVICES LTD,835,PHY LTS 65+,HOMECARE - C&V,2102918608,1000059416
08.02.2019,ADULT SOCIAL CARE,SUPREME CARE SERVICES LTD,835,PHY LTS 65+,HOMECARE - C&V,2102918634,1000059416
08.02.2019,ADULT SOCIAL CARE,SUPREME CARE SERVICES LTD,837.39,PHY LTS 65+,HOMECARE - C&V,2102918825,1000059416
08.02.2019,ADULT SOCIAL CARE,SUPREME CARE SERVICES LTD,839.18,PHY LTS 65+,HOMECARE - C&V,2102918574,1000059416
08.02.2019,ADULT SOCIAL CARE,SUPREME CARE SERVICES LTD,847.53,PHY LTS 65+,HOMECARE - C&V,2102918548,1000059416
08.02.2019,ADULT SOCIAL CARE,SUPREME CARE SERVICES LTD,851.7,PHY LTS 65+,HOMECARE - C&V,2102918723,1000059416
08.02.2019,ADULT SOCIAL CARE,SUPREME CARE SERVICES LTD,851.7,PHY LTS 65+,HOMECARE - C&V,2102918724,1000059416
08.02.2019,ADULT SOCIAL CARE,SUPREME CARE SERVICES LTD,868.4,PHY LTS 65+,HOMECARE - C&V,2102918841,1000059416
08.02.2019,ADULT SOCIAL CARE,SUPREME CARE SERVICES LTD,868.4,PHY LTS 65+,HOMECARE - C&V,2102918870,1000059416
08.02.2019,ADULT SOCIAL CARE,SUPREME CARE SERVICES LTD,880.93,PHY LTS 65+,HOMECARE - C&V,2102918514,1000059416
08.02.2019,ADULT SOCIAL CARE,SUPREME CARE SERVICES LTD,901.8,PHY LTS 65+,HOMECARE - C&V,2102918550,1000059416
08.02.2019,ADULT SOCIAL CARE,SUPREME CARE SERVICES LTD,910.15,PHY LTS 65+,HOMECARE - C&V,2102918703,1000059416
08.02.2019,ADULT SOCIAL CARE,SUPREME CARE SERVICES LTD,922.68,PHY LTS 65+,HOMECARE - C&V,2102918485,1000059416
08.02.2019,ADULT SOCIAL CARE,SUPREME CARE SERVICES LTD,935.2,PHY LTS 65+,HOMECARE - C&V,2102918638,1000059416
08.02.2019,ADULT SOCIAL CARE,SUPREME CARE SERVICES LTD,935.2,PHY LTS 65+,HOMECARE - C&V,2102918690,1000059416
08.02.2019,ADULT SOCIAL CARE,SUPREME CARE SERVICES LTD,935.2,PHY LTS 65+,HOMECARE - C&V,2102918709,1000059416
08.02.2019,ADULT SOCIAL CARE,SUPREME CARE SERVICES LTD,935.2,PHY LTS 65+,HOMECARE - C&V,2102918731,1000059416
08.02.2019,ADULT SOCIAL CARE,SUPREME CARE SERVICES LTD,951.9,PHY LTS 65+,HOMECARE - C&V,2102918527,1000059416
08.02.2019,ADULT SOCIAL CARE,SUPREME CARE SERVICES LTD,951.9,PHY LTS 65+,HOMECARE - C&V,2102918584,1000059416
08.02.2019,ADULT SOCIAL CARE,SUPREME CARE SERVICES LTD,951.9,PHY LTS 65+,HOMECARE - C&V,2102918595,1000059416
08.02.2019,ADULT SOCIAL CARE,SUPREME CARE SERVICES LTD,951.9,PHY LTS 65+,HOMECARE - C&V,2102918691,1000059416
08.02.2019,ADULT SOCIAL CARE,SUPREME CARE SERVICES LTD,961.44,PHY LTS 65+,HOMECARE - C&V,2102918846,1000059416
08.02.2019,ADULT SOCIAL CARE,SUPREME CARE SERVICES LTD,968.6,PHY LTS 65+,HOMECARE - C&V,2102918701,1000059416
08.02.2019,ADULT SOCIAL CARE,SUPREME CARE SERVICES LTD,985.3,PHY LTS 65+,HOMECARE - C&V,2102918617,1000059416
08.02.2019,ADULT SOCIAL CARE,SUPREME CARE SERVICES LTD,985.3,PHY LTS 65+,HOMECARE - C&V,2102918696,1000059416
08.02.2019,ADULT SOCIAL CARE,SUPREME CARE SERVICES LTD,985.3,PHY LTS 65+,HOMECARE - C&V,2102918780,1000059416
08.02.2019,ADULT SOCIAL CARE,SUPREME CARE SERVICES LTD,"1,002.00",PHY LTS 65+,HOMECARE - C&V,2102918468,1000059416
08.02.2019,ADULT SOCIAL CARE,SUPREME CARE SERVICES LTD,"1,002.00",PHY LTS 65+,HOMECARE - C&V,2102918863,1000059416
08.02.2019,ADULT SOCIAL CARE,SUPREME CARE SERVICES LTD,"1,014.53",PHY LTS 65+,HOMECARE - C&V,2102918536,1000059416
08.02.2019,ADULT SOCIAL CARE,SUPREME CARE SERVICES LTD,"1,018.70",PHY LTS 65+,HOMECARE - C&V,2102918702,1000059416
08.02.2019,ADULT SOCIAL CARE,SUPREME CARE SERVICES LTD,"1,031.82",PHY LTS 65+,HOMECARE - C&V,2102918814,1000059416
08.02.2019,ADULT SOCIAL CARE,SUPREME CARE SERVICES LTD,"1,035.40",PHY LTS 65+,HOMECARE - C&V,2102918573,1000059416
08.02.2019,ADULT SOCIAL CARE,SUPREME CARE SERVICES LTD,"1,035.40",PHY LTS 65+,HOMECARE - C&V,2102918622,1000059416
08.02.2019,ADULT SOCIAL CARE,SUPREME CARE SERVICES LTD,"1,035.40",PHY LTS 65+,HOMECARE - C&V,2102918695,1000059416
08.02.2019,ADULT SOCIAL CARE,SUPREME CARE SERVICES LTD,"1,035.40",PHY LTS 65+,HOMECARE - C&V,2102918817,1000059416
08.02.2019,ADULT SOCIAL CARE,SUPREME CARE SERVICES LTD,"1,035.40",PHY LTS 65+,HOMECARE - C&V,2102918865,1000059416
08.02.2019,ADULT SOCIAL CARE,SUPREME CARE SERVICES LTD,"1,052.10",PHY LTS 65+,HOMECARE - C&V,2102918614,1000059416
08.02.2019,ADULT SOCIAL CARE,SUPREME CARE SERVICES LTD,"1,052.10",PHY LTS 65+,HOMECARE - C&V,2102918687,1000059416
08.02.2019,ADULT SOCIAL CARE,SUPREME CARE SERVICES LTD,"1,052.10",PHY LTS 65+,HOMECARE - C&V,2102918755,1000059416
08.02.2019,ADULT SOCIAL CARE,SUPREME CARE SERVICES LTD,"1,052.10",PHY LTS 65+,HOMECARE - C&V,2102918778,1000059416
08.02.2019,ADULT SOCIAL CARE,SUPREME CARE SERVICES LTD,"1,085.50",PHY LTS 65+,HOMECARE - C&V,2102918518,1000059416
08.02.2019,ADULT SOCIAL CARE,SUPREME CARE SERVICES LTD,"1,102.20",PHY LTS 65+,HOMECARE - C&V,2102918673,1000059416
08.02.2019,ADULT SOCIAL CARE,SUPREME CARE SERVICES LTD,"1,102.20",PHY LTS 65+,HOMECARE - C&V,2102918771,1000059416
08.02.2019,ADULT SOCIAL CARE,SUPREME CARE SERVICES LTD,"1,102.20",PHY LTS 65+,HOMECARE - C&V,2102918820,1000059416
08.02.2019,ADULT SOCIAL CARE,SUPREME CARE SERVICES LTD,"1,102.20",PHY LTS 65+,HOMECARE - C&V,2102918826,1000059416
08.02.2019,ADULT SOCIAL CARE,SUPREME CARE SERVICES LTD,"1,102.20",PHY LTS 65+,HOMECARE - C&V,2102918855,1000059416
08.02.2019,ADULT SOCIAL CARE,SUPREME CARE SERVICES LTD,"1,106.38",PHY LTS 65+,HOMECARE - C&V,2102918667,1000059416
08.02.2019,ADULT SOCIAL CARE,SUPREME CARE SERVICES LTD,"1,118.90",PHY LTS 65+,HOMECARE - C&V,2102918684,1000059416
08.02.2019,ADULT SOCIAL CARE,SUPREME CARE SERVICES LTD,"1,127.25",PHY LTS 65+,HOMECARE - C&V,2102918567,1000059416
08.02.2019,ADULT SOCIAL CARE,SUPREME CARE SERVICES LTD,"1,152.30",PHY LTS 65+,HOMECARE - C&V,2102918799,1000059416
08.02.2019,ADULT SOCIAL CARE,SUPREME CARE SERVICES LTD,"1,169.00",PHY LTS 65+,HOMECARE - C&V,2102918503,1000059416
08.02.2019,ADULT SOCIAL CARE,SUPREME CARE SERVICES LTD,"1,169.00",PHY LTS 65+,HOMECARE - C&V,2102918535,1000059416
08.02.2019,ADULT SOCIAL CARE,SUPREME CARE SERVICES LTD,"1,169.00",PHY LTS 65+,HOMECARE - C&V,2102918577,1000059416
08.02.2019,ADULT SOCIAL CARE,SUPREME CARE SERVICES LTD,"1,169.00",PHY LTS 65+,HOMECARE - C&V,2102918650,1000059416
08.02.2019,ADULT SOCIAL CARE,SUPREME CARE SERVICES LTD,"1,169.00",PHY LTS 65+,HOMECARE - C&V,2102918715,1000059416
08.02.2019,ADULT SOCIAL CARE,SUPREME CARE SERVICES LTD,"1,169.00",PHY LTS 65+,HOMECARE - C&V,2102918751,1000059416
08.02.2019,ADULT SOCIAL CARE,SUPREME CARE SERVICES LTD,"1,169.00",PHY LTS 65+,HOMECARE - C&V,2102918848,1000059416
08.02.2019,ADULT SOCIAL CARE,SUPREME CARE SERVICES LTD,"1,169.00",PHY LTS 65+,HOMECARE - C&V,2102918860,1000059416
08.02.2019,ADULT SOCIAL CARE,SUPREME CARE SERVICES LTD,"1,169.00",PHY LTS 65+,HOMECARE - C&V,2102918878,1000059416
08.02.2019,ADULT SOCIAL CARE,SUPREME CARE SERVICES LTD,"1,202.40",PHY LTS 65+,HOMECARE - C&V,2102918552,1000059416
08.02.2019,ADULT SOCIAL CARE,SUPREME CARE SERVICES LTD,"1,227.45",PHY LTS 65+,HOMECARE - C&V,2102918605,1000059416
08.02.2019,ADULT SOCIAL CARE,SUPREME CARE SERVICES LTD,"1,252.50",PHY LTS 65+,HOMECARE - C&V,2102918570,1000059416
08.02.2019,ADULT SOCIAL CARE,SUPREME CARE SERVICES LTD,"1,285.90",PHY LTS 65+,HOMECARE - C&V,2102918854,1000059416
08.02.2019,ADULT SOCIAL CARE,SUPREME CARE SERVICES LTD,"1,319.30",PHY LTS 65+,HOMECARE - C&V,2102918653,1000059416
08.02.2019,ADULT SOCIAL CARE,SUPREME CARE SERVICES LTD,"1,386.10",PHY LTS 65+,HOMECARE - C&V,2102918559,1000059416
08.02.2019,ADULT SOCIAL CARE,SUPREME CARE SERVICES LTD,"1,394.45",PHY LTS 65+,HOMECARE - C&V,2102918685,1000059416
08.02.2019,ADULT SOCIAL CARE,SUPREME CARE SERVICES LTD,"1,465.43",PHY LTS 65+,HOMECARE - C&V,2102918712,1000059416
08.02.2019,ADULT SOCIAL CARE,SUPREME CARE SERVICES LTD,"1,486.30",PHY LTS 65+,HOMECARE - C&V,2102918491,1000059416
08.02.2019,ADULT SOCIAL CARE,SUPREME CARE SERVICES LTD,"1,519.70",PHY LTS 65+,HOMECARE - C&V,2102918635,1000059416
08.02.2019,ADULT SOCIAL CARE,SUPREME CARE SERVICES LTD,"1,519.72",PHY LTS 65+,HOMECARE - C&V,2102918839,1000059416
08.02.2019,ADULT SOCIAL CARE,SUPREME CARE SERVICES LTD,"1,548.93",PHY LTS 65+,HOMECARE - C&V,2102918554,1000059416
08.02.2019,ADULT SOCIAL CARE,SUPREME CARE SERVICES LTD,"1,695.05",PHY LTS 65+,HOMECARE - C&V,2102918694,1000059416
08.02.2019,ADULT SOCIAL CARE,SUPREME CARE SERVICES LTD,"1,828.65",PHY LTS 65+,HOMECARE - C&V,2102918625,1000059416
08.02.2019,ADULT SOCIAL CARE,SUPREME CARE SERVICES LTD,"1,937.20",PHY LTS 65+,HOMECARE - C&V,2102918743,1000059416
08.02.2019,ADULT SOCIAL CARE,SUPREME CARE SERVICES LTD,"1,953.90",PHY LTS 65+,HOMECARE - C&V,2102918501,1000059416
08.02.2019,ADULT SOCIAL CARE,SUPREME CARE SERVICES LTD,"1,987.30",PHY LTS 65+,HOMECARE - C&V,2102918475,1000059416
08.02.2019,ADULT SOCIAL CARE,SUPREME CARE SERVICES LTD,"1,987.32",PHY LTS 65+,HOMECARE - C&V,2102918836,1000059416
08.02.2019,ADULT SOCIAL CARE,SUPREME CARE SERVICES LTD,"2,029.05",PHY LTS 65+,HOMECARE - C&V,2102918754,1000059416
08.02.2019,ADULT SOCIAL CARE,SUPREME CARE SERVICES LTD,"2,045.75",PHY LTS 65+,HOMECARE - C&V,2102918495,1000059416
08.02.2019,ADULT SOCIAL CARE,SUPREME CARE SERVICES LTD,"2,054.10",PHY LTS 65+,HOMECARE - C&V,2102918524,1000059416
08.02.2019,ADULT SOCIAL CARE,SUPREME CARE SERVICES LTD,"2,104.20",PHY LTS 65+,HOMECARE - C&V,2102918572,1000059416
08.02.2019,ADULT SOCIAL CARE,SUPREME CARE SERVICES LTD,"2,104.20",PHY LTS 65+,HOMECARE - C&V,2102918637,1000059416
08.02.2019,ADULT SOCIAL CARE,SUPREME CARE SERVICES LTD,"2,104.20",PHY LTS 65+,HOMECARE - C&V,2102918809,1000059416
08.02.2019,ADULT SOCIAL CARE,SUPREME CARE SERVICES LTD,"2,104.20",PHY LTS 65+,HOMECARE - C&V,2102918876,1000059416
08.02.2019,ADULT SOCIAL CARE,SUPREME CARE SERVICES LTD,"2,112.57",PHY LTS 65+,HOMECARE - C&V,2102918818,1000059416
08.02.2019,ADULT SOCIAL CARE,SUPREME CARE SERVICES LTD,"2,171.00",PHY LTS 65+,HOMECARE - C&V,2102918734,1000059416
08.02.2019,ADULT SOCIAL CARE,SUPREME CARE SERVICES LTD,"2,237.80",PHY LTS 65+,HOMECARE - C&V,2102918555,1000059416
08.02.2019,ADULT SOCIAL CARE,SUPREME CARE SERVICES LTD,"2,237.80",PHY LTS 65+,HOMECARE - C&V,2102918756,1000059416
08.02.2019,ADULT SOCIAL CARE,SUPREME CARE SERVICES LTD,"2,271.20",PHY LTS 65+,HOMECARE - C&V,2102918590,1000059416
08.02.2019,ADULT SOCIAL CARE,SUPREME CARE SERVICES LTD,"2,304.60",PHY LTS 65+,HOMECARE - C&V,2102918829,1000059416
08.02.2019,ADULT SOCIAL CARE,SUPREME CARE SERVICES LTD,"2,338.00",PHY LTS 65+,HOMECARE - C&V,2102918750,1000059416
08.02.2019,ADULT SOCIAL CARE,SUPREME CARE SERVICES LTD,"2,388.10",PHY LTS 65+,HOMECARE - C&V,2102918705,1000059416
08.02.2019,ADULT SOCIAL CARE,SUPREME CARE SERVICES LTD,"2,404.80",PHY LTS 65+,HOMECARE - C&V,2102918564,1000059416
08.02.2019,ADULT SOCIAL CARE,SUPREME CARE SERVICES LTD,"2,404.80",PHY LTS 65+,HOMECARE - C&V,2102918837,1000059416
08.02.2019,ADULT SOCIAL CARE,SUPREME CARE SERVICES LTD,"2,454.90",PHY LTS 65+,HOMECARE - C&V,2102918561,1000059416
08.02.2019,ADULT SOCIAL CARE,SUPREME CARE SERVICES LTD,"2,521.72",PHY LTS 65+,HOMECARE - C&V,2102918884,1000059416
08.02.2019,ADULT SOCIAL CARE,SUPREME CARE SERVICES LTD,"2,534.23",PHY LTS 65+,HOMECARE - C&V,2102918594,1000059416
08.02.2019,ADULT SOCIAL CARE,SUPREME CARE SERVICES LTD,"2,630.25",PHY LTS 65+,HOMECARE - C&V,2102918496,1000059416
08.02.2019,ADULT SOCIAL CARE,SUPREME CARE SERVICES LTD,"2,655.30",PHY LTS 65+,HOMECARE - C&V,2102918725,1000059416
08.02.2019,ADULT SOCIAL CARE,SUPREME CARE SERVICES LTD,"2,855.72",PHY LTS 65+,HOMECARE - C&V,2102918847,1000059416
08.02.2019,ADULT SOCIAL CARE,SUPREME CARE SERVICES LTD,"3,523.70",PHY LTS 65+,HOMECARE - C&V,2102918796,1000059416
08.02.2019,ADULT SOCIAL CARE,SUPREME CARE SERVICES LTD,"3,841.00",PHY LTS 65+,HOMECARE - C&V,2102918543,1000059416
08.02.2019,ADULT SOCIAL CARE,SUPREME CARE SERVICES LTD,"4,342.00",PHY LTS 65+,HOMECARE - C&V,2102918698,1000059416
08.02.2019,ADULT SOCIAL CARE,LONDON CARE LTD,266.52,PHY LTS 65+,HOMECARE - SPOT,2102919037,1000003398
08.02.2019,ADULT SOCIAL CARE,LONDON CARE LTD,353.87,PHY LTS 65+,HOMECARE - SPOT,2102918967,1000003398
08.02.2019,ADULT SOCIAL CARE,LONDON CARE LTD,533,PHY LTS 65+,HOMECARE - SPOT,2102918419,1000003398
08.02.2019,ADULT SOCIAL CARE,LONDON CARE LTD,999.28,PHY LTS 65+,HOMECARE - SPOT,2102918922,1000003398
08.02.2019,ADULT SOCIAL CARE,SUPREME CARE SERVICES LTD,676.35,PHY LTS 65+,HOMECARE - SPOT,2102918640,1000059416
08.02.2019,ADULT SOCIAL CARE,SUPREME CARE SERVICES LTD,868.4,PHY LTS 65+,HOMECARE - SPOT,2102918790,1000059416
08.02.2019,ADULT SOCIAL CARE,SUPREME CARE SERVICES LTD,"2,413.15",PHY LTS 65+,HOMECARE - SPOT,2102918732,1000059416
08.02.2019,ADULT SOCIAL CARE,SUPREME CARE SERVICES LTD,"2,638.60",PHY LTS 65+,HOMECARE - SPOT,2102918873,1000059416
08.02.2019,ADULT SOCIAL CARE,PEOPLEPLUS ILS,528.47,PHY LTS 65+,PAYMENTS TO CLIENTS (DIRECT PAYMENTS),2102919158,1000061886
08.02.2019,ADULT SOCIAL CARE,PEOPLEPLUS ILS,536.09,PHY LTS 65+,PAYMENTS TO CLIENTS (DIRECT PAYMENTS),2102919165,1000061886
08.02.2019,ADULT SOCIAL CARE,PEOPLEPLUS ILS,793.97,PHY LTS 65+,PAYMENTS TO CLIENTS (DIRECT PAYMENTS),2102919156,1000061886
08.02.2019,ADULT SOCIAL CARE,LONDON CARE LTD,283.05,PHY STS 65+,HOMECARE - IC,2102918404,1000003398
08.02.2019,ADULT SOCIAL CARE,LONDON CARE LTD,307.03,PHY STS 65+,HOMECARE - IC,2102918914,1000003398
08.02.2019,ADULT SOCIAL CARE,LONDON CARE LTD,470.46,PHY STS 65+,HOMECARE - IC,2102918903,1000003398
08.02.2019,ADULT SOCIAL CARE,SUPREME CARE SERVICES LTD,317.3,PHY STS 65+,HOMECARE - IC,2102918782,1000059416
08.02.2019,ADULT SOCIAL CARE,SUPREME CARE SERVICES LTD,434.2,PHY STS 65+,HOMECARE - IC,2102918586,1000059416
08.02.2019,ADULT SOCIAL CARE,SUPREME CARE SERVICES LTD,818.3,PHY STS 65+,HOMECARE - IC,2102918777,1000059416
08.02.2019,ADULT SOCIAL CARE,SUPREME CARE SERVICES LTD,"1,365.24",PHY STS 65+,HOMECARE - IC,2102918888,1000059416
08.02.2019,ADULT SOCIAL CARE,SUPREME CARE SERVICES LTD,359.06,SEN LTS 18-64,HOMECARE - C&V,2102918895,1000059416
08.02.2019,ADULT SOCIAL CARE,SUPREME CARE SERVICES LTD,300.6,SEN LTS 65+,HOMECARE - C&V,2102918858,1000059416
08.02.2019,ADULT SOCIAL CARE,LONDON CARE LTD,299.85,SOCIAL ISOLATION,HOMECARE - C&V,2102918357,1000003398
08.02.2019,ADULT SOCIAL CARE,LONDON CARE LTD,324.74,SOCIAL ISOLATION,HOMECARE - C&V,2102919073,1000003398
08.02.2019,ADULT SOCIAL CARE,LONDON CARE LTD,333.12,SOCIAL ISOLATION,HOMECARE - C&V,2102919015,1000003398
08.02.2019,ADULT SOCIAL CARE,LONDON CARE LTD,432.92,SOCIAL ISOLATION,HOMECARE - C&V,2102918370,1000003398
08.02.2019,ADULT SOCIAL CARE,LONDON CARE LTD,532.8,SOCIAL ISOLATION,HOMECARE - C&V,2102919001,1000003398
08.02.2019,ADULT SOCIAL CARE,LONDON CARE LTD,587.18,SOCIAL ISOLATION,HOMECARE - C&V,2102919071,1000003398
08.02.2019,ADULT SOCIAL CARE,LONDON CARE LTD,628.57,SOCIAL ISOLATION,HOMECARE - C&V,2102918451,1000003398
08.02.2019,ADULT SOCIAL CARE,LONDON CARE LTD,"1,021.49",SOCIAL ISOLATION,HOMECARE - C&V,2102918390,1000003398
08.02.2019,ADULT SOCIAL CARE,LONDON CARE LTD,"1,286.46",SOCIAL ISOLATION,HOMECARE - C&V,2102918352,1000003398
08.02.2019,ADULT SOCIAL CARE,LONDON CARE LTD,"1,315.84",SOCIAL ISOLATION,HOMECARE - C&V,2102918992,1000003398
08.02.2019,ADULT SOCIAL CARE,SUPREME CARE SERVICES LTD,417.5,SOCIAL ISOLATION,HOMECARE - C&V,2102918668,1000059416
08.02.2019,ADULT SOCIAL CARE,SUPREME CARE SERVICES LTD,601.2,SOCIAL ISOLATION,HOMECARE - C&V,2102918626,1000059416
08.02.2019,ADULT SOCIAL CARE,SUPREME CARE SERVICES LTD,868.4,SOCIAL ISOLATION,HOMECARE - C&V,2102918662,1000059416
08.02.2019,ADULT SOCIAL CARE,LONDON CARE LTD,"2,227.20",SOCIAL ISOLATION,HOMECARE - SPOT,2102919074,1000003398
08.02.2019,ADULT SOCIAL CARE,REDACTED PERSONAL DATA,-316.72,SPEC NEEDS CHILDREN,PAYMENTS TO CLIENTS (DIRECT PAYMENTS),REDACTED,REDACTED
08.02.2019,ADULT SOCIAL CARE,PEOPLEPLUS ILS,"6,231.68",TRANSITIONS 14-18YRS,PAYMENTS TO CLIENTS (DIRECT PAYMENTS),2102919151,1000061886
08.02.2019,ADULT SOCIAL CARE,REDACTED PERSONAL DATA,633.44,TRANSITIONS 14-18YRS,PAYMENTS TO CLIENTS (DIRECT PAYMENTS),REDACTED,REDACTED
08.02.2019,ADULT SOCIAL CARE,REDACTED PERSONAL DATA,838.88,TRANSITIONS 14-18YRS,PAYMENTS TO CLIENTS (DIRECT PAYMENTS),REDACTED,REDACTED
08.02.2019,ASSET MANAGEMENT,FRANKHAM CONSULTANCY GROUP LTD,675.12,ADAPTATIONS,BUILDING R&M,5902342491,1000043952
08.02.2019,ASSET MANAGEMENT,FRANKHAM CONSULTANCY GROUP LTD,707.95,ADAPTATIONS,BUILDING R&M,5902342568,1000043952
08.02.2019,ASSET MANAGEMENT,FRANKHAM CONSULTANCY GROUP LTD,728.56,ADAPTATIONS,BUILDING R&M,5902342161,1000043952
08.02.2019,ASSET MANAGEMENT,FRANKHAM CONSULTANCY GROUP LTD,751.87,ADAPTATIONS,BUILDING R&M,5902342766,1000043952
08.02.2019,ASSET MANAGEMENT,FRANKHAM CONSULTANCY GROUP LTD,852.64,ADAPTATIONS,BUILDING R&M,5902342784,1000043952
08.02.2019,ASSET MANAGEMENT,GW LEGAL,"1,900.00",DISREPAIR,BUILDING R&M,5902341677,1000081845
08.02.2019,ASSET MANAGEMENT,T BROWN & SONS (HEATING) LTD,"4,160.00",ENG CONTRACTS (NORTH),PLANNED MAINTENANCE,5902342929,1000040191
08.02.2019,ASSET MANAGEMENT,SGN CONNECTIONS LTD,706,ENG CONTRACTS (SOUTH),ESTATE LIGHTING R&M,5902342619,1000055428
08.02.2019,CENTRAL FUNCTIONS,CALLOW MASTER LOCKSMITHS,258,COMMERCIAL PROPERTIES,BUILDING R&M,5902342894,11179552
08.02.2019,CENTRAL FUNCTIONS,STANBURY BUILDING SERVICES LTD,450,COMMERCIAL PROPERTIES,BUILDING R&M,5902342519,1000078207
08.02.2019,CENTRAL FUNCTIONS,STANBURY BUILDING SERVICES LTD,495,COMMERCIAL PROPERTIES,BUILDING R&M,5902342518,1000078207
08.02.2019,CENTRAL FUNCTIONS,ARCUS GLOBAL LTD,"-18,576.00",OPERATIONAL TEAM,PROFESSIONAL FEES,5902342813,1000080110
08.02.2019,CENTRAL FUNCTIONS,ARCUS GLOBAL LTD,"16,200.00",OPERATIONAL TEAM,PROFESSIONAL FEES,5902342811,1000080110
08.02.2019,CHIEF EXECUTIVE,SPORTS AND LEISURE MANAGEMENT LTD,"6,647.70",CAPITAL PS (LEISURE),CONSTRUCTION,5902342933,1000077862
08.02.2019,CHIEF EXECUTIVE,CONWAY AECOM LTD,"25,334.59",CAPITAL PS (REGEN),CONSTR'N SUB CONTRACT - NON CERTIFICATED,5902341828,1000071205
08.02.2019,CHIEF EXECUTIVE,MACE LTD,"5,563.13",CAPITAL PS (REGEN),CONSTRUCTION FEES,5902342847,1000067959
08.02.2019,CHIEF EXECUTIVE,SYSTRA LTD,"1,800.00",CAPITAL PS (REGEN),CONSTRUCTION FEES  - EXTERNAL,5902342912,11305109
08.02.2019,CHIEF EXECUTIVE,SYSTRA LTD,"1,800.00",CAPITAL PS (REGEN),CONSTRUCTION FEES  - EXTERNAL,5902342912,11305109
